Workbook

Sheet Реестр
B2: Реестр организаций отдыха детей и их оздоровления, расположенных на территории Архангельской области
C4: Уполномоченный орган исполнительной власти в сфере организации отдыха и оздоровления детей - Министерство образования Архангельской области
C5: дата актуализации: 29 сентября 2025 года
A6: Сквозная нумерация | B6: N п/п | C6: Полное и сокращенное наименование организации отдыха детей и их оздоровления | D6: Организационно правовая форма организации отдыха детей и их оздоровления | E6: ФИО руководителя организации отдыха детей и их оздоровления | F6: ИНН | G6: Фактический адрес (в том числе контактный телефон и адрес электронной почты) | H6: Официальный сайт организации отдыха детей и их оздоровления и информационно-телекоммуникационной сети "Интернет" | I6: Тип организации отдыха детей и их оздоровления | J6: Предоставляемые организацией отдыха детей и их оздоровления услуги в сфере отдыха и оздоровления детей | AG6: Дата ввода используемых организацией отдыха детей и их оздоровления объектов (для организаций стационарного типа) и дата проведения капитального ремонта | AH6: Информация о наличии санитарно-эпидемиологического заключения, включая дату заключения | AI6: Информация о результатах проведения органами. осуществляющими государственный контроль (надзор), плановых и внеплановых проверок по итогам предыдущего года | AJ6: Информация о наличии лицензии на осуществление медицинской деятельности | AK6: Информация о наличии лицензии на осуществление образовательной деятельности | AL6: Обеспечение в организации отдыха детей и их оздоровления доступности услуг для детей-инвалидов и детей с ограниченными возможностями здоровья | AM6: Сведения о наличии программы воспитательной работы и календарного плана воспитательной работы с описанием конкретных мероприятий по дням с учетом смен и возрастных групп детей | AN6: Ссылка на программу
J7: Режим работы организации отдыха детей и их оздоровления (сезонный, круглогодичный) | K7: весенняя смена | M7: 1 смена | O7: 2 смена | Q7: 3 смена | S7: 4 смена | U7: 5 смена | W7: осенняя смена | Y7: осенняя смена | AA7: зимняя смена | AC7: Средняя стоимость 1 дня пребывания в организации отдыха детей и их оздоровления | AD7: Возрастная категория детей, принимаемых в организации отдыха | AE7: Информация о проживании и питании в организации отдыха детей и их оздоровления | AF7: Наличие оборудованного места для купания
K8: дата проведения смен | L8: количество мест | M8: дата проведения смен | N8: количество мест | O8: дата проведения смен | P8: количество мест | Q8: дата проведения смен | R8: количество мест | S8: дата проведения смен | T8: количество мест | U8: дата проведения смен | V8: количество мест | W8: дата проведения смен | X8: количество мест | Y8: дата проведения смен | Z8: количество мест | AA8: дата проведения смен | AB8: количество мест
B9: 1 | C9: 2 | D9: 3 | E9: 4 | F9: 5 | G9: 6 | H9: 7 | I9: 8 | J9: 9 | K9: 10 | AC9: 11 | AD9: 12 | AE9: 13 | AF9: 14 | AG9: 15 | AH9: 16 | AI9: 17 | AJ9: 18 | AK9: 19 | AL9: 20 | AM9: 21 | AN9: 21
B11: I. Информация об организациях отдыха детей и их оздоровления независимо от форм собственности и ведомственной принадлежности, расположенных на территории Архангельской области
B12: 1.1 Стационарные организации отдыха детей и их оздоровления (загородные оздоровительные лагеря)
A13: 1 | B13: 1 | C13: Загородный стационарный лагерь "Трансформеры" с круглосуточным пребыванием детей муниципального бюджетного общеобразовательного учреждения "Никольская средняя общеобразовательная школа" (ЗСЛ "Трансформеры" МБОУ "Никольская СОШ") | D13: муниципальная/ Вилегодский муниципальный округ Архангельской области | E13: Вишнягова Елена Александровна | F13: 2909001686 | G13: Юридический адрес: 165673, Архангельская область, Вилегодский район, с. Никольск, ул. Школьная, д. 13А Тел: 8 (81843) 4-35-44 E-mail: nikolobr@yandex.ru olgastepanak@viledland.ru Фактический адрес: 165673, Архангельская область, Вилегодский район, с. Никольск, ул. Школьная, д.13А, ул. Школьная, д. 7 (2 здания) | H13: https://nikolobr.ru/about/letnee-ozdorovlenie/ | I13: лагерь, организованный образовательной организацией, с круглосуточным пребыванием | J13: сезонный | M13: 09.06.2025-22.06.2025 | N13: 30 | S13: 11.08.2025-24.08.2025 | T13: 30 | AC13: 1,500.00 | AD13: 6,5-17 лет | AE13: Режим работы: круглосуточно. Организовано 5-ти разовое питание и медицинское сопровождение. Имеются игровые комнаты, спортзал, тренажерный зал, тир. Запланированные мерпоприятия:спортивно культурно-массовых и спортивных мероприятий, творческие мастерские, психологические тренинги, походы, посещение музея | AF13: не имеется | AG13: здание начальной школы, 1976 г.; здание основной школы, столовая, 1976 г.; кап ремонт, 2022 -2023 г. | AH13: СЭЗ № 29.01.04.000.М.000532.06.25 от 04.06.2025 г. | AI13: Предписание Роспотребнадзора №648-пр/1 от 26.06.2024 г. Замечания устранены: обеспечены маскитными сетками помещения, используемые в работе лагерей; обеспечен минимальным набором помещений медицинский кабинет, двумя палатами изолятора и процедурным кабинетом; обеспечена вакцинация против дифтерии, столбняка и кори у Морозовой Н.В.; обеспечено выполнение требований к меню, на пищеблоке в тамбуре отсутствует плесень и признаки поражения грибком. Срок исполнения Предписания 12.05.2025г. | AJ13: Лицензия № ЛО41-01152-29/00578823 от 11.07.2022 г. | AK13: Лицензия № 6168 от 25.02.2016 г. | AL13: Назначены сотрудники, осуществляющие сопровождение детей – инвалидов и детей с ОВЗ (при необходимости) в процессе оказания им услуг по организации отдыха и оздоровления.Здания оборудованы табличками Брайля (Названия и план-схемы зданий). В основном корпусе (ул.Школьная, д.7) при капитальном ремонте расширены дверные проемы в туалетных комнатах и созданы условия для посещения сан.узла инвалидами. | AM13: Утверждено Методический Совет школы Протокол № 6 от 12.05.2025 г. (ссылку на программу нажать 2 раза) | AN13: https://cloud.mail.ru/public/24n9/fiQUQf26u
A14: 2 | B14: 2 | C14: Детский оздоровительный лагерь "Заря"структурное подразделение муниципального бюджетного общеобразовательного учреждения "Красноборская средняя школа" Красноборского муниципального округа Архангельской области (ДОЛ "Заря" СП МБОУ "Красноборская средняя школа") | D14: муниципальная/ Красноборский муниципальный округ Архангельской области | E14: Антропова Людмила Леонидовна | F14: 2914001385 | G14: Юридический адрес: 165430, Архангельская область, Красноборский район, с. Красноборск, ул. Плакидина, д. 26 Тел/факс: 8 (818 40) 3-12-93; 8 (818420) 3-15-52 E-mail: krkschool@yandex.ru knosh@yandex.ru Фактический адрес: 165430, Архангельская область, Красноборский район, дер. Власовская, д. 27 | H14: https://krkschool.edusite.ru/magicpage.html?page=47269 | I14: лагерь, организованный образовательной организацией, с круглосуточным пребыванием | J14: сезонный | O14: 01.07.2025-18.07.2025 | P14: 65 | Q14: 21.07.2025-07.08.2025 | R14: 65 | AC14: 1,860.00 | AD14: 2 смена- 7-17 лет 3 смена- 7-17 лет | AE14: ДОЛ «Заря» работает сезонно (летом), ДОЛ «Заря» находится на живописном берегу лесной реки. На территории расположены: столовая, баня, летние душевые, 2 корпуса для размещения детей, медпункт, домик начальника, стадион, игровые и спортивные площадки. Установлено по периметру и в корпусах видеонаблюдение. Имеется пожарная сигнализация и установлена система тревожной сигнализации. Размещение в спальных корпусах в комнатах до 8 человек. Питание в собственной столовой 5 раз в сутки. | AF14: не имеется | AG14: введен в 1972 г., с 2005 г. функционирует вновь | AH14: СЭЗ № 29.01.04.000.М.000571.06.25 от 23.06.2025 г. | AI14: Предписание Управления Роспотребнадзора АО № 75/581/2021 от 23.07.2021 г. Срок устранения: 01.04.2025 г. Предписание Управления Роспотребнадзора АО № 112/1088 от 22.07.2024 г. Срок устранения: 20.06.2025 г. Решение Красноборского районного суда АО от 24.04.2024 г. по делу № 2-198/2024, срок устранения: до 31.12.2026 г. Министерство РФ по делам гражданской обороны , чрезвычайным ситуациям и ликвидации последствий стихийных бедствий Отдел надзорной деятельности и профилактической работы Верхнетоемского и Красноборского районов управления надзорной деятельности и профилактической работы Главного управления МЧС России по Архангельской области 1.Акт профилактического визита № 2505/515-29/7-ВО/А от 30.05.2025 г. Предписание № 2505/515-29/7-ВО/П от 30.05.2025 г Предписание выполнено. 2..Акт профилактического визита № 2505/515-29/6-ВО/А от 30.06.2025 г. Предписание № 2505/515-29/6-ВО/6 от 30.06.2025 г Предписание выполнено. | AJ14: Лицензия №ЛО-29-01-002704 от 04.06.2019 г. | AK14: Выписка из реестра лицензий № ЛО35-01270-29/00236834 от 18.03.2015 г. | AL14: Условия не созданы | AM14: Утверждено директором школы 05.05.2025 г. | AN14: htthttps://krkschool.edusite.ru/sveden/files/5ec8153e46d39727cf9eead537bc55b8.pdf
A15: 3 | B15: 3 | C15: Детский оздоровительный лагерь "Ватса-Парк" Общество с ограниченной ответственностью Ватса-Парк (ДОЛ "Ватса-Парк" ООО Ватса-Парк) | D15: коммерческая/ Котласский муниципальный округ Архангельской области | E15: Гольдштейн Ольга Витальевна | F15: 2904024584 | G15: Юридический адрес: 165300, Архангельская область, Котласский район, г. Котлас, ул.Урицкого, д. 14 Фактический адрес: 165340, Архангельская область, Котласский район, в 120 м к северо-западу на ПК 20+700 автодороги Котлас - Ильинско-Подомское Тел.: заместитель директора по общим вопросам: +79539351453; заместитель директора по развитию: +79773017829; дитректор: +79523095327 E-mail: vatsapark@yandex.ru | H15: https://vatsapark.ru | I15: организация отдыха детей и их оздоровления сезонного или круглогодичного действия, с круглосуточным пребыванием | J15: круглогодичный | M15: 01.06.2025-21.06.2025 | N15: 350 | O15: 23.06.2025-13.07.2025 | P15: 490 | Q15: 15.07.2025-04.08.2025 | R15: 490 | S15: 06.08.2025-26.08.2025 | T15: 400 | W15: 28.10.2025-03.11.2025 | X15: 250 | AC15: 2679,00 стоимость проезда и сопровождения 4900,00 | AD15: 6,5-17 лет | AE15: ДОЛ "Ватса-Парк" расположен в живописном сосновом бору, экологически чистом районе Архангельской области. Территория ДОЛ периметрально ограждена, оснащена системой видеонаблюдения. Пропускной и внутриобъектововый режим осуществляется путем круглосуточной охраны КПП. Для проживания детей предлагаются благоустроенные корпуса и коттеджи. Каждый отряд занимает отдельный спальный корпус. Комнаты с расселением по 5-7 чел. оснащены санузлом и душем, а так же обеспечены необходимым набором мебели и современными комплектами постельных принадлежностей. В собственной столовой лагеря организовано вкусное и полезное 5-ти разовое питание. Меню разнообразное, разработано в соответствии с ассортиментным перечнем и с учетом пожеланий детей. Медицинский центр ДОЛ обеспечен всем необходимым оборудованием в соответсвии со стандартом оснащения мед. пунктов и изоляторов. В теплую летнюю погоду дети купаются в уличном бассейне. Для организации и проведения общедосуговых, спортивных и профильных мероприятий для детей в лагере имеются: клуб ДОЛ"Арена событий"- открытая сцена, медиазона-помещение для просмотра кинофильмов, поведение игр с экраном, защиты проектов и показа презентаций, проведение мастер-классов, помещения для занятий профилей, библиотека, оборудованные отрядные места, фотозоны, арт объекты. Лагерь имеет разнообразную инфраструктуру для занятий спортом: оборудованы баскетбольные, волейбольные площадки с антитравматичным покрытием, площадки для игры в лазертаг, спортивный городок, веревочный парк, уличный бассейн, футбольное поле, площадки для игры в лазертаг, спортивный городок, 2 веревочных парка, 2 спортивных уличных комплекса. Мероприятия комплексной программы "Звездные чарты Ватсландии" с применением технологиицифрового оздоровления представят каждому ребенку возможность полноценно провести летние каникулы. | AF15: На территории лагеря имеется уличный бассейн, предназначенный для купания детей в летние оздоровительные смены | AG15: 2009 г., спальный корпус № 1, 1965 г., спальный корпус № 2; 2017 г., капитальный ремонт; 1965 г., спальный корпус № 3; 2017 г., капитальный ремонт; 1965 г., спальный корпус № 4; 2017 г., капитальный ремонт; 2007 г., спальный корпус № 5,6,7,8,10; 2015 г., спальный корпус № 11,12,13. 2008 г., коттеджи № 1,2,4,5,6,7,8,9,10,11; 1965 г., здание пищеблока, медпункта, административного здания; 2023 г, капитальный ремонт клуба. Косметические ремонты проводятся ежегодно во всех помещениях. | AH15: СЭЗ № 29.01.04.000.М.000510.05.25 от 28.05.2025 г. | AI15: Проверок не было | AJ15: Лицензия № ЛО-29-01-001782 от 13.05.2015 г. | AK15: нет | AL15: Условия созданы частично. Для детей с ОВЗ: слабослышащих-дети с частичной слуховой недостаточностью | AM15: Утверждена директором ООО «Ватса-Парк» 30.04.2025 г. | AN15: https://disk.yandex.ru/i/z_kamd2gNE6FTg
A16: 4 | B16: 4 | C16: Детский оздоровительно-образовательный центр "Стрела" филиал муниципального бюджетного общеобразовательного учреждения "Дорогорская средняя школа имени Н.А. Таранина Мезенского муниципального округа" (ДООЦ "Стрела"филиал МБОУ "Дорогорская средняя школа") | D16: муниципальная/ Мезенский муниципальный округ Архангельской области | E16: и.о. директора Лочехин Николай Андреевич | F16: 2917002059 | G16: Юридический адрес: 164756, Архангельская область, Мезенский район, с. Дорогорское, ул. Советская, д. 78-а Тел: 8 (81848) 5-93-73, E-mail: dorogor-sc@yandex.ru Фактический адрес: 164768, Архангельская область, Мезенский район, дер. Азаполье Тел: 8 (81848) 5-76-81 | H16: http://xn----7sbbje1bcivabesdp9i3e.xn--p1ai/strela.html | I16: лагерь, организованный образовательной организацией, с круглосуточным пребыванием | J16: сезонный | O16: 25.06.2025-14.07.2025 | P16: 66 | Q16: 18.07.2025-06.08.2025 | R16: 66 | S16: 11.08.2025-22.08.2025 | T16: 20 | AC16: 1,700.00 | AD16: 6,5-17 лет | AE16: Режим работы: круглосуточно.Организовано пятиразовое питание на базе собственной столовой. Медицинское сопровождение осуществляется медицинским работником на базе медицинского кабинета (лицензия на осуществление медицинской деятельности при оказании первичной, в том числе доврачебной, врачебной и специализированной, медико-санитарной помощи организуются и выполняются следующие работы (услуги):При оказании первичной доврачебной медико-санитарной помощи в амбулаторных условиях по: сестринскому делу, сестринскому делу в педиатрии.При оказании первичной врачебной медико-санитарной помощи в амбулаторных условиях по: организации здравоохранения и общественному здоровью.Медицинский пункт и изоляторы находятся в административном корпусе.Проживание в двух спальных корпусах 1969 года постройки, в комнатах по 8-10 мест. Спальные комнаты оборудованы мебелью: кровати, столы, стулья, шкафы для одежды, тумбочки прикроватные, полки для обуви, вешалки для одежды. Окна пластиковые, оснащены москитными сетками. Все воспитанники обеспечиваются мягким инвентарем: матрацем, постельным бельем, подушкой, одеялом, покрывалом, полотенцами для лица, ног и банным.Первый корпус оборудован душевыми кабинками. В наличии баня 2019 года постройки, прачечная.Туалетные комнаты для мальчиков и девочек расположены в каждом корпусе.Имеются оборудованная спортивная площадка, волейбольная площадка, игровая площадка. В наличии спортивный инвентарь, музыкальное оборудование, мини-библиотека.В 2024 году запланирована реализация программы отдыха детей и их оздоровления «ИСТок: Искусство. Спорт. Творчество». Смена проходит в форме сюжетно-ролевой игры, включающей культурные и спортивные мероприятия, творческие мастерские, мастер-классы. | AF16: оборудованный пляж СЭЗ № 29.01.04.000.М.000659.08.25 от 12.08.2025 г. | AG16: 1969 г., корпус № 1; 2020 г., пристройка к корпусу №1; 1969 г., корпус № 2; 1969 г., корпус № 3; 1969 г., столовая, 2019 г, баня | AH16: СЭЗ № 29.01.04.000.М. 000576.06.25 от 24.06.2025 г. | AI16: Профилактический визит РосПотребНадзора от 13.08.2024 г. Предписание № 29-05/05-407-2024 от 13.08.2024 г. –устранить выявленные нарушения до 15.05.2025 г. На основании письма Пинежского территориального отдела Управления федеральной службы по надзору в сфере защиты прав потребителей и благополучия человека от 15.05.2025 г № 29-05/05-210-2025: пункты 2, 7 сняты с контроля; Пункты 1,3,8 предписания отсрочены до 20.04.2026 г; Пункты 4,5,6 выполнены на 24.06.2025 г. | AJ16: Лицензия №ЛО-29-01-002065 от 07.07.2016 г. | AK16: Лицензия № 6283 от 24.06.2016 г. | AL16: Назначены сотрудники, осуществляющие сопровождение детей-инвалидов и детей с ОВЗ (при необходимости) в процессе оказания им услуг по организации отдыха и оздоровления. | AM16: Утверждена приказом директора школы от 22.04.2025 г. № 7. | AN16: http://дорогорская-школа.рф/tinybrowser/programma-strela-nasledniki-pobedy-na-2025-g.pdf
A17: 5 | B17: 5 | C17: Детский загородный стационарный оздоровительный лагерь "Боровое" структурное подразделение муниципального автономного учреждения дополнительного образования "Районный центр дополнительного образования детей" ( ДЗСОЛ "Боровое" "РЦДО") | D17: муниципальная/ "Няндомский муниципальный округ Архангельской области" | E17: Богданова Нина Мариановна | F17: 2918004041 | G17: Юридический адрес: 164200, Архангельская область, Няндомский район, г. Няндома, ул. 60 лет Октября, д.14 Фактический адрес: 164103, Архангельская область, Няндомский район, дер. Бережная, ул. Приозерная, д. 8, корп. 2,3,5,6 Тел: 8 (81838) 4-62-35 (лагерь), Факс: 8 (81838) 6-73-25 (бухг); 8 (81838) 6-23-60 E-mail: nyandomovoi@mail.ru | H17: https://borovoelager.ru | I17: лагерь, организованный образовательной организацией, с круглосуточным пребыванием | J17: сезонный | M17: 06.06.2025-23.06.2025 | N17: 64 | O17: 27.06.2025-14.07.2025 | P17: 64 | Q17: 18.07.2025-04.08.2025 | R17: 64 | S17: 08.08.2025-25.08.2025 | T17: 64 | AC17: 1,875.00 | AD17: 6,5-17 лет | AE17: Режим работы: круглосуточно. Организовано медицинское сопровождение. Лагерь расположен на живописном берегу озера «Боровое». Для проживания отдыхающих на территории расположены 2 спальных корпуса. Каждый корпус имеет 4 комнаты. Современные бытовые условия, в корпусах есть электрическое отопление, холодная и горячая вода. Организовано пятиразовое питание. Столовая на 100 человек с досуговым залом, отдельно стоящий корпус для проживания персонала лагеря, с медицинским блоком, прачечно-душевой комплекс. На территории имеются волейбольная, спортивная и баскетбольная площадка, площадка для мини-футбола. Запланированные мероприятия: организация культурно-массовых и спортивных мероприятий, творческие мастерские, психологические тренинги. | AF17: оборудованный пляж СЭЗ № 29.01.04.000.М.000597.07.25 от 08.07.2025 г. | AG17: 1972 г., административный корпус, спальные корпуса, столовая, душевая-прачечная | AH17: СЭЗ № 29.01.04.000.М.000523.06.25 от 02.06.2025 г. | AI17: Предписание №2406/511-29/226/ПВПР от 21.06.2024г. Отдел надзорной деятельности и профилактической работы Няндомского, Каргопольского и Коношского районов (срок устранения до 01.05.2025г.). Предписание №267/пр от 24.07.2024г. Плесецкий территориальный отдел Управления Федеральной службы по надзору в сфере защиты прав потребителей и благополучия человека по Архангельской области, срок устранения до 01.06.2025г. | AJ17: Лицензия №ЛО-29-01-001738 от 18.02.2015г. Срочный трудовой договор заключается на период работы лагеря | AK17: Лицензия № 6394 от 27.12.2016 г. | AL17: Дети-инвалиды по общему заболеванию. Дети с нарушением зрения, в корпусах установлены таблички шрифтом Брайля для помощи незрячим людям читать информацию тактильным способом. Дети с задержкой психического развития. Дети с умственной отсталостью. В медицинском кабинете есть холодильник для хранения хладоэлементов и лекарственных препаратов. | AM17: Утверждена приказом директора МАУ ДО «Районный центр дополнительного образования детей» от 06.05.2025 г. №33 | AN17: https://drive.google.com/file/d/1x4Mybq88XQMlCAyBjnLGnq6qoxE2C5H5/view
A18: 6 | B18: 6 | C18: Загородный стационарный детский лагерь "Орлёнок" муниципального бюджетного учреждения дополнительного образования "Спортивная школа г. Онеги" (ЗСДЛ "Орленок" МБУ ДО "Спортивная школа г. Онеги") | D18: муниципальная/ "Онежский муниципальный район Архангельской области" | E18: Иконникова Наталья Вячеславовна | F18: 2906000571 | G18: Юридический адрес: 164840, Архангельская область, Онежский район, г. Онега, пер. Спортивный, д. 1, стр.2 Фактический адрес: 164103, Архангельская область, Онежский район, дер. Андозеро Тел: 8 (81839) 7-30-50; 8 (81839) 7-39-36 E-mail: dvoreconega@yandex.ru | H18: https://dvoreconega.nubex.ru/9164/ | I18: лагерь, организованный образовательной организацией, с круглосуточным пребыванием | J18: сезонный | O18: 21.06.2025-04.07.2025 | P18: 308 | Q18: 07.07.2025-20.07.2025 | R18: 308 | S18: 23.07.2025-05.08.2025 | T18: 308 | AC18: 2,100.00 | AD18: 7-17 лет | AE18: Режим работы: круглосуточный. Организовано 5-разовое питание, питание столовой на 200 мест в 2 смены и медицинсое сопровождение. Для размещения имеются жилые корпуса с комнатами по 4-8 человек, банно-прачечный корпус. Биотуалеты и туалеты надворные выгребного типа, расположены рядом с жилыми корпусами. Для досуга детей: клуб, библиотека, прокат фильмов, экскурсии, кружки по интересам, тематические встречи, игры-викторины, различные игровые, обучающие, развлекательные и познавательные программы и др. А также спортивные площадки и сооружения для волейбола, баскетбола, бадминтона, настольного тенниса, футбольное поле, полоса препятствий | AF18: Имеется, озеро Пылкозеро, 2 купальни СЭЗ № 29.01.04.000.М.000574.06.25 от 23.06.2025 г. | AG18: 1970 г. | AH18: СЭЗ № 29.01.04.000.М. 000570.06.25 от 20.06.2025 г. | AI18: Предписание Роспотребнадзора 87/06 от 12.07.2024 снято с контроля 01.08.2024 г. | AJ18: Лицензия №ЛО41-01152-29/00309478 от 01.11.2016 г. | AK18: Лицензия № 6193 от 16.03.2016 г. | AL18: Дети с нарушением речи | AM18: Утверждено Директор МБУ ДО "Спортивная школа г. Онеги" Приказ № 57 от 12.05.2025 г. | AN18: https://r1.nubex.ru/s6749-836/f3040_f1/Программа_Орлёнок_2024.pdf
A19: 7 | B19: 7 | C19: Детский оздоровительный лагерь "Усадьба Ломоноса" муниципального бюджетного общеобразовательного учреждения "Устьянская средняя общеобразовательная школа" (ДОЛ "Усадьба Ломоноса" МБОУ "Устьянская СОШ") | D19: муниципальная/ "Устьянский муниципальный округ Архангельской области" | E19: Рогачёва Ирина Сергеевна | F19: 2922004855 | G19: Юридический адрес: 165230, Архангельская область, Устьянский район, с. Шангалы, ул. 50 лет Октября, д. 1 Фактический адрес: 165230, Архангельская область, Устьянский район, с. Шангалы, ул. Восточная, д. 13, стр. 2; с. Шангалы, ул.50 лет Октября, д.1 Тел: 8 (81855) 5-45-09 E-mail: ustschool@bk.ru | H19: https://ustschool.ucoz.ru/index/letnij_otdykh/0-142 | I19: лагерь, организованный образовательной организацией, с круглосуточным пребыванием | J19: сезонный | O19: 28.06.2025-15.07.2025 | P19: 30 | Q19: 17.07.2025-03.08.2025 | R19: 22 | AC19: 1500.00 | AD19: 8-17 лет | AE19: Режим работы: круглосуточно. Организовано 5-разовое питание и медицинское сопровождение. Имеются спортивный, актовый залы, многофункциональная спортивная площадка, спортивный стадион, необходимый инвентарь для проведения спортивных мероприятий. Проживание в комнатах по 3-4 человека. Туалетные комнаты и душевые раздельно для мальчиков и девочек. Имеются помещения для стирки и сушки белья. Комната отдыха оборудована мягкой мебелью, столами и стульями и телевизором. Запланированные мероприятия: настольные игры, организация культурно-массовых, спортивных мероприятий, мастер-классов, походов, экскурсий, проведение соревнований и товарищеских встреч по игровым видам спорта | AF19: не имеется | AG19: 1983 г., здание интерната, ул. Восточная, д.13/2; 1994, здание основной школы, с. Шангалы, ул. 50 лет Октября, д.1; кап ремонт, 2024 г. | AH19: СЭЗ № 29.01.04.000.М.000577.06.25 от 24.06.2025 г. | AI19: Предписание Вельского территориального отдела Управления Роспотребнадзора по Архангельской области от 26.09.2024 г. № 799/2024 г., замечания устранены | AJ19: Лицензия № ЛО41-01152-29/00001709 от 15.03.2022 г. | AK19: Лицензия № 6057 от 26.11.2015 г. выписка из реестра лицензий № ЛО35-01270-29/00372846 от 26.11.2015 г. | AL19: Нозология: дети с ОВЗ (ТНР), инвалиды; имеется оборудованный кабинет для занятий с логопедом, педагогом-психологом. В основном здании школы имеется пандус, кнопка вызова персонала, назначены сотрудники осуществляющие сопровождение детей инвалидов, детей с ОВЗ в процессе оказания им услуг по организации отдыха и оздоровления | AM19: Утверждено приказом и.о. директора МБОУ «Устьянская СОШ» № 61 ОД от 07.05. 2025 г. Протокол педагогического Совета № 13 от 07.05.2025 г. | AN19: https://cloud.mail.ru/public/QkgT/JMBxJoLLy
A20: 8 | B20: 8 | C20: Загородный стационарный детский оздоровительный лагерь "Северный Артек" государственного автономного учреждения Архангельской области "Центр детского отдыха "Северный Артек" (ЗСДОЛ "Северный Артек" ГАУ АО "ЦДО "Северный Артек") | D20: государственная/ министерство труда, занятости и социального развития Архангельской области/ Холмогорский муниципальный округ Архангельской области | E20: Цыварева Наталья Викторовна | F20: 2901237175 | G20: Юридический адрес: 163009, г. Архангельск, ул. Прокопия Галушина, д. 6, каб. 10 Тел: +7 (921) 082-74-49 E-mail: severartek@yandex.ru Фактический адрес: 163534, Архангельская область, Емецкий территориальный отдел администрации Холмогорского муниципального округа, дер. Бор Тел: 8 (81830) 2-17-44 | H20: https://severartek.ru/childrens-vacation/children-camp-severartek/ | I20: организация отдыха детей и их оздоровления сезонного или круглогодичного действия, с круглосуточным пребыванием | J20: сезонный | M20: 30.05.2025-16.06.2025 | N20: 267 | O20: 18.06.2025-05.07.2025 | P20: 267 | Q20: 07.07.2025-24.07.2025 | R20: 267 | S20: 26.07.2025-12.08.2025 | T20: 267 | U20: 13.08.2025-30.08.2025 | V20: 267 | W20: 24.10.2025-02.11.2025 | X20: 180 | AC20: 2,749.94 | AD20: 6,5-17 лет | AE20: Режим работы: круглосуточно. Организовано 5-разовое питание с элементами "Шведский стол". Лагерь расположен в сосновом бору на берегу Северная Двина, в Холмогорском районе Архангельской области, в деревне Бор, территория 17 га - уникальная экоплощадка для ребят всех возрастов. Территория ограждена, оснащена видеонаблюдением, системой оповещения ПБ, на въезде КПП. Дети размещаются в девяти благоустроенных одноэтажных деревянных корпусах. Каждый отряд занимает отдельный корпус. В корпусах для младших отрядов дети проживают по 4 человека (сан. узлы - на комнату, душевые - в корпусе/на этаже, установлены стиральные машины-автомат). При размещении по 6-8 человек санузел - в корпусе, душевые - в отдельно стоящем здании. На территории лагеря расположены футбольное поле, баскетбольная и волейбольная площадки, полоса препятствий, современные игровые площадки, коробка с профессиональным покрытием для игры во флорбол, веревочный парк, скалодром, 2 спортивные площадки с искусственным покрытием, линейка (форум), воркаут, клуб на 500 человек с большой танцевальной площадкой, теннисный зал, образовательный центр, медицинский бдок с круглосуточным медицинским обслуживанием и др. В лагере представлена разнообразная тематика смен, поэтому у детей и родителей существует возможность выбора наиболее интересного направления развития ребенка, соответствующего личностным особенностям. В 2024 году в лагере будут проведены спортивная, профориентационная, научно-техническая, краеведческая, творческие смены. В каждой смене присутствует профориентационный компонент: для обучения и развития детей привлекаются специалисты из различных сфер, которые показывают работу "изнутри", делятся с ребятами профкомпетенциями и навыками, формируют интерес к будущей профессиональной деятельности. На площадки привлекаются специалисты крупных организаций, профессионалы с большой буквы, в том числе медийные личности. Среди экспертов - профессионалы московской киношколы им. МакГаффина, региональной общественной организации "Школы кино "Инфильм", представители известных музеев, театров и фотошкол, спортивных организаций города Архангельска. На базе лагеря "Северный Артек" открыто первичное отделение российского движения детей и молодежи "Движение первых": образование, культура, спорт, волонтерство, экология, патриотизм, туризм, наука, медиа и другое. В каждой смене мастер-классы, фестивали, квест-шоу, ярмарки, спартакиады, флешмобы, турниры, курсы, интеллектуальные игры. Таким образом, лагерь создает условия для раскрытия потренциала каждого ребенка в самых разнообразных сферах, его всестороннего развития. Эксклюзивные программы воспитания помогут стать детям уверенными в себе и успешными в будущем. | AF20: не имеется | AG20: 1960 г., здания, строения и сооружения, находящиеся на территории ЗСДОЛ «Северный Артек» | AH20: СЭЗ № 29.01.04.000.М.000516.05.25 от 29.05.2025 г. | AI20: Новодвинским территориальным отделом Управления Федеральной службы по надзору в сфере защиты прав потребителей и благополучия человека по Архангельской области в ходе проведения профилактического визита 14.07.2024 г., нарушений обязательных требований не выявлено | AJ20: Лицензия № ЛО-29-01-002931 от 04.08.2020 г. Серия 29ЛО1 № 0001702 | AK20: Выписка из реестра лицензий № Л035-01270-29/00236515 от 23.05.2022 г. | AL20: В корпусе № 5 установлены: перекатной пандус ПП01 (ширина 80 см); беспровдная кнопка вызова помощи А310; установка табличек на стены на саморезах: тактильные контрастные указатели перед ступенями лестницы (тактильная плитка); противоскользящие коврики (для улицы, перед дверями); комплексные тактильные таблички для кабинетов и помещений; тактильно-визуальный знак "Женский туалет" и "Мужской туалет"; тактильно-визуальный знак пиктограмма направление движения СП11; порог, алюминевая накладка с 2-мя вставками; расширены проемы в санузлах и душевых, установлено сиденье для душа откидное с упором в пол 2 Алсера. В столовой расширены проемы. На территории ЗСДОЛ "Северный Артек" есть медицинский пункт расположенной в отделеном здании корпус со всем необходимым оборудованием для хранения лекарственных препаратов и соблюдения режима лечения. | AM20: Утверждена директором ГАУ АО «ЦДО «Северный Артек» Н.В. Цываревой 12.05.2025 г. | AN20: https://clck.ru/3MMBaU
A21: 9 | B21: 9 | C21: Детский оздоровительный лагерь "Буревестник" филиал муниципального бюджетного общеобразовательного учреждения "Североонежская средняя школа" (ДОЛ "Буревестник" МБОУ "Североонежская школа") | D21: муниципальная/ Плесецкий муниципальный округ Архангельской области | E21: Кулакова Оксана Евгеньевна | F21: 2920008300 | G21: Юридический адрес: 164268, Архангельская область, Плесецкий район, раб. пос. Североонежск, 2-й микрорайон, д. 16 8 (81832) 6-40-88 E-mail: sevsshdir@mail.ru Фактический адрес: 164273, Архангельская область, Плесецкий район, с. Федово Тел/факс: 8 (81832) 6-51-54; +7 (921) 479-61-50 | H21: http://www.sevsossh.edusite.ru/magicpage.html?page=45634 | I21: лагерь, организованный образовательной организацией, с круглосуточным пребыванием | J21: сезонный | O21: 01.07.2025-21.07.2025 | P21: 192 | Q21: 25.07.2025-03.08.2025 | R21: 192 | S21: 07.08.2025-16.08.2025 | T21: 192 | U21: 20.08.2025-29.08.2025 | V21: 192 | AC21: 2,300.00 | AD21: 6,5-17 лет | AE21: Режим работы – круглосуточно. Дети размещены в 6-ти спальных корпусах. Площадь одного корпуса - 153, 3 кв. м. Корпуса разделены на 4 комнаты по 8 человек. Площадь одной комнаты – 32,2 кв. м. В комнате на каждого ребенка кровать, прикроватная тумба, а также платяной шкаф с отдельными полками, письменный стол и стулья. В общем коридоре расположена полка для обуви, стол, шкаф.Столовая расположена в отдельно стоящем здании, оснащена современным оборудованием. Имеется запас столовой и кухонной посуды. Для подачи горячей воды на пищеблок используются водонагреватели. Для организации досуга имеется библиотека (с фондом книг более 1000 экземпляров), помещение для кружковой работы, площадки для отдыха, летняя эстрада (открытая площадка), современный Модуль Пати-Тент (площадью 48 м2), качели, игровые площадки, зрительный зал на 60 посадочных мест.На территории имеется закрытая площадка для игры в настольный теннис, современные уличные спортивные тренажеры, футбольное, баскетбольное и волейбольное поле. Для организации физкультурно-оздоровительных мероприятий используются зеленые массивы, спортивный инвентарь и сооружения, полоса препятствий.На территории лагеря, отдельно от основных построек, расположен открытый бассейн с раздевалками на 2 человека и скамьями для отдыха. Для санитарно-гигиенических нужд установлены умывальники с оборудованной подводкой холодной воды установлены на улице возле туалетов. Умывальники оснащены мылом, бумажными полотенцами. Умывальные помещения для гигиенических процедур оснащены мойками для ног и находятся на улице возле спальных корпусов. Дети (по необходимости) моются в бане. Баня имеет женское и мужское отделения. Для девушек имеется гигиеническая комната. На территории лагеря находится прачечная с оборудованной подводкой воды, сливом, тазами для стирки вещей и скамьями, вешалами для сушки белья в естественных условиях. Имеются: стиральные машины – автомат, сушильная машина и сушильный шкаф. Все оборудование в исправном состоянии. | AF21: На территории лагеря имеется бассейн, территория бассейна ограждена забором | AG21: 1966 г., корпуса, столовая; 2001 г., здание бани; 2015 г., частичный капитальный ремонт (столовая, клуб) | AH21: СЭЗ № 29.01.04.000.М. 000584.06.25 от 30.06.2025 г. | AI21: Представление об устранении причин и условий, способствующих совершению административного правонарушения главного управления министерства РФ по делам гражданской обороны, чрезвычайным ситуациям и ликвидации последствий стихийных бедствий по Архангельской области от 10.06.2024 г. № 29240061000210803342, от 16.05.2024 г. на основании решения № 2404/514-29/27 – В/РВП /нарушения устранены 12.06.2024 г. Предписание об устранении выявленных нарушений обязательных требований Управление Роспотребнадзора по Архангельской области от 09 июля 2024г. № 29240041000110951896/, замечания устранить до 01.06.2025 г., замечания устранены в рамках капитального ремонта | AJ21: Лицензия № ЛО-29-01-002679 от 26.04.2019 г. Приложение 1 к Лицензии № ЛО-29-01-002679 от 26.04.2019 года выдана МБОУ "Североонежская школа" | AK21: Выписка из реестр лицензий № ЛО35-01270-29/00236706 от 13.01.2016 г. | AL21: Имеется паспорта доступности на объектах: спальный корпус №1, №2, помещение библиотеки и комната кружковой работы, медпункт, столовая-клуб В соответствии с п. V «Управленческие решения по срока и объемам работ..» паспорта доступности прописаны мероприятия по созданию условий для детей- инвалидов и детей с ограниченными возможностями здоровья. Крайний срок до 2030 года | AM21: Утверждена приказом от 28.04.2025 г. № 336 ОД | AN21: https://sevsossh.edusite.ru/sveden/files/07ddec60b00782d870b3076fb9d6d983.pdf
A22: 10 | B22: 10 | C22: Детский оздоровительный лагерь "Мечтатель" муниципального бюджетного учреждения дополнительного образования "Спортивная школа г. Онеги" (ДОЛ "Мечтатель" МБУ ДО "Спортивная школа г. Онеги") | D22: муниципальная/ "Онежский муниципальный район Архангельской области" | E22: Иконникова Наталья Вячеславовна | F22: 2906000571 | G22: Юридический и фактический адрес: 164840, Архангельская область, г. Онега, пер. Спортивный, д. 1, стр. 2 Тел: 8 (81839) 7-30-50; 8 (81839) 7-39-36 E-mail: dvoreconega@yandex.ru | H22: https://dvoreconega.nubex.ru/9166/ | I22: лагерь, организованный образовательной организацией, с круглосуточным пребыванием | J22: сезонный | O22: 27.06.2025-10.07.2025 | P22: 80 | Q22: 14.07.2025-27.07.2025 | R22: 80 | W22: 25.10.2025-31.10.2025 | X22: 80 | AC22: 2300.00 | AD22: 7-17 лет | AE22: Режим работы: круглосуточный. Организовано 5-разовое питание в столовой на 70 посадочных мест в две смены и медицинское сопровождение. Для размещения имеются благоустроенные комнаты по 2-5 человек, душ, туалет в комнате. Для досуга детей: экскурсии, кружки по интересам, тематические встречи, игры-викторины, различные игровые, обучающие, развлекательные и познавательные программы и др. А такжке спортивные площадки и сооружения для волейбола, баскетбола, бадминтона, настольного тенниса, футбольное поле, беговая дорожка, площадка ГТО. | AF22: не имеется | AG22: 1977 г. | AH22: СЭЗ № 29.01.04.000.М.000519.05.25 от 30.05.2025 г. | AI22: Предписание Роспотребнадзора 87/06 от 12.07.2024 снято с контроля 01.08.2024 г. | AJ22: Лицензия № ЛО41-01152-29/00309478 от 01.11.2016 г. | AK22: Лицензия № 6193 от 18.03.2016 г. | AL22: Дети с нарушением речи | AM22: Утверждено Директор МБУ ДО "Спортивная школа г. Онеги" Приказ № 57 от 12.05.2025 г. | AN22: https://r1.nubex.ru/s6749-836/f3041_63/Программа_Мечтатель_2024.pdf
A23: 11 | B23: 11 | C23: Детский лагерь отдыха "Орлёнок" структурное подразделение муниципального бюджетного учреждения дополнительного образования "Дом детского творчества" (ДЛО "Орленок" СП МБУДО "ДДТ") | D23: муниципальная/ Вельский муниципальный район Архангельской области | E23: Лоскутова Ирина Николаевна | F23: 2907004770 | G23: Юридический адрес: 165150, Архангельская область, г. Вельск, ул. Набережная, д. 37 Тел.: 8(81836)6-37-47; 8(81836)6-28-76 Фактический адрес: 165150, Архангельская область, Вельский район, дер. Ерёминская, д. 20, стр. № 4,5,6,7, 8,13,19; ул. Красная, д.8 Е-mаil: ddtvelsk@yandex.ru | H23: https://orlenok.ddtvelsk.ru/p1aa1.html | I23: лагерь, организованный образовательной организацией, с круглосуточным пребыванием | J23: сезонный | M23: 11.06.2025-26.06.2025 | N23: 48 | O23: 30.06.2025-15.07.2025 | P23: 48 | Q23: 19.07.2025-03.08.2025 | R23: 48 | S23: 07.08.2025-22.08.2025 | T23: 48 | AC23: 2,372.42 | AD23: 6,5-17 лет | AE23: Лагерь расположен в 4 км от города Вельск, в Вельском районе, дер. Ерёминская, д. 20. Организовано 5-разовое питание и медицинское сопровождение. Мощность лагеря- 50 мест, расположенных в двух спальных корпусах. Территория лагеря огорожена. На территории лагеря размещены футбольное поле с твердым грунтовым покрытием, спортивный городок (турник, брусья, рукоходы), волейбольная площадка, лыжероллерная трасса. В темное время суток имеется дежурное освещение тропинок. Жилые корпуса имеют: 4 спальные комнаты, помещения санитарно-бытового назначения, туалеты, умывальники, место для мытья ног, стирки белья, душевые кабины. Установлен шкаф для просушки одежды и обуви. Имеются комнаты для хранения вещей. Мероприятия для досуга детей: различные культурно-массовые и спортивные мероприятий, творческие мастерские, психологические тренинги, походы, посещение музея, военно-спортивные игры. | AF23: не имеется | AG23: 1965 г. | AH23: СЭЗ № 29.01.04.000.М.000649.08.25 от 05.08.2025 г. | AI23: Министерство труда, занятости и социального развития Архангельской области акт №11 от 29.05.2024 г. проверки требований за обеспечением антитеррористической защищенности объектов (территорий) | AJ23: Лицензия № Л041-01152-29/00665692 от 24.07.2023 г. | AK23: Лицензия № ЛО35-01270-29/00236734 от 10.10.2016 г. | AL23: Имеются условия для хранения лекарственных препаратов для медицинского применения. | AM23: Утверждено методическим советом протокол № 1 от 30.04.2025 г. | AN23: https://orlenok.ddtvelsk.ru/DswMedia/pvlageryaorlenok2025.pdf
A24: 12 | B24: 12 | C24: Детский оздоровительный лагерь "Авангард" на базе структурного подразделения государственного бюджетного общеобразовательного учреждения Архангельской области "Архангельский Губернаторский морской кадетский корпус имени Адмирала Флота Советского Союза Н.Г. Кузнецова" (ДОЛ "Авангард" ГБОУ АО "АГМКК") | D24: государственная | E24: Докучаев Сергей Яковлевич | F24: 2901068008 | G24: Юридический адрес: 163046, г.Архангельск, ул. Карла Маркса, д. 51. Тел.: 8(8182) 65-55-06 Фактический адрес: 164173, Архангельская область, г. Мирный, ул. Заозерная, д.26, д.26, корп.1; корп. 2; д. 26, корп. 3; д. 26, корп. 4; д. 26, строение 1 Е-mail: director@arhcadet.ru | H24: https://arhcadet.ru/ | I24: лагерь, организованный образовательной организацией, с круглосуточным пребыванием | J24: сезонный | M24: 07.06.2025-27.06.2025 | N24: 100 | O24: 01.07.2025-18.07.2025 | P24: 180 | Q24: 21.07.2028-07.08.2025 | R24: 180 | S24: 11.08.2025-20.08.2025 | T24: 30 | AC24: 2,585.00 | AD24: 7-17 лет | AE24: Режим работы: круглосуточно Организовано 5-ти разовое питание и медицинское сопровождение. Имеются игровые комнаты, спортивный зал, спортивные площадки. Запланированные мероприятия: организация культурно-массовых и спортивных мероприятий, творческие мастерские, психологические тренинги, походы, посещение музея, космодрома, аквапарка, бассейна. | AF24: нет | AG24: здание спального корпуса №1 (год постройки –1969) - здание спального корпуса №2 (год постройки –1969) - здание спального корпуса №3(год постройки –1969) - здание клуба (год постройки – 1969) - здание лечебного корпуса, школы (год постройки 1980,) - здание административного корпуса со столовой на 150 посадочных мест (год постройки 1969) | AH24: СЭЗ № 29.01.04.000.М.000387.05.25 от 20.05.2025 г. | AI24: нет | AJ24: Выписка из реестра лицензий № Л041-01152-29/00331769 от 17.05.2019 г. | AK24: № Л035-01270-29/00236539 от 06.05.2019 г. | AL24: Условия для хранения лекарственных препаратов – есть. Назначены сотрудники, осуществляющие сопровождение детей – инвалидов и детей с ОВЗ (при необходимости) в процессе оказания им услуг по организации отдыха и оздоровления. Специализированные санузлы. Категории детей с ОВЗ: - слабослышащие - слабовидящие | AM24: Программа утверждена приказом директора ГБОУ АО «АГМКК» №133-ОД от 06.05.2025 г. | AN24: https://arhcadet.ru/upload/iblock/cc4/lon1wkl42cwqtmsu2xcnr93bwokp2sih/Программа%20воспитания%20ДОЛ%20Аванград.pdf
A25: 13 | B25: 13 | C25: Оздоровительный лагерь "Альтаир" МБОУ "Наводовская основная школа" с круглосуточным пребыванием детей (ОЛ "Альтаир" МБОУ "Наводовская ОШ") | D25: муниципальная | E25: и.о. директора Макарова Антонина Валерьевна | F25: 2924003261 | G25: Юридический адрес: 165163, Архангельская область, Шенкурский район, дер. Никифоровская, ул. Лесная, д. 2. Тел.: 8(818-51) 4-66-24 Фактический адрес: 165160, Архангельская область, Шенкурский муниципальный округ, дер. Кроминская, д. 22 В/1 строение 1, 2, 3; дер. Никифоровская, ул. Молодежная, д.1а Е-mail: nawodowo@rambler.ru | H25: https://nawodowoschool.ucoz.ru/index/dol_quot_altair_quot/0-204 | I25: лагерь, организованный образовательной организацией, с круглосуточным пребыванием | J25: сезонный | S25: 14.08.2025-23.08.2025 | T25: 50 | AC25: 1,498.92 | AD25: 6,5-17 лет | AE25: Режим работы: круглосуточно. В лагере два спальных корпуса для проживания. В каждом спальном корпусе имеется 4 комнаты для проживания. В комнате проживают 6-7 человек. В каждой комнате кровать (одно- и двухярусная), тумбочки прикроватные, стулья, стол, шкафы под одежду и личные принадлежности. Каждый корпус оборудован игровой комнатой, душевой кабиной и туалетами. Каждый отряд проживает в своем корпусе. В ОЛ «Альтаир» организовано пятиразовое питание. Ежедневно в меню свежие фрукты и овощи. Меню формируется в соответствии с требованиями и нормами СанПиН – основного нормативного документа детского оздоровительного лагеря. Материально-техническое обеспечение реализации программ смен лагеря включает в себя: • флагшток, Государственный флаг Российской Федерации, флаг Архангельской области • мультимедийный проектор и экран, телевизоры; • музыкальное оборудование и необходимые для качественного музыкального оформления фонограммы; • оборудованные локации для общелагерных и отрядных событий, отрядные места, отрядные уголки (стенды); • спортивная площадка и спортивный инвентарь (мячи волейбольные, футбольные, баскетбольные; коврики для фитнеса, др.); • канцелярские принадлежности в необходимом количестве для качественного оформления программных событий (ватманы, офисная бумага А4, цветная бумага, цветные карандаши, клей-карандаш, маркеры, ножницы, др.); • оборудование для благоустройства и озеленения территории лагеря (хозяйственные перчатки, садовый и уборочный инвентарь: грабли, мётлы, лейки, ведра, тяпки, др.); • дидактические материалы (настольные игры; ассоциативные метафорические карты; подборка с фильмами; др.) Для реализации программ смен при необходимости привлекаются ресурсы партнеров. Запланированные мероприятия: организация культурно-массовых и спортивных мероприятий, творческие мастерские, походы. | AF25: нет | AG25: медицинский пункт, 1969 г.; спальный корпус 2, 1971 г.; спальный корпус 3, 1985 г.; пищеблок, 2024 г. | AH25: СЭЗ № 29.01.04.000.М.000656.08.25 от 07.08.2025 г. | AI25: Проверок не было | AJ25: Лицензия № Л041-01152-29/02830344 от 31.07.2025 | AK25: Лицензия № 6163 от 20.02.2016 г. | AL25: Нозологические группы детей, которые принимает лагерь: • с нарушениями слуха (слабослышащие), • с нарушениями зрения (слабовидящие), • с нарушениями опорно-двигательного аппарата (сколиоз, плоскостопие, др.), • соматически ослабленные (часто болеющие дети, с сахарным диабетом, онкологическим заболеванием, др.). Лагерь принимает на отдых и оздоровление детей с ОВЗ и инвалидностью, которые не нуждаются в создании специальной среды и у которых не наблюдаются стойкие специфические трудности в общении и взаимодействии, препятствующие освоению содержания программы смены совместно с нормативно развивающимися сверстниками. В ДОЛ «Альтаир» используется модель формирования отрядов, при котором дети с ОВЗ и инвалидностью находятся в одном отряде с нормотипичными детьми. | AM25: Программа утверждена директором МБОУ «Наводовская ОШ» Семакова Л.С. Приказ № 53 от 22.07.2025 г. | AN25: https://nawodowoschool.ucoz.ru/2025-2026/programma_2025.pdf
B26: 13 | L26: =SUM(L13:L25) -> 0 | N26: =SUM(N13:N25) -> 859 | P26: 1790 | R26: 1782 | T26: 1409 | V26: 459 | X26: 510 | Z26: 0 | AB26: 0
B27: 1.2 Лагеря, созданные на базе санаторно-курортных организациях
A28: 14 | B28: 1 | C28: Детский оздоровительный лагерь "Солониха" на базе лечебно-профилактического учреждения "Санаторий "Солониха" (ДОЛ "Солониха" ЛПУ "Санаторий "Солониха") | D28: некоммерческая/ Союз организаций профсоюзов "Федерация профсоюзов Архангельской области"/ Красноборский муниципальный округ Архангельской области | E28: Григорьева Анна Васильевна | F28: 2914000511 | G28: Юридический и фактический адрес: 165434, Архангельская область, Красноборский район, дер. Курорт Солониха Тел/факс: 8 (818-40) 3-27-47; 8 (818-40) 3-27-17 E-mail: solonixa@mail.ru, solonixam@mail.ru | H28: https://solonixa.ru/childrencamp/ | I28: организация отдыха детей и их оздоровления сезонного или круглогодичного действия, с круглосуточным пребыванием | J28: сезонный | M28: 02.06.2025-22.06.2025 | N28: 60 | O28: 25.06.2025-15.07.2025 | P28: 60 | Q28: 18.07.2025-07.08.2025 | R28: 60 | S28: 10.08.2025-30.08.2025 | T28: 60 | AC28: 2,900.00 | AD28: от 6,5-17 лет | AE28: Дети проживают в трех деревянных двухэтажных зданиях. В комнатах размещаются от 3-х до 5-ти человек. В каждом корпусе имеются комнаты для отдыха и организации культурно-воспитательной работы. В корпусах проведена холодная и горячая вода. Оборудованы комнаты гигиены, постирочные. Туалеты на этажах, в санитарских комнатах - унитазы, раковины, ногомойки. В корпусах № 2 и 3 на 1 этаже – душевая комната, биде, сушилка для одежды и обуви. Корпуса оснащены телевизорами, видеомагнитофонами, настольными играми. На территории санатория имеется клуб, библиотека, спортивная площадка. Имеется компьютерный класс. Организованы кружки по интересам. Организуются экскурсии в музеи с. Красноборск, Дом-дача художника А.А. Борисова, г. Великий Устюг, Туровец и др. Питание: 6- разовое (завтрак, второй завтрак, обед, полдник, ужин, второй ужин) диетическое меню. В рацион регулярно включаются фрукты и овощи. Показания для лечения заболеваний в санатории (дети с заболеваниями):- костно-мышечной системы; нервной системы; мочевыделительной системы; сердечно сосудистой системы; хронические заболевания ЛОР – органов; кожные болезни; офтальмология (глазные болезни); урологические заболевания. | AF28: не имеется | AG28: детский корпус № 2, 1970 г.; детский корпус № 3, 1971 г.; столовая, 1980 г.; клуб, 1960 г.; водогрязелечебница, 1974 г. | AH28: СЭЗ № 29.01.04.000.М.000506.05.25 от 28.05.2025 г. | AI28: 2025 год. - Управление образования администрации Красноборского муниципального округа, МО МВД России «Красноборский», ОНД и ПР Верхнетоемского и Красноборского районов 21.05.2025 года – в ходе проведения проверки, нарушения не выявлены. - Отдел надзорной деятельности и профилактической работы Верхнетоемского и Красноборского района УНД и ПР главного управления МЧС России по Архангельской области: 1. Акт выездной проверки № 2505/515-29/25-В-АВП от 29.05.2025 года (территория санатория): – в ходе проведения проверки нарушения не выявлены; 2. Акт выездной проверки № 2505/515-29/22-В/АВП от 29.05.2025 года (корпус № 2): - нарушения устранены в ходе проведения проверки. 3. Акт выездной проверки № 2505/515-29/24-В/АВП от 29.05.2025 года (корпус № 3): - нарушения устранены в ходе проведения проверки. 4. Акт выездной проверки № 2505/515-29/21-В/АВП от 29.05.2025 года (столовая): - пункты 1-4 Предписания – нарушения устранены в ходе проведения проверки; - пункт 5 Предписания, устранено. 5. Акт № 2505/515-29/23-В/АВП от 29.05.2025 года (клуб): - пункт 1 Предписания - срок устранения до 30.07.2025 года. В ОНД и ПР Верхнетоемского и Красноборского районов подано ходатайство о продлении срока исполнения Предписания. Удовлетворено до 01.09.2025 года. - пункты 2 – 8 – нарушения устранены в ходе проведения проверки. - Министерство образования Архангельской области 30.05.2025 года, плановая проверка соблюдения требований к антитеррористической защищенности ДОЛ Солониха» на базе ЛПУ «Санаторий «Солониха» – ведутся переговоры, подана заявка на установку жесткого диска для сохранения тридцатидневной информации с камер видеонаблюдения. | AJ28: Лицензия № ЛО-29-01-002853 от 06.02.2020 г. | AK28: Лицензия № 6421 от 06.03.2017 г. | AL28: Нарушение зрения, слуха и нарушения опорно-двигательного аппарата. Условия созданы: • пандус с перилами при входе в лечебный корпус; • контрастная маркировка в столовой, в лечебном корпусе, жилом корпусе, на тротуаре по территории санатория; • мнемосхемы со шрифтом Брайля в лечебном корпусе, детском жилом корпусе, на главных воротах; • поручни в туалетах лечебного корпуса, столовой, жилом корпусе № 4; • холодильник для хранения лекарственных препаратов; | AM28: Утверждено главным врачом ЛПУ "Санаторий "Солониха" А.В. Григорьевой от 28.10.2024 г. приказ № 129 | AN28: https://solonixa.ru/childrencamp/
C29: Лечебно – профилактическое учреждение "Санаторий "Солониха" (ЛПУ "Санаторий "Солониха") | I29: санаторно-курортное оздоровление | J29: круглогодичный | M29: 03.06.2025-16.06.2025 | N29: 5 реб+ 5 мать | O29: 24.06.25-07.07.25 | P29: 5 реб+ 5 мать | Q29: 15.07.2025-28.07.2025 | R29: 2 реб+ 2 мать | S29: 05.08.2025-18.08.2025 | T29: 2 реб+ 2 мать | AC29: корпус № 4 7850,00 (мать 4600,00 ребенок 3250,00) корпус № 6 8300,00 (мать 4900,00 ребенок 3400,00) | AD29: 3-7 лет | AE29: Дети проживают в кирпичном двухэтажном здании. В комнатах размещаются 2 человека (мать и ребенок). В корпусе проведена холодная и горячая вода, душевые комнаты с сушилками для одежды, имеются холодильник, телевизор. На территории санатория имеется клуб, библиотека, спортивная площадка. Имеется компьютерный класс. Организованы кружки по интересам. Организуются экскурсии в музеи с. Красноборск, Дом-дача художника А.А. Борисова, г. Великий Устюг, Туровец и др. Питание: 6- разовое (завтрак, второй завтрак, обед, полдник, ужин, второй ужин) диетическое меню. В рацион регулярно включаются фрукты и овощи. Показания для лечения заболеваний в санатории (дети с заболеваниями) -костно-мышечной системы; нервной системы; мочевыделительной системы; сердечно сосудистой системы; хронические заболевания ЛОР – органов; кожные болезни; офтальмология (глазные болезни); урологические заболевания; гинекологические заболевания | AF29: не имеется | AG29: детский корпус № 4, 1976 г.; столовая, 1980 г.; клуб, 1960 г.; водогрязелечебница, 1974 г. | AH29: СЭЗ № 29.24.01.082.М.000198.04.04 от 19.04.2004 г. бессрочно | AI29: 2025 год. - Управление образования администрации Красноборского муниципального округа, МО МВД России «Красноборский», ОНД и ПР Верхнетоемского и Красноборского районов 21.05.2025 года – в ходе проведения проверки, нарушения не выявлены. - Отдел надзорной деятельности и профилактической работы Верхнетоемского и Красноборского района УНД и ПР главного управления МЧС России по Архангельской области: 1. Акт выездной проверки № 2505/515-29/25-В-АВП от 29.05.2025 года (территория санатория): – в ходе проведения проверки нарушения не выявлены; 2. Акт выездной проверки № 2505/515-29/22-В/АВП от 29.05.2025 года (корпус № 2): - нарушения устранены в ходе проведения проверки. 3. Акт выездной проверки № 2505/515-29/24-В/АВП от 29.05.2025 года (корпус № 3): - нарушения устранены в ходе проведения проверки. 4. Акт выездной проверки № 2505/515-29/21-В/АВП от 29.05.2025 года (столовая): - пункты 1-4 Предписания – нарушения устранены в ходе проведения проверки; - пункт 5 Предписания, устранено. 5. Акт № 2505/515-29/23-В/АВП от 29.05.2025 года (клуб): - пункт 1 Предписания - срок устранения до 30.07.2025 года. В ОНД и ПР Верхнетоемского и Красноборского районов подано ходатайство о продлении срока исполнения Предписания. Удовлетворено до 01.09.2025 года. - пункты 2 – 8 – нарушения устранены в ходе проведения проверки. - Министерство образования Архангельской области 30.05.2025 года, плановая проверка соблюдения требований к антитеррористической защищенности ДОЛ Солониха» на базе ЛПУ «Санаторий «Солониха» – ведутся переговоры, подана заявка на установку жесткого диска для сохранения тридцатидневной информации с камер видеонаблюдения. | AJ29: Лицензия № ЛО-29-01-002853 от 06.02.2020 г. | AK29: Лицензия № 6421 от 06.03.2017 г. | AL29: Условия созданы : • пандус с перилами при входе в лечебный корпус; • контрастная маркировка в столовой, в лечебном корпусе, жилом корпусе, на тротуаре по территории санатория; • мнемосхемы со шрифтом Брайля в лечебном корпусе, детском жилом корпусе, на главных воротах; • поручни в туалетах лечебного корпуса, столовой, жилом корпусе № 4; • холодильник для хранения лекарственных препаратов; | AM29: санаторно-курортное лечение | AN29: санаторно-курортное лечение
B30: 1.3 Лагеря палаточного типа
A31: 15 | B31: 1 | C31: Стационарный оборонно-спортивный палаточный лагерь "Архангел" муниципального автономного учреждения дополнительного образования городского округа "Город Архангельск" "Центр технического творчества, спорта и развития детей "Архангел" (МАУ ДО "Центр "Архангел" Стационарный оборонно-спортивный палаточный лагерь "Архангел") | D31: муниципальная/ городской округ "Город Архангельск" | E31: Фомин Александр Анатольевич | F31: 2901075037 | G31: Юридический адрес: 163009, г. Архангельск, ул. Октябрят, д. 4 корп. 4 Фактический адрес: 163009, г. Архангельск , о. Краснофлотский, ул. Песчаная, д. 1; просп. Никольский, д. 96 (приготовление пищи) Тел: 8 (8182) 29-52-08 Факс: 8 (8182) 62-05-95 E-mail: arhctt@bk.ru | H31: https://arhctt.profiedu.ru/?section_id=47 | I31: детский лагерь палаточного типа стационарный с проживанием в палатках | J31: сезонный | M31: 06.06.2025-17.06.2025 | N31: 66 | O31: 21.06.2025-02.07.2025 06.07.2025-17.07.2025 | P31: 214 | AC31: 2,750.00 | AD31: 8-17 лет | AE31: Режим работы: круглосуточно. Условия проживания – армейские. Проживание организовано в палатках по 7 человек. В рамках проведения лагеря предусмотрены: туалетный модуль, рукомойники, душ, а также предусмотрен организованный выезд в баню. Обеспечено пятиразовое питание и медицинское сопровождение. Имеется спортивная площадка, тактический городок, воркаут-площадка, туристская полоса, техническая зона.Запланированные мероприятия: Блок военно-патриотических мероприятий (занятия, конкурсы, экскурсии, родительский день с выступлением тактической группы); Блок спортивно-оздоровительных мероприятий (спортивно-технический праздник, соревнования);Блок культурно-досуговых мероприятий (праздник, посвященный открытию лагеря, экскурсии, просмотр кинофильмов, смотр-конкурс стоя и песни, праздник, посвященный закрытию лагеря); Блок общественно-полезных мероприятий (акции, флэшмоб и др.). | AF31: не имеется | AG31: сцена с верандой, 2014 г.; огневой рубеж с крышей; туристиченская полоса; лабиринт, 2014 г.; тактический городок,2020 г.; площадка для установки палаток, 2014 г.; площадка "Воркаут", 2023 г.; турник разноуровневый двойной, 2021 г.; стрелково-стнедовой комплекс "Архангел", 2016 г. | AH31: СЭЗ № 29.01.04.000.М. 000585.07.25 от 01.07.2025 г. | AI31: Акт плановой выездной проверки от 26.07.2024 года № 290\2024 (Федеральная служба по надзору в сфере защиты прав потребителей и благополучия человека) Акт проверки выполнения требований за обеспечением антитеррористической защищенности объектов (территорий), предназначенных для организации отдыха детей и их оздоровления стационарного и нестационарного типа, расположенных на территории Архангельской области от 03.07.2024 г. № 12 (Министерство труда, занятости и социального раз-вития Архангельской области) | AJ31: Договор № 325 от 05.06.2025 г. с Ростовским С.В. | AK31: Лицензия № 6720 от 13.09.2021 г. | AL31: Условия не созданы | AM31: Принято методическим советом № 2 от 06.05.2025 г. Утверждено Директором МАУ ДО «Центр «Архангел» Приказ № 90 от 07.05.2025 г. | AN31: https://disk.yandex.ru/d/Le5ec--1CDoFlQ
A32: 16 | B32: 2 | C32: Палаточный (профильный) лагерь "Подборье" муниципального бюджетного общеобразовательного учреждения "Ильинская средняя общеобразовательная школа" (МБОУ "Ильинская средняя общеобразовательная школа" Палаточный (профильный) лагерь "Подборье") | D32: муниципальная/ "Вилегодский муниципальный округ Архангельской области" | E32: Горностай Михаил Николаевич | F32: 2909001559 | G32: Юридический адрес: 165680, Архангельская область, Вилегодский район, с. Ильинско-Подомское, ул. Ленина, д. 7 Фактический адрес: 165682, Архангельская область, Вилегодский район, МО "Павловское", дер. Подборье Тел: 8 (81843) 4-13-35, Факс: 8 (81843) 4-13-17 Е-mail: ipschool@mail.ru | H32: https://ipschool.ru/letniy-lager-podbore/ | I32: детский лагерь палаточного типа стационарный с проживанием в палатках | J32: сезонный | M32: 09.06.2025-20.06.2025 | N32: 50 | O32: 23.06.2025-04.07.2025 07.07.2025-18.07.2025 | P32: 120 | AC32: 1500.00 | AD32: 10-17 лет | AE32: Режим работы: круглосуточный. Размещение детей в лагере прпоисходит в шестиместных палатках оборудованными металлическими кроватями. Питание 5-ти разовое, происходит в организованной зоне под навесом на 60 посадочных мест. Приготовление пищи производится на базе столовой МБОУ "Ильинская средняя общеобразовательная школа". На территории лагеря имеется спортивная зона, где располагается: баскетбольная площадка, футбольное поле, скаладром, волейбольная площадка, спортивная полоса препятствий, туристическое оборудование и спортивный инвентарь, лагертаг, веревочный парк. Санитарный блок-контейнер разделенный на две части для мальчиков и девочек и имеющий 4 сан.узла и 2 душа. Запланированные мероприятия: организация культурно-массовых и спортивных мероприятий, обучение навыкам туризма. | AF32: не имеется | AG32: 2014 г. | AH32: СЭЗ № 29.01.04.000.М.000921.12.24 от 16.12.2024 г. | AI32: Профилактический визит Управления Роспотребнадзора по АО Коряжемский территориальный отдел Акт профилактического визита № 7/04/2024 от 18.07.2024 г., предписаний нет | AJ32: Договор № 28 от 25.09.2024 г. с медицинским работником Чернокова Н.В. | AK32: Лицензия № 6218 от 01.04.2016 г. | AL32: Дети с сахарным диабетом 1 типа, с ДЦП легкой степени, дети с ОВЗ VII вида с задержкой психического развития. Есть возможность хранения и выдачи медицинских препаратов, организация диетического питания | AM32: Утверждено директором школы, принято на Методическом совете Протокол № 5 от 07.05.2025 г. | AN32: https://ipschool.ru/letniy-lager-podbore/
A33: 17 | B33: 3 | C33: Специализированный стационарный палаточный (профильный) лагерь "Экологический лагерь Кенозерья "ЭЛК" федерального государственного бюджетного учреждения "Национальный парк "Кенозерский" (ФГБУ "Национальный парк "Кенозерский" Специализированный стационарный палаточный (профильный) лагерь "Экологический лагерь Кенозерья "ЭЛК") | D33: государственная/ министерство природных ресурсов и экологии Российской Федерации/ Пинежский муниципальный округ Архангельской области | E33: и.о.директора Яковлева Александра Вячеславовна | F33: 2901037465 | G33: Юридический адрес: 163000, г. Архангельск, ул. Набережная Северной Двины, д. 78 Тел: 8 (8182) 28-65-23; Фактический адрес: 164136, Архангельская область, Каргопольский муниципальный округ, Печниковский территориальный отдел, б.н.п. Масельга, Тел/факс: 8 (8182) 20-65-72, 8 (8182) 28-58-55 Е-mail: kadr@kenozero.ru ecoedu@kenozero.ru | H33: http://www.kenozero.ru/detyam/park-detyam/ekologicheskie-lagerya-kenozerya/ | I33: детский лагерь палаточного типа стационарный с проживанием в зданиях | J33: сезонный | M33: 11.06.2025-20.06.2025 | N33: 60 | O33: 14.07.2025-27.07.2025 | P33: 60 | AC33: 2 смена 3770,00 3 смена 3357,14 | AD33: 10-17 лет | AE33: В уютном и живописном уголке Кенозерского национального парка, в деревне Масельга, расположенной в 80 км от древнего города Каргополя, среди сосновых лесов и голубых озер, находится детский экологический лагерь Кенозерья. В течение каждой смены участники лагеря занимаются в экспедиционных отрядах, под руководством опытных специалистов проводят научные исследования по гуманитарным и естественнонаучным специализациям, изучают историю и культуру деревень, традиции древнерусского искусства, проводят исследования леса, метеорологические наблюдения в природе и др. Увлекательные тур-прогулки разной степени сложности и продолжительности позволяют усовершенствовать туристические навыки. Разнообразные мастер-классы по плетению из бересты, лепке из глины сочетаются с интересными экскурсиями и позволяют участникам лагеря получить полное представление об истории и культуре Русского Севера, особенностях уклада жизни русской деревни. Условия проживания и материально-техническая база: размещение в рубленых деревянных домиках на 4, 6 и 8 человек; пятиразовое питание в кухне-столовой; ежедневно топится баня, деревянные рубленные туалеты и умывальники на улице, осуществляется медицинское сопровождение; для занятий оборудованы конференц-зал и веранды; имеется туристическое снаряжение и оборудование; наличие информационно-методической базы; отсутствует электроснабжение; мобильная связь неустойчивая (в отдельных местах) и только Мегафон. | AF33: не имеется | AG33: 2003 г., кухня столовая; 2018 г., баня; 2003 г., конференц-центр; 2003 г., медицинский пункт; 2003 г. 2005 г., жилые дома | AH33: СЭЗ № 29.01.04.000.М.0000553.07.25 от 09.06.2025 г. | AI33: Министерства труда, занятости и социального развития АО Акт № 305-а3/13 от 04.07.2024 г.проверки выполнения требований за обеспечением антитеррористической защищенности объектов, предназначенных для организации отдыха детей и их оздоровления стационарного и нестационарного типа, расположенных на территории АО, нарушений не выявлено. Профилактический визит Плесецкого территориального отдел управления Роспотребнадзора по АО Акт и проток профилактического визита от 11.07.2024 г, нарушений не выявлено. Управление надзорной деятельности и профилактической работы Главного управления МЧС России по АО Акт выездной проверки осуществления федерального государственного пожарногонадзора 3 2406/511-29/75-П/АВП, нарушений не выявлено | AJ33: Договор заключается на период работы лагеря | AK33: нет | AL33: В организации частично созданы условия отдыха и оздоровления детей с ограниченными возможностями: 1) Имеются пандусы к месту питания и спортивным объектам; 2) Оборудован медицинский блок, где хранятся лекарственные препараты для медицинского применения; 3) На каждой смене лагеря присутствует квалифицированный медицинский работник. Работник проводит первичную и повторную антропометрию всех детей, а также следит за состоянием здоровья отдыхающих на протяжении всей смены; 4) Имеется туалетная комната, оборудованная поручнями и пандусом; 5) Ближайшие к базе лагеря экологические тропы оборудованы деревянными настилами и перилами для безопасного и комфортного передвижения. | AM33: Утверждено и.о. директора ФГБУ «Национальный парк «Кенозерский» А.В. Яковлевой 14.05.2025 г. | AN33: http://www.kenozero.ru/detyam/park-detyam/ekologicheskie-lagerya-kenozerya/deyatelnost-po-organizatsii-detskogo-otdykha-v-kenozere/
A34: 18 | B34: 4 | C34: Детский лагерь палаточного типа "Сказка лета-2025" государственного бюджетного комплексного учреждения Архангельской области общего типа "Каргопольский центр социальной помощи семье и детям" (ГБКУ АО "Каргопольский центр социальной помощи семье и детям" Детский лагерь палаточного типа "Сказка лета-2025") | D34: государственная / министерство труда, занятости и социального развития Архангельской области/ Каргопольский муниципальный округ Архангельской области | E34: Горшкова Светлана Михайловна | F34: 2911004839 | G34: Юридический адрес: 164110, Архангельская область, г. Каргополь, пер. Ленинградский, д. 2 «а» Тел/факс: 8 (81841) 2-11-73 E-mail: priutkar@yandex.ru Фактический адрес: 164120, Архангельская область, Каргопольский район, МО "Ухотское", урочище "Надполье", гостевой комплекс "Лёкшма-речка" | H34: https://priutkar.ru/?page_id=6045 | I34: детский лагерь палаточного типа стационарный с проживанием в палатках | J34: сезонный | O34: смена отменена | P34: 0 | Q34: смена отменена | R34: 0 | AC34: 3,517.11 | AD34: 11-17 лет | AE34: Палаточный лагерь функционирует как стационарный непередвижной. Режим работы круглосуточный. Размещение на территории гостевого комплекса «Лёкшма-речка» в палатках и шатрах. Каждый проживающий в лагере имеет индивидуальное спальное место. Организованно 3-х разовое питание (привозное горячие питание с доставкой пищи в термоконтейнерах). Специалисты, работающие с детьми, имеют высшее и среднее педагогическое образование, многолетний опыт работы в детских коллективах. Программа 1 смены посвящена тематике года, объявленной Президентом Российской Федерации. Программа 2 смены – «Истории старого города». Запланированные мероприятия: организация культурно-массовых и спортивных мероприятий, творческие мастерские, психологические тренинги | AF34: не имеется | AG34: 2025 г. | AH34: СЭЗ № 29.01.04.000.М.000639.06.24 от 06.06.2024 г. по адресу: пер. Ленинградский, д. 2 «а» «В связи с окончанием срока действия санитарно-эпидемиологического заключения организация отдыха не имеет право предоставлять услугу по отдыху и оздоровлению детей» | AI34: Акт профилактического визита от 29.07.2024 г., учётный номер № 29240041000111007460 – Плесецкий территориальный отдел Управления Роспотребнадзора по Архангельской области, замечания частично устранены (срок до 01.06.2025 г.). | AJ34: Лицензия №ЛО-29-01-002893 от 07.05.2020 г. | AK34: Лиценция № 6651 от 23.04.2021 г. | AL34: Пребывание детей инвалидов и детей с ограниченными возможностями здоровья на территории палаточного лагеря планируется, кроме инвалидов- колясочников. Медицинское сопровождение круглосуточное – медицинская сестра учреждения . | AM34: Принято методическим советом № 3 от 12.05.2025 г. Утверждено Директором ГБКУ АО от 12.05.2025 г. | AN34: clck.ru/3M7DZm
A35: 19 | B35: 5 | C35: Детский военно-патриотический лагерь "Архистратиг" Общество с ограниченной ответственностью "Иоанновский Городок" (ООО "Иоанновский Городок" Детский военно-патриотический лагерь "Архистратиг") | D35: коммерческая/ Пинежский муниципальный округ Архангельской области | E35: Гарматенко Александр Иванович | F35: 7801661848 | G35: Юридический адрес: 199178, г. Санкт-Петербург, ул. 19-я линия В.О., д. 34, корпус 2, литер О, офис 301 Фактический лагерь: 164630, Архангельская область, Пинежский район, дер. Засурье Тел: +7 (999) 007-60-74 E-mail: ioannprihod@mail.ru | H35: https://arhistratig-sura.ru | I35: детский лагерь палаточного типа стационарный с проживанием в зданиях | J35: сезонный | O35: 20.06.2025-05.07.2025 10.07.2025-25.07.2025 | P35: 100 | Q35: 29.07.2025-13.08.2025 | R35: 50 | AC35: 2,380.00 | AD35: 9-17 лет | AE35: Режим работы: круглосуточно. Организовано 5 разовое питание и медицинское сопровождение (мед. кабинет с врачом). Имеются: столовая на 100 посадочных мест, помывочная, палатки для проживания по 50 человек, корпуса и учебные классы, игровая площадка, концертный зал, спортивный зал, спортивные площадки. Запланированные мероприятия: организация военно-спортивной подготовки, организация итоговой военно-спортивной игры «Зарница», организация культурно-массовых и спортивных мероприятий, творческие мастерские, психологические тренинги, походы, посещение храмов, посещение музея | AF35: не имеется | AG35: палатки, 2019 г; оновные здания, 2020 г.; здание столовой, 2020 г. | AH35: СЭЗ № 29.01.04.000.М.000927.12.24 от 24.12.2024 г. | AI35: Предписание ОНДиПР Пинежского района Архангельской области от 28.06.2024 г. № 2405/512-29/48-П/АВП, замечаний 9, замечания устранены | AJ35: Лицензия № ЛО-29-01-003004 от 09.06.2021 г. Договор заключается на период работы лагеря | AK35: нет | AL35: Условия не созданы | AM35: Утверждена приказом генерального директора ООО "Иоанновский городок" от 10.05.2025 г. № 7 | AN35: https://arhistratig-sura.ru/upload/documents/programm2025.pdf
A36: 20 | B36: 6 | C36: Специализированный (многопрофильный) лагерь "Формула единства – путь к успеху"муниципального бюджетного общеобразовательного учреждения городского округа "Город Архангельск" "Средняя школа №14 с углублённым изучением отдельных предметов имени Я.И.Лейцингера" (МБОУ СШ №14" Специализированный (многопрофильный) лагерь "Формула единства – путь к успеху") | D36: муниципальная/ городской округ "Город Архангельск" | E36: Труфанова Ольга Николаевна | F36: 2901058585 | G36: Юридический адрес: 163000, г. Архангельск, просп. Троицкий, д. 130 Тел: 8 (8182) 21-59-06 E-mail: moush14@list.ru Фактический адрес: 164610, Архангельская область, Пинежский район, пос. Голубино, д. 6, д. 9, д. 10 | H36: http://mboussh14.arkh.eduru.ru/mp_lager | I36: детский лагерь палаточного типа стационарный с проживанием в зданиях | J36: сезонный | M36: 13.06.2025-24.06.2025 | N36: 40 | AC36: 3,000.00 | AD36: 13-17 лет | AE36: Проживание в гостинице-пансионате в комфортабельных номерах на 2-3 человека. В каждом номере имеются: односпальные кровати, стол со стульями, туалетная комната с душем, телевизор. Пятиразовое питание в ресторане. Всегда есть в наличии чистая и свежая вода. Программа лагеря предусматривает учебные занятия. Экскурсионная программа проводится на базе ООО «Голубино». Имеется спортивная площадка для игры в волейбол, баскетбол, пионербол, площадка для игры футбол, спортивные тренажеры, детская игровая площадка | AF36: не имеется | AG36: 2011 г.; капитальный ремонт, 2019 г. | AH36: СЭЗ № 29.01.04.000.М.000528.06.25 от 03.06.2025 г. | AI36: Предписание Федеральной службой по надзору в сфере защиты прав потребителей и благополучия человека от 08.02.2024 г. №66/пр, замечания будут устранены до 10.09.2025 г. | AJ36: Договор заключается на период работы лагеря | AK36: Лицензия № 6727 от 22.09.2021 г. | AL36: Условия не созданы | AM36: Утверждено Педагогический Совет № 9 от 07.05.2025 г. | AN36: http://mboussh14.arkh.eduru.ru/media/2025/06/06/1312267158/Programma_vospitaniya_2025.pdf
A37: 21 | B37: 7 | C37: Лагерь палаточного типа "Эрудит" муниципального бюджетного общеобразовательного учреждения "Устьянская средняя общеобразовательная школа" (МБОУ "Устьянская СОШ" лагерь палаточного типа "Эрудит") | D37: муниципальная/ "Устьянский муниципальный округ Архангельской области" | E37: Рогачёва Ирина Сергеевна | F37: 2922004855 | G37: Юридический адрес: 165230, Архангельская область, Устьянский район, с. Шангалы, ул. 50 лет Октября, д. 1 Тел: 8 (81855) 5-45-09 E-mail: ustschool@bk.ru Фактический адрес: 165233, Архангельская область ,Устьянский район, с. Шангалы, ул. Восточная, д.13/2; ул. 50 лет Октября, д. 1 | H37: https://ustschool.ucoz.ru/index/letnij_otdykh/0-142 | I37: детский лагерь палаточного типа стационарный с проживанием в зданиях | J37: сезонный | Q37: 18.07.2025-27.07.2025 | R37: 29 | AC37: 1,500.00 | AD37: 11-18 лет | AE37: Режим работы: круглосуточно. Организовано 5-разовое питание и медицинское сопровождение. Имеются спортивный, актовый залы, многофункциональная спортивная площадка, спортивный стадион, необходимый инвентарь для проведения спортивных мероприятий. Проживание в палатках (при плохих погодных условиях в комнатах) по 3-4 человека. Туалетные комнаты и душевые раздельно для мальчиков и девочек. Имеются помещения для стирки и сушки белья. Комната отдыха оборудована мягкой мебелью, столами и стульями и телевизором. Запланированные мероприятия: настольные игры, организация культурно-массовых, спортивных мероприятий, мастер-классов, а также выезд на профориентационные мероприятия в рамках всероссийского Чемпионата «Лесоруб 21 века». | AF37: не имеется | AG37: 1983 г. - здание интерната, ул. Восточная, д.13/2 1994, здание основной школы (с. Шангалы, ул. 50 лет Октября, д.1); кап ремонт, 2024 г. | AH37: СЭЗ № 29.01.04.000.М.000622.07.25 от 17.05.2025 г. | AI37: Предписание Вельского территориального отдела Управления роспотребнадзора по АО № 859/2024-пр от 26.08.2024 г., замечания устранены. Уведомление о снятии предписания Вельского территориального отдела Управления Роспотребнадзора по Архангельской области от 10.06.2025 г. № 29-01/01-1165-2025 | AJ37: Лицензия № ЛО41-01152-29/00001709 от 15.03.2022 г. | AK37: Лицензия № 6057 от 26.11.2015 г. выписка из реестра лицензий № ЛО35-01270-29/00372846 от 26.11.2015 г. | AL37: В основном здании в наличии пандус, направляющая тактильная плитка с выступами, кнопка вызова. Назначены сотрудники, осуществляющие сопровождение детей – инвалидов и детей с ОВЗ в процессе оказания им услуг по организации отдыха и оздоровления. | AM37: Утверждено приказом и.о. директора МБОУ «Устьянская СОШ» № 61 ОД от 07.05.2025 г. Протокол педагогического Совета №13 от 07.05.2025 г. | AN37: https://cloud.mail.ru/public/QkgT/JMBxJoLLy
A38: 22 | B38: 8 | C38: Специализированный (профильный) спортивно-туристический лагерь "Гремячий" местной общественной организации "Спортивный клуб "Контакт" (МОО "СК Контакт" Специализированный (профильный) спортивно-туристический лагерь "Гремячий") | D38: некоммерческая/ "Устьянский муниципальный округ Архангельской области" | E38: Шубин Владислав Михайлович | F38: 2922990076 | G38: Юридический адрес: 165210, Архангельская область, Устьянский район, пос.Октябрьский, ул. Победы, д.10, кв.8 Фактический адрес: 165210, Архангельская область, Устьянский район, дер. Починовская Тел: +7 (931) 403-98-13 E-mail: vladmih79@yandex.ru | H38: https://skkontakt.ucoz.net/index/organizacija_letnego_otdykha/0-5 | I38: детский лагерь палаточного типа стационарный с проживанием в палатках | J38: сезонный | M38: 05.06.2025-14.06.2025 | N38: 15 | O38: 18.06.2025-07.07.2025 11.07.2025-24.07.2025 | P38: 40 | Q38: 28.07.2025-16.08.2025 | R38: 25 | AC38: 2,600.00 | AD38: 7-17 лет | AE38: Палаточный лагерь, дети проживают в палатках по 3 человека, банные дни 1 раз в 3 дня, питание 5-и разовое костровое. Реализуется программа «Следопыт». В период пребывания в лагере с детьми работают опытные инструкторы по туризму и каратэ, организованы спортивные состязания. На территории лагеря имеются спортивные площадки и тургородок для занятий туризмом. Организовано медицинское сопровождение на протяжении всей смены. | AF38: не имеется | AG38: баня, 2021 г.; пищеблок, 2012 г.; игровая, 2018 г.; баня, 2019 г.; административное здание , 2024 г. | AH38: СЭЗ № 29.01.04.000.М. 000531.06.25 от 04.06.2025 г. | AI38: Акт проверки выполнения требований за обеспечением антитеррористической защищенности объектов № 1 от 29.05.2024 (нарушений не выявлено). Управление Федеральной службы по надзору в сфере защиты прав потребителей и благополучия человека по Архангелькой области Вельский территориальный отдел (плановая выездная проверка) Предписание от 20.09.2023 г. № 323/2023пр (нарушения устранены) | AJ38: Договор № б/н от 20.03.2018 г. ГБУЗ АО «Устьянская ЦРБ» | AK38: нет | AL38: Дети с ОВЗ, ЗПР, РАС, слабовидящие и слабослышащие (Индивидуальный подход, имеется непосредственный опыт) | AM38: Утверждено Председатель МОО "СК Контакт" 05.05.2025 г. Приказ от 05.09.2025 г. № 2 | AN38: https://skkontakt.ucoz.net/programma_vospitanija.pdf
A39: 23 | B39: 9 | C39: Палаточный лагерь "Сбор старшеклассников с. Копачёво" общественной организации "Архангельский городской штаб школьников им. А.П. Гайдара" (ОО "Архангельский городской штаб школьников им. А.П. Гайдара" Палаточный лагерь "Сбор старшеклассников с. Копачёво") | D39: некоммерческая/ Холмогорский муниципальный округ Архангельской области | E39: Дурнев Владимир Николаевич | F39: 2926011170 | G39: Юридический адрес: 163061, г. Архангельск, Набережная Северной Двины, д. 73 Тел: 8 (8182) 43-22-61 Фактический адрес: 164569, Архангельская обл., Матигорское территориальное отделение Холмогорского муниципального округа, у дер. Кричевское Тел.: 8-921-086-1421 E-mail: shtab@inbox.ru | H39: https://shtab.vercel.app/senior | I39: детский лагерь палаточного типа стационарный с проживанием в палатках | J39: сезонный | O39: 02.07.2025-21.07.2025 | P39: 100 | AC39: 1376.40 | AD39: 14-17 лет | AE39: Режим работы: круглосуточно. Организовано 4-х разовое питание и медицинское сопровождение. Проживание в палатках по 5 человек, в наличии 19. Имеются помещения для досуговых мероприятий, комната для теоретических занятий, помещения для организации обучения бальным танцам, спортивные площадки. Запланированные мероприятия: лекции, разговоры, занятия по организации работы совета старшеклассников, Движения Первых, культурно-массовых и спортивных мероприятий, творческие мастерские, психологические тренинги. Плетение маскировочных сетей и изготовление блиндажных свечей для СВО. | AF39: Имеется, СЭЗ № 29.01.04.000.М.000573.06.25 от 23.06.2025 г. | AG39: 1999 г. | AH39: СЭЗ № 29.01.04.000.М.000572.06.25 от 23.06.2025 г. | AI39: В письме заместителя главного государственного инспектора Приморского и Холмогорского районов АО по пожарному надзору о снятиии предписания № 2306/513-29/67-П/ПВП от 13.07.2023 г. настоятельно рекомендуется в 2025 г. сделать освещение дорожек к туалетам. Проверка по антитеррору, замечаний нет. | AJ39: Договор заключается на период работы лагеря ГБУЗ АО "Холмогорская ЦРБ" | AK39: нет | AL39: Условия не созданы | AM39: Утверждено директором Дурнев В.Н. от 15.05.2025 г. | AN39: https://shtab.vercel.app/documents/Program%20for%20High%20School%20Students.pdf
A40: 24 | B40: 10 | C40: Специализированный (профильный) лагерь палаточного типа "Пять стихий" муниципального бюджетного образовательного учреждения дополнительного образования муниципального образования Верхнетоемского муниципального округа "Верхнетоемский центр дополнительного образования" (МБОУ ДО "Верхнетоемский ЦДО" "Специализированный (профильный) лагерь палаточного типа "Пять стихий" ) | D40: муниципальная/ "Верхнетоемский муниципальный округ Архангельской области" | E40: и.о.директора Водовозова Елена Александровна | F40: 2908003627 | G40: Юридический адрес: 165500, Архангельская область, Верхнетоемский район, с. Верхняя Тойма, ул. Комсомольская, д. 12 Тел: 8 (81854) 3-19-43, E-mail: vtdussh@yandex.ru vtrcdo.direktor@yandex.ru Фактический адрес: 165500, Архангельская область, Верхнетоемский район, дер. Тоймушка; ул. Угрюмова , д. 7 | H40: https://vt-rcdo.ru/7545/7567/ | I40: детский лагерь палаточного типа стационарный с проживанием в палатках | J40: сезонный | O40: 30.06.2025-09.07.2025 | P40: 20 | AC40: 900.00 | AD40: 10-17 лет | AE40: Специализированный (профильный) лагерь палаточного типа «Пять стихий» (далее по тексту - лагерь): 2 смена - с 30 июня по 09 июля 2025 года в деревне Тоймушка Верхнетоемского округа (отдаленность от с. Верхняя Тойма - 3,5 км) Планируемое количество воспитанников лагеря: 20 человек в возрасте от 10 до 18 лет. Профиль лагеря – детский лагерь палаточного типа, направленность профильной смены – спортивно – туристическая, военно-патриотическая. Режим работы лагеря – круглосуточно, продолжительность смены – 10 дней, кратность питания – 3-х разовое горячее питание, приготовленное на костре, два полдника (дневной – между обедом и ужином, вечерний – между ужином и сном). Продолжительность ночного сна – 10 часов, дневного сна – 1,5 часа. Размещение палаточного лагеря: лагерь размещен на сухой, не заболоченной, незатопляемой дождевыми водами территории с ровным рельефом; территория лагеря обозначена по периметру оградительной лентой; на территории лагеря произведена акарицидная обработка; территория лагеря поделена на зоны: жилая зона, административно-хозяйственная, санитарно-бытовая; за территорией лагеря на расстоянии не менее 25 метров от жилой зоны и пищеблока размещается место для сбора и хранения мусора. Для воспитанников лагеря будут созданы условия: Организация жилой зоны: жилая зона оборудована непромокаемыми палатками с плотно закрывающимися входами и открывающимися засетчатыми клапанами-окнами; дно палаток выполнено из влагоизоляционного материала; палатки отдельные для девочек и мальчиков, количество проживающих в палатке 3-4 человека; каждый проживающий в палатке имеет спальное место, оборудованное теплоизоляционным ковриком, спальным мешком и индивидуальным комплектом постельного белья.Организация административно-хозяйственной зоны: в административно-хозяйственной зоне находятся палатка администрации лагеря, пищеблок, продовольственная палатка, палатка со снаряжением, медицинский пункт, установленные под тентом; на территории пищеблока размещается кухня для приготовления пищи, место для приема пищи, умывальник для мытья рук и моечная для посуды; медицинский пункт размещен в отдельной палатке и оборудован аптечкой для оказания неотложной помощи в соответствии с СанПиН 2.4.3648-20. Организация санитарно-бытовой зоны: 2 умывальника с отводом сточных вод; два туалета кратковременного пользования раздельно для мальчиков, девочек и персонала на расстоянии не менее 25 метров от жилой зоны и пищеблока; наличие запаса моющих, чистящих и дезинфицирующих средств - обеспеченность по требованию; - водоснабжение – бутилированная негазированная вода, питьевой режим – охлажденная кипяченая вода с использованием при питье индивидуальных личных кружек; Укомплектованность работниками - 4 чел., из них: - начальник лагеря – 1 чел. - инструктор по спортивному туризму и краеведению – 1 чел. - воспитатель –1 чел. - повар – 1 человек Воспитанники лагеря пройдут обучение по основам туристической подготовки, для дальнейшего участия в ежегодном муниципальном туристическом слете: научатся ориентироваться в лесу и на открытой местности, работать с компасом, разжигать костер с одной спички, узнают о правилах и хитростях ночевки, освоят технику пешеходного туризма, приобретут разнообразные туристко-прикладные навыки, научатся преодолевать военно-спортивный марш-бросок с привлечением пожарной службы и т.д. и, конечно же, будут заниматься своими любимыми делами: играть в спортивные игры, эстафеты, заняться рисованием или иным видом творчества. | AF40: не имеется | AG40: нет | AH40: СЭЗ № 29.01.04.000.М.000730.08.24 от 02.08.2024 г. | AI40: Северо – Западное управление Ростехнадзора Акт проверки от 09.07.2023 г. № 17/707, устранено 02.10.2023 г. Акт проверки от 17.07.2023 г. № 309 | AJ40: Договор № 91-2023 от 01.12. 2023 г. ГБУЗ АО "Верхнетоемская ЦРБ" | AK40: Лицензия № 6265 от 25.05.2016 г. | AL40: Назначены сотрудники, осуществляющие сопровождение детей – инвалидов и детей с ОВЗ (при необходимости) в процессе оказания им услуг по организации отдыха и оздоровления | AM40: Утверждено: Приказ № 10-ОД от 05.05.2025 г. | AN40: https://r1.nubex.ru/s6098-3e5/f1440_58/Программа%20специализированного%20(профильного)%20лагеря%20палаточного%20типа%20%20ПЯТЬ%20СТИХИЙ%20на%202025%20.pdf
A41: 25 | B41: 11 | C41: Поисковый палаточный лагерь "Нам Память досталась в наследство" Региональная общественная организация гражданско-патриотического воспитания "Архангельский региональный учебный поисковый центр" (РОО АРУПЦ Поисковый палаточный лагерь "Нам Память досталась в наследство" ) | D41: некоммерческая/ Приморский муниципальный округ Архангельской области | E41: Недзвецкая Елена Васильевна | F41: 2901298900 | G41: Юридический адрес: 163013, Архангельск, ул. Мещерского, д. 23, кв. 1 Тел: +7 (900) 913-01-01 Е-mail: poiskcentr29@yandex.ru Фактический адрес: 163504, Архангельская область, Приморский район, д. Черный Яр, д.1, корп. А | H41: https://yar.poisk29.ru/ | I41: детский лагерь палаточного типа стационарный с проживанием в палатках | J41: сезонный | O41: 29.06.2025-08.07.2025 10.07.2025-19.07.2025 | P41: 160 | Q41: 21.07.2025-30.07.2025 | R41: 80 | AC41: 1800.00 | AD41: 7-17 лет; дети 7 лет с туристической подготовкой | AE41: Проживание участников лагеря предусматривается в двухслойных 4-6-х местных палатках, установленных на деревянный поддон. Расположение палаток, согласно «СанПиН 2.4.4.3048-13». Проживание в палатках по 2-4 человека. Места для проживания каждого отряда расположены отдельно, с местом для отрядного сбора. Отдельно определено место для проведения общего сбора лагеря. Питание в лагере 5-ти разовое (завтрак, обед, полдник, ужин, вечерний чай) в обустроенной палатке-шатре: число посадочных мест – 120 человек. Заключен Договор на поставку бутилированной воды с фирмой «Делан». Приобретен кулер для питьевой воды. Для приготовления пищи закуплена армейская полевая кухня (костровое). Для проведения массовых мероприятий, показа видеофильмов, проведение дискотеки закуплена отдельная палатка-шатер. Комплект необходимой аппаратуры. Приобретен бензогенератор на 6,5 кВт для подключения аппаратуры. Так же для нужд лагеря закуплены 2 полевых походных бани, туалетные ккбинки. По обеспечению мероприятий противопожарной безопасности - огнетушители, обкос территории лагеря, предполагается проведение инструктажей по противопожарной безопасности со всеми участниками лагеря. Ответственные лица за безопасность участников лагеря – в дневное время педагогический состав, в ночное время – по договору ГПХ сторож-вахтер. | AF41: не имеется | AG41: нет | AH41: СЭЗ № 29.01.04.000.М.000928.12.24 от 24.12.2024 г. | AI41: Управление Роспотребнадзора по Архангельской области 16.07.2024 г. проведен профилактический визит в форме профилактической беседы по месту осуществления деятельности контролируемого лица. Главное управление Министерства Российской Федерации по делам гражданской обороны, чрезвычайным ситуациям и ликвидации последствий стихийных бедствий по Архангельской области. Профилактический визит проведен 25.06.2024 г. | AJ41: Договор ГПХ № 1 от 07.01.2025 г. с медицинским работником Власовой Н.А. | AK41: нет | AL41: Условия не созданы | AM41: Утверждено директором «Архангельский региональный учебный поисковый центр» Е.В.Недзвецкой Приказ № 19 от 23.04.2025 г | AN41: https://yar.poisk29.ru/wp-content/uploads/2025/04/ПРОГРАММА-на-2025-год.pdf
A42: 26 | B42: 12 | C42: Специализированный профильный лагерь "Школа туризма" с круглосуточным пребыванием ООО "Голубино" (ООО "Голубино" Специализированный профильный лагерь "Школа туризма" с круглосуточным пребыванием) | D42: коммерческая/ Пинежский муниципальный округ Архангельской области | E42: Шестакова Елена Владимировна | F42: 2919007574 | G42: Юридический адрес: 164610, Архангельская область, Пинежский район, пос. Голубино, д. 9 Тел: 8 (8182) 20-09-00; +7 (911) 554-29-00 Е-mail: info@golubino.org ev-shestakova@mail.ru Фактический адрес: 164610, Архангельская область, Пинежский район, пос. Голубино, д. 9, пос. Голубино, д. 10; пос. Голубино, д. 6 | H42: https://golubino.org/school/?ysclid=m10o4r3ulw802514390 | I42: детский лагерь палаточного типа стационарный с проживанием в зданиях | J42: сезонный | M42: 01.06.2025-12.06.2025 | N42: 40 | O42: 29.06.2025-10.07.2025 13.07.2025-24.07.2025 | P42: 80 | Q42: 27.07.2025-07.08.2025 | R42: 40 | S42: 10.08.2025-21.08.2025 | T42: 40 | U42: 23.08.2025-29.08.2025 | V42: 40 | AC42: 4,125.00 | AD42: 7-17 лет | AE42: Голубино - это отличное место для детского отдыха. Свежий воздух, природа и много полезных развлечений. - комфортабельное размещение с удобствами (санузел в номере) на 2-3 человека; - вкусная полезная кухня (5тиразовое питание); - технически оснащенный конференц-зал; - детские игровые площадки; - горки, настольные игры, - организовано медицинское сопровождение. Запланированные мероприятия: организация культурно-массовых и спортивных мероприятий, творческие мастерские, тренинги, походы, посещение музея. Экскурсия по экологической тропе до водопадаь в охранной зоне заповедника «Пинежский», интерактивная игра «Школа туризма», Экодискотеки, рыбалка, гастрономические мастер-классы и многое другое | AF42: не имеется | AG42: кафе, 2009 г.; гостиница, 2011 г., коттедж, 2002 г. | AH42: СЭЗ № 29.01.04.000.М.000102.03.25 от 28.03.2025 г. | AI42: 06.06.2024 Управление Роспортребнадзором по АО (Пинежский ТО) №29-05/05-289-2024 от 29.05.2024 Плановый профилактический визит. Нарушений не выявлено | AJ42: Договор о сотрудничестве по организации медицинского обслуживания детей от 01.04. 2020 г. (с пролонгацией) ООО "Центр лазерной хирургии" | AK42: нет | AL42: Здания оборудованы пандусами, имеется номер для детей-инвалидов. Для лекарственных препаратов есть сейф и холодильник | AM42: Утверждено приказом № 06-1/05 от 06.05.2025 г. генеральным директором ООО «Голубино» Е.В. Шестакова | AN42: https://golubino.org/wp-content/uploads/content/school2025.pdf
A43: 27 | B43: 13 | C43: Специализированный (профильный) палаточный лагерь "Квест-Артек" государственного автономного учреждения Архангельской области "Центр детского отдыха "Северный Артек" (ГАУ АО "ЦДО "Северный Артек" Специализированный (профильный) палаточный лагерь "Квест-Артек") | D43: государственная/ министерство труда, занятости и социального развития Архангельской области/ Холмогорский муниципальный округ Архангельской области | E43: Цыварева Наталья Викторовна | F43: 2901237175 | G43: Юридический адрес: 163009, г. Архангельск, ул. Прокопия Галушина, д. 6, каб. 10 Тел: +7 (921) 082-74-49 E-mail: severartek@yandex.ru Фактический адрес: 163534, Архангельская область, Емецкий территориальный отдел администрации Холмогорского муниципального округа, дер. Бор Тел: 8 (81830) 2-17-44 | H43: https://www.severartek.ru/childrens-vacation/tent-camp-quest-artek/ | I43: детский лагерь палаточного типа | J43: сезонный | O43: 18.06.2025-01.07.2025 03.07.2025-16.07.2025 | P43: 210 | Q43: 18.07.2025-31.07.2025 | R43: 45 | S43: 02.08.2025-15.08.2025 17.08.2025-28.08.2025 | T43: 165 | AC43: 2499,93 при размещении в глэмпингах; 1900,00 при размещении в палатках | AD43: 8-17 лет | AE43: Режим работы: круглосуточно. Организовано 5-разовое питание с элементами «шведский стол».Палаточный лагерь «Квест-Артек» расположен вблизи р. Северная Двина, в 100 метрах от стационарного лагеря «Северный Артек». Формируется 3 отряда по 15-17 человек в соответствии с возрастом. Дети размещаются в современных глэмпингах. Каждый уютный домик имеет просторную комнату с кроватями, где размещаются по 6 человек (всего их 10), терассу для отдыха. Территория лагеря оборудована санитарной зоной с туалетами и умывальниками, местом для сушки одежды и обуви. На территории палаточного лагеря выделены 4 зоны: санитарная (с комфортными туалетами, умывальниками), штабная, костровая и зона расположения отрядов. Душ на территории ЗСДОЛ «Северный Артек». Питание в период пребывания на территории лагеря организовано в столовой ЗСДОЛ «Северный Артек». В палаточном лагере «Квест-Артек» отдыхающие получают бесценный туристический опыт. В программу смен включены занятия в веревочном парке, на скалодроме, пешие и велопоходы, сплавы на катамаранах. За 14 дней смены юные туристы станут одной командой, освоят основы выживания в лесу, приобретут навыки оказания первой помощи. Под контролем вожатых и опытных педагогов-туристов ребята участвуют в различных походах: Холмогорская «кругосветка» (5- дневный поход на велосипедах и катамаранах), Холмогорский «Biking» (выезд в древнее село Хаврогоры, велопрогулки к слиянию реки Пиньгиша и Северной Двины); Поход на озеро Долгое. У ребят развиваются навыки выживания в дикой среде: в лагере дети учатся разжигать костер, ставить палатку, готовить пищу на открытом огне и ориентироваться в неизвестной местности. Приобретенные знания развивают у детей чувство ответственности, самостоятельности и уверенности в своих силах, развивают физические и моральные качества, интерес к познанию окружающего мира.Смены в палаточном лагере «Квест-Артек» создают оптимальные условия для качественного отдыха, оздоровления и углубленного изучения Родного Края. Для отдыхающих проводятся палеонтологические экспедиции, полевые лаборатории, где дети проводят физические и химические опыты с почвой и водой, участвуют в мастер-классах по почвоведению и геологии, экскурсиях к древним храмовым памятникам Архангельской области, собирают коллекции окаменелостей Пермского периода музейного уровня. Изучение исторического и культурного наследия, природы Русского Севера формирует у отдыхающих патриотические чувства и любовь к Малой Родине. Занятия на свежем воздухе, активная туристская деятельность способствует борьбе с гиподинамией – малоподвижным образом жизни. Кроме того, туристские походы и экспедиции являются отличным средством для эффективной социализации подростков. | AF43: не имеется | AG43: нет | AH43: СЭЗ № 29.01.04.000.М.000524.11.23 от 02.06.2025 г. | AI43: Новодвинским территориальным отделом Управления Федеральной службы по надзору в сфере защиты прав потребителей и благополучия человека по Архангельской области в ходе в ходе проведения профилактического визита 14.07.2024 г., нарушений обязательных требований не выявлено. | AJ43: Лицензия № ЛО-29-01-002931 от 04.08.2020 г. | AK43: Выписка из реестра лицензий № Л035-01270-29/00236515 от 23.05.2022 г. | AL43: Услвия не созданы | AM43: Утверждена директором ГАУ АО «ЦДО «Северный Артек» Н.В. Цываревой 12.05.2025 г. | AN43: https://clck.ru/3MMBgF
A44: 28 | B44: 14 | C44: Палаточный лагерь "Белые ночи" муниципального учреждения дополнительного образования "Центр дополнительного образования городского округа Архангельской области "Котлас" (Палаточный лагерь "Белые ночи" МУ ДО "ЦДО") | D44: муниципальная/ Котласский муниципальный округ Архангельской области | E44: Чиркова Елена Леонидовна | F44: 2904008423 | G44: Юридический адрес: 165313, Архангельская область, г. Котлас, ул. Маяковского, д.30 Тел.: 8 (81837) 2-23-97; 8 (81837) 2-46-44 Фактический адрес: 165000, Архангельская область, место Каменный Бор, Котласский район, координаты 61° 9'46.60"С 46°49'40.74"В e-meil: cdokotlas@mail.ru | H44: https://cdokotlas.ru/camp/belnochcamp/ | I44: детский лагерь палаточного типа стационарный с проживанием в палатках | J44: сезонный | M44: 05.06.2025-16.06.2025 | N44: 25 | O44: 18.06.2025-27.06.2025 01.07.2025-10.07.2025 | P44: 120 | AC44: 1 смена - 1500,00 2,3 смены - 1800,00 | AD44: 12-17 лет | AE44: Платочный лагерь "Белые ночи" расположен в сосновом бору у лесной речки Лименда. Вместимость лагеря составляет от 50 до 60 детей. Режим работы: круглосуточно. Организовано 5-ти разовое питание (1 смена костровое, 2 и 3 смены полевая кухня) и медицинское сопровождение. В лагере имеются:- жилая зона - дети проживают в 2, 3, 4, 6 -х местных палатках, мальчики и девочки размещаются отдельно, каждый проживающий в палаточном лагере имеет индивидуальное спальное место. Хозяйственная зона включает зону приема и приготовления пищи состоит из крытых палаток и шатров со столами и сидячими местами. Зона для проведения образовательных и массовых мероприятий оборудована сценой, оснащена музыкальной аппаратурой, местами для сидения, навесом. Санитарно – бытовая и административно – хозяйственная зоны расположены в отдельно стоящих специализированных палатках. Отрядные места оборудованы с учетом противопожарной безопасности. Медицинский пункт расположен в отдельно стоящей палатке. У участников палаточного лагеря есть возможность ежедневно принять душ, помыться в туристической бане. Организованы крытые туристические туалетные комнаты и умывальники. Электроснабжение осуществляется через бензогенераторы (не на постоянной основе). Лагерь палаточного типа «Белые ночи» дарит ребятам неповторимую атмосферу праздника и дружбы! Каждый день в лагере мальчишки и девчонки задействованы в самых разных (но обязательно современных и интересных) развлечениях и мероприятиях! Атмосфера всеобщей радости и положительного настроя ждет ребят при каждом тематическом дне. Организаторы лагеря готовят для участников только самые современные, модные и интересные проекты: тематические квесты «В поисках легенды», День туризма, игра «Милитари», военная полоса препятствий, День Ивана Купала, День отрядных инициатив, знакомство с проектами российского движения детей и молодежи «Движение Первых», тренинговые программы и мастер – классы, коллективно – творческие дела. Каждый участник лагеря попробует себя в роли лидера отряда, организатора, сценариста, режиссера, ведущего мероприятий, сможет выбрать службу по душе (фото, видео, спорта, информации и т.п.). Специалисты, работающие с детьми, имеют высшее и среднее педагогическое образование, опыт работы в детских коллективах.Каждый специалист, работающий в лагере, отвечает за определенный участок и направление работы с детьми. Интересный отдых на свежем воздухе без гаджетов, актуальная для подростков программа отдыха, опытные педагоги и первоклассные вожатые, разговоры и песни под гитару у костра. | AF44: не имеется | AG44: нет | AH44: СЭЗ № 29.01.04.000.М.000851.11.24 от 01.11.2024 г. | AI44: Плановая проверка антитеррористической защищенности объекта согласно Распоряжения Министерства труда, занятости и социального развития Архангельской области от 23.05.2024 г № 472-р. Акт от 27.06.2024 г. Замечаний нет. Предписаний нет. Плановая проверка палаточного лагеря по пожарной безопасности проведена 27.05.2024 года.Замечаний нет. Предписаний нет. Профилактический визит Котласского территориального отдела Управления Роспотребнадзора по Архангельской области. Акт от 01.07.2024 г. № 04/1016 г., замечаний нет. Предписаний нет. Проверка выполнения требования антитеррористической защищенности объекта (территории), предназначенного для организации отдыха детей и их оздоровления стационарного и нестационарного типа, расположенного на территории Архангельской области, на основании Распоряжения министерства образования Архангельской области от 28.04.2025 г. № 552. По итогу проверки составлен Акт от 04.06.2025 г., замечаний нет. Нарушений не выявлено. Профилактический визит Отдела надзорной деятельности и профилактической работы г. Котласа и Котласского района УНДиПР Главного управления МЧС РФ по Архангельской области. Акт от 10.06.2026 г. №2506/509-29/28-АИ/А. Замечаний нет. Нарушений не выявлено. 1. Выездная проверка начальника Котласского территориального отдела Управления Роспотребнадзора по Архангельской области Елсаковой М.А. от 23 июня 2025 г № 1934, учетный номер в едином реестре контрольных надзорных мероприятий - 29250041000111348124. По итогу проверки составлен.Акт от 14.07.2025 г. №1934.Замечания есть. Указаны в акте. Нарушений не выявлено. | AJ44: Лицензия № ЛО35-01270-29/00236425 от 16.12.2021 г. Договор № 8 от 01.10.2024 г. с Кузнецовой М.О. | AK44: Лицензия № 2408 от 16.12.2021 г. Выписка из реестра лицензий № ЛО35-01270-29/00236425 от 16.12.2021 г. | AL44: Дети с нарушениями речи | AM44: Утверждено Приказ директора МУ ДО «ЦДО» № 230/О от 28.04.2025 г. Согласовано: Методический Совет МУ ДО «ЦДО» № 6 от 28.04.2025 г. | AN44: https://cdokotlas.ru/wp-content/uploads/Программа_воспитательной_работы_палаточного-лагеря_БЕЛЫЕ-НОЧИ-30.04.2025-г.-1.pdf
A45: 29 | B45: 15 | C45: Палаточный лагерь "Рассвет" муниципального бюджетного учреждения дополнительного образования «Дом детского творчества» (ПЛ "Рассвет" МБУДО «ДДТ») | D45: муниципальная/ Вельский муниципальный район Архангельской области | E45: Лоскутова Ирина Николаевна | F45: 2907004770 | G45: Юридический адрес: 165150, Архангельская область, г. Вельск, ул. Набережная, д. 37 Фактический адрес: 165150, Архангельская область, Вельский район, дер. Ерёминская, д. 20; д.20, строение 7; д. 20, строение 13,; д. 20,строение 18, г. Вельск, ул. Красная, д. 8 Тел.: 8(81836) 6-42-59 Е-mаil: mou_118@mail.ru; ddtvelsk@yandex.ru | H45: https://orlenok.ddtvelsk.ru/p1aa1.html | I45: детский лагерь палаточного типа стационарный с проживанием в палатках | J45: сезонный | M45: перенос | N45: 0 | O45: 21.06.2025-30.06.2025 04.07.2025-15.07.2025 | P45: 54 | Q45: 23.07.2025-03.08.2025 | R45: 36 | AC45: 2,404.46 | AD45: 10-17 лет | AE45: Лагерь расположен в 4 км от города Вельск, в Вельском районе, дер. Ерёминская, д. 20. Организовано 5-разовое питание (привозное) и медицинское сопровождение. Проживание в палатках по 12-14 человек. Общее количество палаток 2 шт. На территории палаточного лагеря оборудована санитарно-бытовая зона, которая включает туалеты (выгребные, отдельно для мальчиков и девочек), умывальники у туалета, место для мытья ног и стирки белья, душевые (оборудованы в корпусе). Здание столовой оборудовано местом для помывки рук с подачей теплой воды. Запланированные мероприятия: военно-спортивные игры, эстафеты, спортивные соревнования, творческие мероприятия, мастерские, психологические тренинги, походы, посещение музея. | AF45: не имеется | AG45: палатки, 2023 г.; используемые корпуса стационарного лагеря, 1965 г. | AH45: СЭЗ № 29.01.04.000.М. 000569.06.25 от 19.06.2025 г. | AI45: Министерство труда, занятости и социального развития Архангельской области акт №13 от 05.06.2024 г. проверки требований за обеспечением антитеррористической защищенности объектов (территорий) | AJ45: Лицензия № Л041-01152-29/00665692 от 24.07.2023 г. | AK45: Выписка из реестра лицензий № ЛО35-01270-29/00236734 от 10.10.2016 г. | AL45: Имеются условия для хранения лекарственных препаратов для медицинского применения. | AM45: Утверждено методическим советом Протокол № 1 от 30.04.2025 г. | AN45: https://orlenok.ddtvelsk.ru/DswMedia/pvplrassvet2025.pdf
A46: 30 | B46: 16 | C46: Лагерь палаточного типа "Алые паруса Поморья" при обществе с ограниченной ответственностью "Семь Континентов" (ООО "7 Континентов") | D46: коммерческая/ городской округ "Город Архангельск" | E46: Борыгина Мария Павловна | F46: 2901144756 | G46: Юридический адрес: 163000, Архангельск, просп. Чумбарова-Лучинского, д. 39, оф.28 Фактический адрес: 163000, г. Архангельск, ул. КЛДК, ЗУ 29:22:041020:150 (Кегостров); ул. Комсомольская, д.59 (приготовление питания) тел. 8 (8182) 20-80-10 E-mail: 7knt@mail.ru | H46: https://semcont.ru/camps/alie_parusa | I46: детский лагерь палаточного типа стационарный с проживанием в палатках | J46: сезонный | O46: 16.06.2025-26.06.2025 30.06.2025-09.07.2025 14.07.2025-20.07.2025 | P46: 168 | AC46: 2,800.00 | AD46: 10-17 лет | AE46: Режим работы: круглосуточное пребывание детей на территории лагеря. Питание: 5-ти разовое (привозное), медицинское сопровождение круглосуточно в лагере. Размещение по 4-6 человек. Имеются: крытая беседка со сценой для проведения мастер-классов, игр, концертов, террасы у кемпингов со столиками, креслами и мягкими пуфами (используются как отрядные беседки).. Запланированные мероприятия: организация культурно-массовых и спортивных мероприятий, творческие мастерские, экскурсии, мастер-классы, концерты | AF46: не имеется | AG46: палатки, 2024 г. | AH46: СЭЗ № 29.01.04.000.М.000552.06.25 от 09.06.2025 г. | AI46: Профилактический визит ГУ МЧС России по АО, от 09.06.2025 г. № 2505/505-29/32-ВИ/А, нарушения не выявлены | AJ46: Договор заключаетя на период работы лагеря | AK46: нет | AL46: Лагерь готов принимать детей с ОВЗ, следующих нозологичеких групп, с привлечением специалистов: логопедов, дефектологов, педагогв-психологов, медицинского работника. С нарушением опорно-двигательного аппарата (сколиоз, плоскостопие), ЗПР, ОНР, ФФНР, заикание. Слабослышащие, слабовидящие, часто болеющие дети | AM46: УТВЕРЖДЕНО Генеральным директором ООО «Семь Континентов» Борыгиной М.П утверждена 27.03.2025 г, протокол № 7 | AN46: https://psv4.userapi.com/s/v1/d/ypAqVfzzR47TGOOLDkfDgYR-7XSVZxpEkOLyOlbO-anOZ5zvPuZCTKv7x2LwwssADDV5VIj75C_JAfLOfZxcNZ3BHKEiDnK9_iv7lzn-4I0sDqE2JSGpBQ/Programma_APP_2025.pdf
A47: 31 | B47: 17 | C47: Многопрофильный лагерь палаточного типа "Источник" с круглосуточным пребыванием детей структурного подразделения "Веркольская основная школа имени Ф.А. Абрамова" муниципального бюджетного общеобразовательного учреждения "Карпогорская средняя школа № 118" (МБОУ "Карпогорская СШ № 118" СП "Веркольская основная школа имени Ф.А. Абрамова") | D47: муниципальная/ Пинежский муниципальный округ Архангельской области | E47: Краснова Алла Анатольевна начальник лагеря Онякова Валентина Николаевна | F47: 2919001974 | G47: Юридический адрес: 164600, Пинежский район, Архангельская область, с.Карпогоры, ул. Федора Абрамова, д.2В Фактический адрес: 164606, Архангельская область, Пинежский район, дер. Веркола, ул. Северная, д. 30, тел. 8(81856)7-41-45, E-mail: mou_118@mail.ru | H47: https://kss118.nubex.ru/6466/15987/ | I47: детский лагерь палаточного типа | J47: сезонный | O47: 07.07.2025-10.07.2025 | P47: 28 | Q47: 22.07.2025-28.07.2025 30.07.2025-05.08.2025 | R47: 56 | AC47: 1,500.00 | AD47: 9-17 лет | AE47: Режим работы: Круглосуточно Организовано 5-ти разовое питание в школе и медицинское сопровождение. Имеются две каркасные палатки по 15 мест, оборудованные раскладушками. для досуговой деятельности используется здание школы: классные комнаты, спортивный зал, библиотека; на территории школы спортивная площадка. Для санитарных и гигиенических нужд используется здание школы. Запланированные мероприятия: организация культурно-массовых и спортивных мероприятий, конкурсная программа, прогулки на свежем воздухе | AF47: не имеется | AG47: здание по ул. Северная, д. 30, 1997 г. палатки, 2024 г. | AH47: СЭЗ № 29.01.04.000.М.000864.11.24 от 11.11.2024 г. | AI47: Проверок не было | AJ47: Договор № б/н от 09.10.2024 г. с Хромцовой М.Э. Договор № б/н от 09.10.2024 г. с Стрекаловской И.С. | AK47: Лицензия № Л035-01270-29/00388707 14.01.2021 г. | AL47: Условия созданы для детей-инвалидов и детей с ОВЗ с тяжелыми нарушениями речи, с задержкой психического развития. С целью беспрепятственного доступа в здания предусмотрены пандусы, расширенные дверные проемы. Имеется информация о режиме работы школы на входе, выполненная рельефно-точечным шрифтом Брайля. | AM47: Утверждено приказом директора № 01-154 О.Д. от 07.05.2025 г. | AN47: https://kss118.nubex.ru/6466/15987/15991/
A48: 32 | B48: 18 | C48: Лагерь палаточного типа с круглосуточным пребыванием детей на базе негосударственного образовательного учреждения "Оздоровительный лагерь "Кучкас" (Лагерь палаточного типа с круглосуточным пребыванием детей на базе НОУ"Оздоровительный лагерь "Кучкас") | D48: негосударственная/ Пинежский муниципальный округ Архангельской области | E48: Седунова Татьяна Николаевна | F48: 2919003869 | G48: Юридический адрес: 164637, Архангельская область, Пинежский район, п. Сосновка, ул. Ленина, д.10 Фактический адрес: 164639, Архангельская область, Пинежский район, д. Кучкас Тел: 8( 921) 490-41-06 бухг. 8 (911) 875-04-25 Е-mail: sedunowatn@yandex.ru | H48: https://кучкас.рф/ | I48: детский лагерь палаточного | J48: сезонный | O48: 20.06.2025-29.06.2025 01.07.2025-10.07.2025 | P48: 60 | Q48: 12.07.2025-21.07.2025 23.07.2025-01.08.2025 | R48: 60 | AC48: 1,470.00 | AD48: 8-17 лет | AE48: Лагерь палаточного типа с круглосуточным пребыванием, размещение в палатке по 10 человек (3 палатки). Пятиразовое питание в полевой кухне и медицинское обслуживание. Палатка-баня, навес-шатер. Разнообразие досуга: мастер-классы, образовательные программы, спортивно-массовые мероприятия, культурно-развлекательные программы и т.д. | AF48: не имеется | AG48: нет | AH48: СЭЗ № 29.01.04.000.М.000922.12.24 от 17.12.2024 г. | AI48: Проверок не было | AJ48: Договор № 1 от 01.09.2024 г. на оказание услуг по медобслуживанию: 1 смена - Малинина Е.В.; 2 смена - Булатова А.В.; 3 смена - Цветкова Л.Ю.; 4 смена - Кокорина Л.А. | AK48: нет | AL48: Условия не созданы | AM48: Программа утверждена директорм Седуновой Т.Н. на заседании учредителей Протокол № 2 от 12.05.2025 г. | AN48: https://кучкас.рф/документы/
A49: 33 | B49: 19 | C49: Детский оздоровительный лагерь палаточного типа "Заря" структурное подразделение муниципального бюджетного общеобразовательного учреждения "Подюжская средняя школа имени В.А. Абрамова" (ДОЛ палаточного типа "Заря" СП МБОУ "Подюжская СШ им. В.А. Абрамова") | D49: муниципальная/ Коношский муниципальный округ Архангельской области | E49: Литвинова Наталья Николаевна | F49: 2912003637 | G49: Юридический адрес: 164026, Архангельская область., Коношский район, п. Подюга, ул. Школьная, д. 51 Фактический адрес: 164026, Архангельская обл. Коношский район, п. Подюга, ул.Пионерская, д. 25, строение 8,9,11,14 Тел.: 8(81858) 5-11-32; 8-921-075-09-30; 8-901-044-17-66 E-mail: podugaschool@yandex.ru | H49: https://poduzhskaya-sch.nubex.ru/21879/24863/ | I49: детский лагерь палаточного типа | J49: сезонный | M49: смена перенесена | N49: 0 | O49: 28.06.2025-07.07.2025 11.07.2025-20.07.0225 | P49: 24 | Q49: 23.07.2025-01.08.2025 | R49: 12 | AC49: 2600.00 | AD49: 9-17 лет | AE49: Режим работы: круглосуточно. Организовано 5-ти разовое питание на территории лагеря (приготовление на кухне лагеря), медицинское сопровождение. Проживание в палатках по 6 человек. Общее количество палаток 2 шт. В спальном корпусе № 5, расположенном на территории лагеря, имеется туалетная комната, оборудованная тремя отдельными кабинками с унитазами, моечными раковинами с подводом горячей и холодной воды через локальные водонагреватели. Также используются надворные туалеты выгребного типа, рядом с которыми обустроены рукомойники с мылоуловителями.Запланированные мероприятия: 1. Реализация проектов регионального отделения «Движение Первых». 2.Организация культурно-массовых, творческих и спортивных мероприятий: -Береги природу «Зеленая аптека» (ягоды, грибы, кустарники.); -Знатоки ПДД «У дорожных правил - каникул нет!»; - Спортивные соревнования ГТО «Знаем, Можем, Умеем»; -Квест «Юный спасатель»; -Час памяти (экскурсии к памятнику погибшим ВО, «Аллеи памяти СВО); -Командные соревнования по технике пешеходного туризма; -Командные занятия в кружке «Школа первой помощи»; -Фото кроссы; -Танцевальные музыкальные занятия, песни под гитару; - Дискотека. | AF49: не имеется | AG49: нет | AH49: СЭЗ № 29.01.04.000.М.000737.08.24 от 08.08.2024 г. «В связи с окончанием срока действия санитарно-эпидемиологического заключения организация отдыха не имеет право предоставлять услугу по отдыху и оздоровлению детей» | AI49: Предписание ОНД и Няндомского, Каргопольского и Коношского районов УНД и ПР Главного управления МЧС России по Архангельской области от 26.04. 2024 года № 2404/511-29/60-В/ПВП (замечания устранены). Предписание ОНД и Няндомского, Каргопольского и Коношского районов УНД и ПР Главного управления МЧС России по Архангельской области от 29.05. 2025 года (внеплановая выездная проверка) № 2505/511-29/30-В/ПВП (замечания устранены).Предписание Управления Роспотребнадзора по Архангельской области (профилактический визит) от 10.09.2024 г. № 890/2024 – пр/1. Срок устранения – до 29.09.2026 г. Предписание Управления Роспотребнадзора по Архангельской области (профилактический визит) от 10.09.2024 г. № 890/2024 – пр/2,замечания устранены).Предписание Управления Роспотребнадзора по Архангельской области (профилактический визит) от 18.06.2025 г. № 134/2025-пр. Срок устранения – до 25.07.2025 г. Частично устранено. Акт проверки выполнения требований к антитеррористической защищенности объекта (территории), предназначенного для организации отдыха детей и их оздоровления стационарного и нестационарного типа, расположенного на территории Архангельской области Министерства образования Архангельской области (плановая документарная проверка) от 11.06.2025 г. Нарушения не выявлены.Предписание Управления Роспотребнадзора по Архангельской области (профилактический визит) от 18.07.2025 г. № 1231/2025пр.Срок устранения – до 01.06.2026 г. | AJ49: Договор № б/н от 14.01.2025 г. ГБУЗ АО «Коношская ЦРБ» | AK49: Лицензия № Л035-01270-29/002236918 от 02.09.2014 г. | AL49: Для детей-инвалидов, детей с ограниченными возможностями здоровья (по необходимости) будут назначены сотрудники в процессе оказания им услуг по организации отдыха и здоровья. | AM49: Утверждено приказом директора МБОУ «Подюжская СШ им. В.А. Абрамова» от 30.04.2025 г. № 127/од | AN49: https://r1.nubex.ru/s13442-025/f6581_59/Программа%20воспитания%20%20ДОЛ%20ЗАРЯ%202025г.pdf
B50: 19 | L50: =SUM(L31:L47) -> 0 | N50: =SUM(N31:N47) -> 296 | P50: =SUM(P31:P49) -> 1558 | R50: =SUM(R31:R49) -> 433 | T50: =SUM(T31:T47) -> 205 | V50: =SUM(V31:V49) -> 40 | X50: =SUM(X31:X47) -> 0 | Z50: =SUM(Z31:Z47) -> 0 | AB50: =SUM(AB31:AB47) -> 0 | AE50: Запланированные мероприятия: организация культурно-массовых и военно-спортивных мероприятий, эстафеты, спортивные соревнования
B51: 1.4 Лагеря труда и отдыха с круглосуточным пребыванием детей
B53: 1.5. Лагеря с дневным пребыванием детей
B54: Городской округ «Город Архангельск»
A55: 34 | B55: 1 | C55: Лагерь с дневным пребыванием детей муниципального автономного учреждения дополнительного образования городского округа "Город Архангельск" "Центр технического творчества, спорта и развития детей "Архангел" на базе муниципального бюджетного общеобразовательного учреждения городского округа "Город Архангельск" "Средняя школа № 4 имени Николая Михайловича Рубцова" (МАУ ДО "Центр "Архангел" на базе МБОУ СШ № 4) | D55: муниципальная | E55: Фомин Александр Анатольевич | F55: 2901075037 | G55: Юридический адрес: 163009, г. Архангельск, ул. Октябрят, д. 4, корп. 4 Фактический адрес: 163046, Архангельская область, г. Архангельск, ул. Суфтина, д. 20; ул. Комсомольская, д.59 Тел: 8 (8182) 20-53-83 E-mail: arhschool4@rambler.ru | H55: http://arhschool4.ru/2024-год/ | I55: лагерь, организованный образовательной организацией, с дневным пребыванием | J55: сезонный | M55: 02.06.2025-23.06.2025 | N55: 49 | AC55: 177.64 | AD55: 7-14 лет | AE55: Режим работы лагеря: с 8:30 до 14:30. Организовано 2-х разовое питание и медицинское сопровождение. Имеются игровые комнаты,актовый зал, спортивная комната, спортивная площадка. Запланированные мероприятия: организация культурно-массовых и спортивных мероприятий, творческие мастерские, посещение музея. | AF55: не имеется | AG55: 1977 г. | AH55: СЭЗ № 29.01.04.000.М.000229.04.25 от 25.04.2025 г. | AI55: Предписание Управления Роспотребнадзора по Архангельской области от 11.03.2024 г. № 136/пр, замечания устранены | AJ55: Договор заключается на период работы лагеря ГБУЗ АО "АГДКП" | AK55: Выписка из реестра лицензий № ЛО35-01270-29/00236390 от 22.10.2021 г. Лицензия № 6720 от 13.09.2021 г. МАУ ДО "Центр "Архангел" | AL55: Расширенные дверные проёмы центрального входа для инвалидов-колясочников | AM55: Принято методическим советом № 2 от 06.05.2025 г. Утверждено Директором МАУ ДО «Центр «Архангел» Приказ №90 от 07.05.2025 г. | AN55: http://arhschool4.ru/wp-content/uploads/2025/05/Программа-воспитательной-работы-МБОУ-СШ4.pdf
A56: 35 | B56: 2 | C56: Лагерь с дневным пребыванием детей муниципального автономного учреждения дополнительного образования городского округа "Город Архангельск" "Центр технического творчества, спорта и развития детей "Архангел" на базе муниципального бюджетного общеобразовательного учреждения городского округа "Город Архангельск" "Средняя школа № 10" (МАУ ДО "Центр "Архангел" на базе МБОУ СШ № 10) | D56: муниципальная | E56: Фомин Александр Анатольевич | F56: 2901075037 | G56: Юридический адрес: 163009, г. Архангельск, ул. Октябрят, д. 4, корп. 4 Фактический адрес: 163071, г. Архангельск, ул. Воскресенская, д. 95, корп. 3 Тел: 8 (8182) 29-17-88, директор, секретарь; 8 (8182) 64-07-65, заместитель директора E-mail: shkola10arh@yandex.ru | H56: https://shkola10arh.narod.ru/index/2024-god/0-98 | I56: лагерь, организованный образовательной организацией, с дневным пребыванием | J56: сезонный | M56: 02.06.2025-23.06.2025 | N56: 60 | AC56: 177.64 | AD56: 7-11 лет | AE56: Режим работы лагеря: с 9:00 до 15:00. Организовано 2-х разовое питание и медицинское сопровождение. Имеются игровые комнаты, спортивный зал, спортивные площадки. Запланированные мероприятия: организация культурно-массовых, патриотических и военно-спортивных мероприятий, тренировочные занятия | AF56: не имеется | AG56: основное здание, 1980 г.; кап ремонт, 2023 г. | AH56: СЭЗ № 29.01.04.000.М.000282.04.25 от 30.04.2025 г. | AI56: Предписание Управления Роспотребнадзора по Архангельской области от 28.03.2024 г. № 250/пр. / замечания устранить до 29.09.2026 г. Предписание Управления Роспотребнадзора по Архангельской области от 07.04.2023 №129/пр. / устранение замечаний продлено до 04.04.2025 г. | AJ56: Договор заключается на период работы лагеря ГБУЗ АО "АГДКП" | AK56: Лицензия № 6720 от 13.09.2021 г. МАУ ДО "Центр "Архангел" Выписка из реестра лицензий № ЛО35-01270-29/00236362 от 11.10.2021 г. | AL56: Реализация адаптированных образовательных программ для детей с тяжёлыми нарушениями речи | AM56: Принято Методическим советом № 2 от 06.05.2025 г. Утверждено Директором МАУ ДО «Центр «Архангел» Приказ № 90 от 07.05.2025 г. | AN56: https://shkola10arh.narod.ru/docs/2025/lager/programma_vospitanija_2025.pdf
A57: 36 | B57: 3 | C57: Лагерь с дневным пребыванием детей муниципального автономного учреждения дополнительного образования городского округа "Город Архангельск" "Центр технического творчества, спорта и развития детей "Архангел" на базе муниципального бюджетного общеобразовательного учреждения городского округа "Город Архангельск" "Основная школа № 12 имени Героя Российской Федерации генерал-полковника И.В. Коробова" (МАУ ДО "Центр "Архангел" на базе МБОУ ОШ № 12) | D57: муниципальная | E57: Фомин Александр Анатольевич | F57: 2901075037 | G57: Юридический адрес: 163009, г. Архангельск, ул. Октябрят, д. 4, корп. 4 Фактический адрес: 163053, г. Архангельск, поселок Талажский авиагородок, ул. Авиационная, д. 23, д. 24; ул. Воскресенская, д. 103, корп. 1 Тел/факс: 8 (8182) 63-16-90, директор E-mail: schule12arch@yandex.ru | H57: https://arh-oosh12.edusite.ru/magicpage.html?page=683207 | I57: лагерь, организованный образовательной организацией, с дневным пребыванием | J57: сезонный | M57: 02.06.2025-23.06.2025 | N57: 70 | AC57: 177.64 | AD57: 7-15 лет | AE57: Режим работы лагеря: с 8:30 до 14:30. Организовано 2-х разовое питание и медицинское сопровождение. Имеются игровые комнаты. спортивный зал, спортивные площадки. Запланированные мероприятия: организация культурно-массовых и спортивных мероприятий, творческие мастерские, посещение кинотеатра. | AF57: не имеется | AG57: 1970 г. | AH57: СЭЗ № 29.01.04.000.М.000293.05.25 от 05.05.2025 г. | AI57: Предписание Управления Роспотребнадзора по Архангельской области от 28.02.2024 г. № 133/пр, замечания устранить до 06.10.2025 г. | AJ57: Договор заключается на период работы лагеря ГБУЗ АО "АГДКП" | AK57: Выписка из реестра лицензий № ЛО35-01270-29/00236353 от 24.12.2021 г. Лицензия № 6720 от 13.09.2021 г. МАУ ДО "Центр "Архангел" | AL57: Образовательные адаптированные программы для детей с ограниченными возможностями здоровья (задержка психического развития). Использование интерактивных досок, методических материалов для детей с ОВЗ (для слабослышаших, слабовидящих). При необходимости организация может назначить сотрудника для сопровождения воспитанников с ОВЗ (глухие, слабослышащие, слепые, слабовидящие, НОДА, с ЗПР, с ТНР) | AM57: Принято Методическим советом № 2 от 06.05.2025 г. Утверждено Директором МАУ ДО «Центр «Архангел» Приказ № 90 от 07.05.2025 г. | AN57: https://arh-oosh12.edusite.ru/sveden/files/353a71ee76096bb7621392d6f46a7b6e.pdf
A58: 37 | B58: 4 | C58: Лагерь с дневным пребыванием детей муниципального автономного учреждения дополнительного образования городского округа "Город Архангельск" "Центр технического творчества, спорта и развития детей "Архангел" на базе муниципального бюджетного общеобразовательного учреждения городского округа "Город Архангельск" "Гимназия № 25" (МАУ ДО "Центр "Архангел" на базе МБОУ Гимназия № 25) | D58: муниципальная | E58: Фомин Александр Анатольевич | F58: 2901075037 | G58: Юридический адрес: 163009, г. Архангельск, ул. Октябрят, д. 4, корп. 4 Тел: 8 (8182) 29-52-08 Фактический адрес: 163065, г. Архангельск, пр. Московский, д. 43, корп. 2 Тел: 8 (8182) 66-33-87 E-mail: gym25arh@yandex.ru | H58: https://gym25.arkh-edu.ru/organizatsiya-otdykha-detey-i-ikh-ozdorovleniya/ | I58: лагерь, организованный образовательной организацией, с дневным пребыванием | J58: сезонный | M58: 02.06.2025-23.06.2025 | N58: 181 | AC58: 177.64 | AD58: 7-12 лет | AE58: Режим работы: с 9:00 до 15:00. Шестидневная рабочая неделя. Организовано 2-х разовое питание и медицинское сопровождение. Имеются спортивный зал, спортивные площадки. Запланированные мероприятия: организация культурно-массовых и спортивных мероприятий, творческие мастерские, походы, посещение музея | AF58: не имеется | AG58: 1991 г. | AH58: СЭЗ № 29.01.04.000.М.000289.05.25 от 05.05.2025 г. | AI58: Предписание Управления Роспотребнадзора по Архангельской области от 18.06.2024 г. № 72/пр, замечания устранить до 23.09.2024 г. | AJ58: Договор заключается на период работы лагеря ГБУЗ АО "АГКП № 2" | AK58: Выписка из реестра лицензий № 6708 от 31.08.2021 г. Лицензия № 6720 от 13.09.2021 г. МАУ ДО "Центр "Архангел" | AL58: Для организации отдыха спортивные объекты для детей-инвалидов и детей с ограниченными возможностями здоровья (ТНР, ЗПР, слабослышащие, слабовидящие) избирательно условно (с помощью дополнительной помощью) приспособлены и доступны | AM58: Принято Методическим советом № 2 от 06.05.2025 г. Утверждено Директором МАУ ДО «Центр «Архангел» Приказ № 90 от 07.05.2025 г. | AN58: https://gym25.arkh-edu.ru/about/2025/Программы%20воспитательной%20работы%20МБОУ%20Гимназия%20№25.pdf
A59: 38 | B59: 5 | C59: Лагерь с дневным пребыванием детей муниципального автономного учреждения дополнительного образования городского округа "Город Архангельск" "Центр технического творчества, спорта и развития детей "Архангел" на базе муниципального бюджетного общеобразовательного учреждения городского округа "Город Архангельск" "Средняя школа №34 имени А.И. Клепача" (МАУ ДО "Центр "Архангел" на базе МБОУ СШ № 34) | D59: муниципальная | E59: Фомин Александр Анатольевич | F59: 2901075037 | G59: Юридический адрес: 163009, г. Архангельск, ул. Октябрят, д. 4, корп. 4 Фактический адрес: 163039, г. Архангельск, ул. Клепача, д. 3, корп. 2 Тел. 8 (8182) 45-18-26 E-mail: arh-school34@yandex.ru | H59: https://school34.arkh.eduru.ru/let_lag_2024 | I59: лагерь, организованный образовательной организацией, с дневным пребыванием | J59: сезонный | M59: 02.06.2025-23.06.2025 | N59: 75 | AC59: 177.64 | AD59: 7-13 лет | AE59: Режим работы: с 8:30 до 14:30. Шестидневная рабочая неделя. Организовано 2-х разовое питание и медицинское сопровождение. Имеются игровые комнаты. Запланированные мероприятия: участие детей в различных спортивных мероприятиях, художественных мастер-классах, посещение музеев города и экскурсий. | AF59: не имеется | AG59: 1936 г., основное здание; здание столовой, 1969 г. | AH59: СЭЗ № 29.01.04.000.М.000199.04.25 от 21.04.2025 г. | AI59: Предписание Управления Роспотребнадзора АО от 15.12.2021 г. №999, устранение замечаний продлено до 15.04.2024 г., замечания устранены не все. Сняты с контроля п.1 (частично), 3, 4, 6 (частично), 7, 8, 9. На контроле п.1 (частично), 2, 5, 6 (частично), 10. Предписание Управления Роспотребнадзора АО от 03.04.2023 №125/пр, замечания устранить до – 03.04.2024 г. Замечания устранены не все. Сняты с контроля п.1, 2, 5 (частично), 6 (частично), 9, 10. На контроле п.3, 4, 5 (частично), 6 (частично), 7, 8,11. Предписание Управления Роспотребнадзора АО от 14.03.2024 №216/пр, замечания устранить – до 16.03.2026 г. Предписание МЧС России от 29.05.2023 №2305/505-29/58-В/РИВ | AJ59: Договор заключается на период работы лагеря ГБУЗ АО "АГКП № 2" | AK59: Выписка из реестра лицензий № Л035-01270-29/00236464 от 24.12.2021 г. Лицензия № 6720 от 13.09.2021 г. МАУ ДО "Центр "Архангел" | AL59: В образовательном учреждении есть специальные образовательные программы и методы, дидактические материалы, учебники, учебные пособия, интерактивные панели. Условия созданы для слабовидящих, слабослышащих детей. Условия для хранения лекарственных препаратов для медицинского применения и специализированных продуктов лечебного питания созданы в медицинском кабинете. Условия созданы для детей, слабослышащих, слабовидящих, инвалидов с сахарным диабетом, бронхиальной астмой, онкобольных). | AM59: Принято Методическим советом № 2 от 06.05.2025 г. Утверждено Директором МАУ ДО «Центр «Архангел» Приказ № 90 от 07.05.2025 г. | AN59: https://school34.arkh.eduru.ru/media/2025/05/12/1310281212/programma_smeny.pdf
A60: 39 | B60: 6 | C60: Лагерь с дневным пребыванием детей муниципального автономного учреждения дополнительного образования городского округа "Город Архангельск" "Центр технического творчества, спорта и развития детей "Архангел" на базе муниципального бюджетного общеобразовательного учреждения городского округа "Город Архангельск" "Средняя школа № 35 имени Героя Советского Союза П.И.Галушина" (МАУ ДО "Центр "Архангел" на базе МБОУ СШ № 35) | D60: муниципальная | E60: Фомин Александр Анатольевич | F60: 2901075037 | G60: Юридический адрес: 163009, г. Архангельск, ул. Октябрят, д. 4, корп. 4 Фактический адрес: 163009, г. Архангельск, ул. Полины Осипенко, д.7, корп. 1; ул. Федора Абрамова, д. 14 Тел. 8 (8182) 66-49-54, 8 (8182) 66-49-51 E-mail: mbou35@yandex.ru | H60: https://arch-school-35.ucoz.ru/index/2024_god/0-248 | I60: лагерь, организованный образовательной организацией, с дневным пребыванием | J60: сезонный | M60: 02.06.2025-23.06.2025 | N60: 162 | AC60: 177.64 | AD60: 7-11 лет | AE60: Режим работы лагеря: с 8:30 до 14:30. Организовано 2-х разовое питание и медицинское сопровождение. Имеются игровые комнаты, спортивный зал, спортивные площадки. Запланированные мероприятия: организация культурно-массовых и спортивных мероприятий, творческие мастерские, посещение музеев и библиотек города Архангельска. | AF60: не имеется | AG60: 1984 г. | AH60: СЭЗ № 29.01.04.000.М.000478.05.25 от 26.04.2025 г. | AI60: Предписание Управления Роспотребнадзора по Архангельской области от 16.05.2023 № 193 / устранение замечаний продлено до 29.08.2025 года | AJ60: Договор заключается на период работы лагеря ГБУЗ АО "АГКП № 2" | AK60: Выписка из реестра лицензий № ЛО35-01270-29/00236428 от 11.10.2021 г. Лицензия № 6720 от 13.09.2021 г. МАУ ДО "Центр "Архангел" | AL60: Использованы специальные адаптивные программы, учебные пособия, дидактические материалы, интерактивная доска для воспитанников нозологии: ТНР (вариант 5.2), ЗПР, НОДА 6.1. В случае необходимости для оказания помощи для воспитанников будет назначен сотрудник для воспитанников нозологии: ТНР (вариант 5.2), ЗПР, НОДА 6.1. | AM60: Принято Методическим советом № 2 от 06.05.2025 г. Утверждено Директором МАУ ДО «Центр «Архангел» Приказ № 90 от 07.05.2025 г. | AN60: https://arch-school-35.ucoz.ru/2021/2025/programma_vospitatelnoj_raboty_prishkolnogo_lagerj.pdf
A61: 40 | B61: 7 | C61: Лагерь с дневным пребыванием детей муниципального автономного учреждения дополнительного образования городского округа"Город Архангельск" "Центр технического творчества, спорта и развития детей "Архангел" на базе муниципального бюджетного общеобразовательного учреждения городсого округа "Город Архангельск" "Эколого-биологический лицей имени академика Н.П.Лаверова" (МАУ ДО "Центр "Архангел" на базе МБОУ ЭБЛ) | D61: муниципальная | E61: Фомин Александр Анатольевич | F61: 2901075037 | G61: Юридический адрес: 163009, г. Архангельск, ул. Октябрят, д. 4, корп. 4 Фактический адрес: 163009, г. Архангельск, просп. Ленинградский, д. 75 Тел: 8 (8182) 64-40-20 E-maill: ebl@inbox.ru | H61: https://eco-licey-arh.edusite.ru/p234aa1.html | I61: лагерь, организованный образовательной организацией, с дневным пребыванием | J61: сезонный | M61: 02.06.2025-27.06.2025 | N61: 21 | AC61: 177.64 | AD61: 10-14 лет | AE61: Режим работы лагеря: с 8:30 до 14:30. Организовано 2-х разовое питание и медицинское сопровождение. Имеются игровые комнаты, спортивный зал, спортивная площадка. Запланированные мероприятия: участие детей в интеллектуальных играх, квестах,конкурсах, спортивные игры на свежем воздухе, посещение музеев и экскурсий | AF61: не имеется | AG61: 1936 г.; кап ремонт, 2024 г. | AH61: СЭЗ № 29.01.04.000.М.000476.05.25 от 26.05.2025 г. | AI61: Предписание Управления Роспотребнадзора по Архангельской области от 06.02.2024 № 21/пр. / устранить до 15.09.2025 г. | AJ61: Договор заключается на период работы лагеря ГБУЗ АО "АГКП № 2" | AK61: Выписка из реестра лицензий № 6726 от 22.09.2021г. выписка из реестра лицензий №ЛО35-01270-29/00236432 от 22.09.2021 г. Лицензия № 6720 от 13.09.2021 г. МАУ ДО "Центр "Архангел" | AL61: Входы в здание оборудованы пандусами для инвалидов-колясочников. Расширенные дверные проемы для инвалидов-колясочнико | AM61: Принято Методическим советом № 2 от 06.05.2025 г. Утверждено Директором МАУ ДО «Центр «Архангел» Приказ № 90 от 07.05.2025 г. | AN61: https://eco-licey-arh.edusite.ru/DswMedia/programma_vospitatel-noy_rabotyi_mbou_yebl.pdf
A62: 41 | B62: 8 | C62: Лагерь с дневным пребыванием детей муниципального автономного учреждения дополнительного образования городского округа "Город Архангельск" "Центр технического творчества, спорта и развития детей "Архангел" (МАУ ДО "Центр "Архангел") | D62: муниципальная | E62: Фомин Александр Анатольевич | F62: 2901075037 | G62: Юридический и фактический адрес: 163009, г. Архангельск, ул. Октябрят, д. 4, корп. 4 Тел: 8 (8182) 29-52-08 E-mail: arhctt@bk.ru Фактический адрес: 163009, г. Архангельск, ул. Октябрят, д. 4, корп. 4;просп. Ленинградский, д.75 | H62: https://arhctt.profiedu.ru/?section_id=48 | I62: лагерь, организованный образовательной организацией, с дневным пребыванием | J62: сезонный | M62: 02.06.2025-27.06.2025 | N62: 37 | AC62: 177.64 | AD62: 8-17 лет | AE62: Режим работы лагеря: с 9:00 до 15:00. Организовано 2-х разовое питание и медицинское сопровождение. Имеются игровые комнаты, спортивный зал. Запланированные мероприятия: культурные досуговые мероприятия, творческие конкурсы, спортивные мероприятия, различные мастер-классы, посещение экскурсий | AF62: не имеется | AG62: 1989 г. | AH62: СЭЗ № 29.01.04.000.М.000499.05.25 от 27.05.2025 г. | AI62: Проверок в 2024 г. не было | AJ62: Договор заключается на период работы лагеря ГБУЗ АО "АГКП № 2" | AK62: Лицензия № 6720 от 13.09.2021 г. МАУ ДО "Центр "Архангел" Выписка из реестра лицензий №ЛО35-01270-29/00236338 от 13.09.2021 г. | AL62: Поручни в санитарной комнате для инвалидов-колясочников, инвалидов по зрению, детей с нарушениями функции опорно-двигательного аппарата. Тактильная плитка в помещении для детей с нарушениями зрения. Подъёмная платформа для входа в здание для инвалидов-колясочников, детей с нарушениями функции опорно-двигательного аппарата, инвалидов по зрению. Расширенные входной дверной проём для инвалидов-колясочников. Использование специальных образовательных программ, учебных пособий и дидактических материалов, интерактивная доска для детей ОВЗ (глухие, слабослышащие, слепые, слабовидящие, НОДА, с ЗПР, с ТНР, с РАС, с умственной отсталостью). Назначение сотрудника для необходимой помощи человеку (глухие, слабослышащие, слепые, слабовидящие, НОДА, с ЗПР, с ТНР, с РАС, с умственной отсталостью, инвалиды-колясочники). | AM62: Принято Методическим советом № 2 от 06.05.2025 г. Утверждено Директором МАУ ДО «Центр «Архангел» Приказ № 90 от 07.05.2025 г. | AN62: https://arhctt.profiedu.ru/upload/proeduarhctt_new/files/43/f7/43f7256a7fa58fabc72f12bec72046af.pdf
A63: 42 | B63: 9 | C63: Лагерь с дневным пребыванием детей "Спектр" муниципального автономного учреждения дополнительного образования городского округа "Город Архангельск" "Центр технического творчества, спорта и развития детей "Архангел" на базе военно-технического центра "Интеллектуал +" (МАУ ДО "Центр "Архангел" на базе военно-технического центра "Интеллектуал +") | D63: муниципальная | E63: Фомин Александр Анатольевич | F63: 2901075037 | G63: Юридический адрес: 163009, г. Архангельск, ул. Октябрят, д. 4, корп. 4 Фактический адрес: 163060, г. Архангельск, ул. Воскресенская, д. 106, корп. 2, стр. 1; ул. Воскресенская, д. 106, корп. 2 в здании МБОУ СШ № 17 Тел: 8 (8182) 29-52-08 E-mail: arhctt@bk.ru | H63: https://arhctt.profiedu.ru/?section_id=48 | I63: лагерь, организованный образовательной организацией, с дневным пребыванием | J63: сезонный | M63: 02.06.2025-23.06.2025 | N63: 32 | AC63: 177.64 | AD63: 7-13 лет | AE63: Режим работы лагеря: с 8:30 до 14:30. Организовано 2-х разовое питание и медицинское сопровождение. Имеются игровые комнаты, спортивный зал. Запланированные мероприятия: культурные досуговые мероприятия, творческие конкурсы, спортивные мероприятия, различные мастер-классы, посещение экскурсий | AF63: не имеется | AG63: 2012 г. | AH63: СЭЗ № 29.01.04.000.М.000200.04.25 от 21.04.2025 г. | AI63: В 2024 г. проверок не было | AJ63: Договор заключается на период работы лагеря ГБУЗ АО "АГДКП" | AK63: Лицензия № 6720 от 13.09.2021 г. МАУ ДО "Центр "Архангел" Выписка из реестра лицензий №ЛО35-01270-29/00236338 от 13.09.2021 г. | AL63: Стационарный пандус для входа в здание со стороны пожарного входа для инвалидов-колясочников. Пандус для входа в тир для инвалидов-колясочников. Использование специальных образовательных программ, учебных пособий и дидактических материалов, интерактивная доска для детей ОВЗ (глухие, слабослышащие, слепые, слабовидящие, НОДА, с ЗПР, с ТНР, с РАС, с умственной отсталостью). Назначение сотрудника для необходимой помощи человеку (глухие, слабослышащие, слепые, слабовидящие, НОДА, с ЗПР, с ТНР, с РАС, с умственной отсталостью, инвалиды-колясочники). | AM63: Принято Методическим советом № 2 от 06.05.2025 г. Утверждено Директором МАУ ДО «Центр «Архангел» Приказ № 90 от 07.05.2025 г. | AN63: https://arhctt.profiedu.ru/upload/proeduarhctt_new/files/6b/3a/6b3a7bec3c11a33c1e2aa30f4a72e0d7.pdf
A64: 43 | B64: 10 | C64: Лагерь с дневным пребыванием детей муниципального бюджетного учреждения дополнительного образования городского округа "Город Архангельск" "Центр дополнительного образования детей "Контакт" на базе муниципального бюджетного общеобразовательного учреждениягородского округа "Город Архангельск" "Средняя школа № 2 имени В.Ф.Филиппова" (МБУ ДО "ЦДОД "Контакт" на базе МБОУ СШ № 2) | D64: муниципальная | E64: Чистикова Ирина Андреевна | F64: 2928001762 | G64: Юридический адрес: 163020, г. Архангельск, пер. Банный 1-й, д. 2, корп.1 Тел: 8(8182) 29-68-86 E-mail: cdodkontakt@yandex.ru Фактический адрес: 163072, г. Архангельск, просп. Советских Космонавтов, д. 188, корп. 1 Тел: 8 (8182) 24-79-15 E-mail: 2arhschool@rambler.ru | H64: http://arhschool2.ru/leisure/ | I64: лагерь, организованный образовательной организацией, с дневным пребыванием | J64: сезонный | M64: 02.06.2025-23.06.2025 | N64: 75 | AC64: 177.64 | AD64: 7-17 лет | AE64: Режим работы лагеря с 8:30 до 14:30. Организовано 2-х разовое питание и медицинское сопровождение. Имеются игровые комнаты, спортивный зал, спортивные площадки. Заланированные мероприятия: организация культурно-массовых и спортивных мероприятий, творческие мастерские, психологические тренинги, походы, посещение музея | AF64: не имеется | AG64: 1963 г. | AH64: СЭЗ № 29.01.04.000.М.000418.05.25 от 21.05.2025 г. | AI64: Предписание Управление Роспотребнадзора АО от 24.01.2022 № 1177/2 ремонт ограждения, заменить мебель, провести ремонт покрытия стен, полов. Замечаний по помещениям, в которых будут размещаться отряды нет. Срок устранения – 24.01.2024, продлен до 23.04.2024, частично пункты сняты с контроля. Предписание Управление Роспотребнадзора АО от 24.05.2023 № 236/пр ремонт потолка и стен в спортивном зале, ремонт пола в кабинете №1 Замечаний по помещениям, в которых будут размещаться отряды нет. Срок устранения – 24.05.2024, продлен до 23.05.2025 Предписание Управление Роспотребнадзора АО от 07.10.2024 № 867/пр ограждение, ремонт потолка и стен в спортивном зале, ремонт потолка в кабинете №35 Замечаний по помещениям, в которых будут размещаться отряды нет. Срок устранения – 06.10.2025 | AJ64: Договор № 02/25 от 25.11.2024 г. ГБУЗ АО "АГДКП" | AK64: Выписка из реестра лицензий №ЛО35-01270-29/00236371 от 01.10.2021 г. | AL64: Условия созданы частично: пандус. Назначены сотрудники, осуществляющие сопровождение детей-инвалидов и детей с ОВЗ (при необходимости) в процессе оказания им услуг по организации отдыха и оздоровления | AM64: Принято на методическом совете Протокол № 7 от 28.04.2025 г. Утверждено и.о. директора МБУ ДО «ЦДОД «Контакт» А.Н. Савкин Приказ № 62 от 28.04.2025 г. | AN64: https://arhschool2.ru/wp-content/uploads/2025/05/shkola_2.pdf
A65: 44 | B65: 11 | C65: Лагерь с дневным пребыванием детей муниципального бюджетного учреждения дополнительного образования городского округа "Город Архангельск" "Центр дополнительного образования детей "Контакт" на базе муниципального бюджетного общеобразовательного учреждения городского округа "Город Архангельск" "Средняя школа № 11 имени Виктор Павловича Цыганова" (МБУ ДО "ЦДОД "Контакт" на базе МБОУ СОШ № 11) | D65: муниципальная | E65: Чистикова Ирина Андреевна | F65: 2928001762 | G65: Юридический адрес: 163020, г. Архангельск, пер. Банный 1-й, д. 2, корп.1 Тел: 8(8182) 29-68-86 E-mail: cdodkontakt@yandex.ru Фактический адрес: 163000, г. Архангельск, просп. Советских Космонавтов, д. 153 Тел. 8 (8182) 28-57-35 E-mail: opora11@yandex.ru | H65: https://xn--11-6kca3cguo9b4a.xn--p1ai/leto | I65: лагерь, организованный образовательной организацией, с дневным пребыванием | J65: сезонный | M65: смена отмена кап. ремонт | N65: 0 | AC65: 177.64 | AD65: 7-17 лет | AE65: Режим работы лагеря с 8:30 до 14:30. Организовано 2-х разовое питание и медицинское сопровождение. Имеются игровые комнаты, спортивный зал, спортивные площадки. Заланированные мероприятия: организация культурно-массовых и спортивных мероприятий, творческие мастерские, психологические тренинги, походы, посещение музея | AF65: не имеется | AG65: 1970 г. | AH65: СЭЗ № 29.01.04.000.М.000.233.04.23 от 11.04.2023 г. СМЕНА ОТМЕНЕНА «В связи с окончанием срока действия санитарно-эпидемиологического заключения организация отдыха не имеет право предоставлять услугу по отдыху и оздоровлению детей» | AI65: Предписание Управления Федеральной службы по надзору от 03.12.2021 № 938/2 об устранении выявленных нарушений обязательных требований, замечаний по помещениям, в которых будут размещаться отряды нет | AJ65: Договор № 02/25 от 25.11.2024 г. ГБУЗ АО "АГДКП" | AK65: Выписка из реестра лицензий № Л035-01270-29/002364563. от 27.10.2021 г. | AL65: Назначены сотрудники, осуществляющие сопровождение детей-инвалидов и детей с ОВЗ (при необходимости) в процессе оказания им услуг по организации отдыха и оздоровления | AM65: СМЕНА ОТМЕНЕНА КАПИТАЛЬНЫЙ РЕМОНТ | AN65: СМЕНА ОТМЕНЕНА КАПИТАЛЬНЫЙ РЕМОНТ
A66: 45 | B66: 12 | C66: Лагерь с дневным пребыванием детей муниципального бюджетного учреждения дополнительного образования городского округа "Город Архангельск" "Центр дополнительного образования детей "Контакт" на базе муниципального бюджетного общеобразовательного учреждения городского округа "Город Архангельск" "Гимназия № 21 имени лауреата Нобелевской премии И.А. Бродского" (МБУ ДО "ЦДОД "Контакт" на базе МБОУ Гимназия № 21) | D66: муниципальная | E66: Чистикова Ирина Андреевна | F66: 2928001762 | G66: Юридический адрес: 163020, г. Архангельск, пер. Банный 1-й, д. 2, корп.1 Тел: 8(8182) 29-68-86 E-mail: cdodkontakt@yandex.ru Фактический адрес: 163002, Архангельская область, г. Архангельск,ул. Урицкого, д. 9; ул. Розы Шаниной, д.6 (приготовление пищи) E-mail: office2108@mail.ru | H66: https://gimnasia21.ru/летняя-кампания/ | I66: лагерь, организованный образовательной организацией, с дневным пребыванием | J66: сезонный | M66: 02.06.2025-23.06.2025 | N66: 105 | AC66: 177.64 | AD66: 7-17 лет | AE66: Режим работы лагеря с 8:30 до 14:30. Организовано 2-х разовое питание и медицинское сопровождение. Имеются игровые комнаты, спортивный зал, спортивные площадки. Заланированные мероприятия: организация культурно-массовых и спортивных мероприятий, творческие мастерские, психологические тренинги, походы, посещение музея | AF66: не имеется | AG66: 1938 г., 2023 г., кап.ремонт | AH66: СЭЗ № 29.01.04.000.М.000278.04.25 от 30.04.2025 г. | AI66: Предписание Роспотребнадзора АО №1113/пр от 25.12.2024 г. Данные замечания не влияют на организацию и работу лагеря | AJ66: Договор № 2М от 11.01.2024 г. ГБУЗ АО "АКГП № 2" | AK66: Лицензия №ЛО35-01270-29/00236400 от 17.05.2021 г. | AL66: Условия не созданы частично | AM66: Принято на методическом совете Протокол № 7 от 28.04.2025 г. Утверждено и.о. директора МБУ ДО «ЦДОД «Контакт» А.Н. Савкин Приказ № 62 от 28.04.2025 г. | AN66: http://gimnasia21.ru/wp-content/uploads/2025/05/2025_Vospitat_programma_Letnyaya_karusel.pdf
A67: 46 | B67: 13 | C67: Лагерь с дневным пребыванием детей муниципального бюджетного учреждения дополнительного образования городского округа"Город Архангельск" "Центр дополнительного образования детей "Контакт" на базе муниципального бюджетного общеобразовательного учреждения городского округа "Город Архангельск" "Средняя школа № 30" (МБУ ДО "ЦДОД "Контакт" на базе МБОУ СШ № 30) | D67: муниципальная | E67: Чистикова Ирина Андреевна | F67: 2928001762 | G67: Юридический адрес: 163020, г. Архангельск, пер. Банный 1-й, д. 2, корп.1 Тел: 8(8182) 29-68-86 E-mail: cdodkontakt@yandex.ru Фактический адрес: 163072, г. Архангельск, ул. Квартальная, д. 10, ул. Квартальная, д.15 Тел: 8 (8182) 68-91-34 E-mail: sch30a@mail.ru | H67: https://sch30.ru/index/letnjaja_kampanija/0-169 | I67: лагерь, организованный образовательной организацией, с дневным пребыванием | J67: сезонный | M67: 02.06.2025-23.06.2025 | N67: 75 | AC67: 177.64 | AD67: 7-17 лет | AE67: Режим работы лагеря с 8:30 до 14:30. Организовано 2-х разовое питание и медицинское сопровождение. Имеются игровые комнаты. Заланированные мероприятия: организация культурно-массовых и спортивных мероприятий, творческие мастерские, психологические тренинги, походы, посещение музеев | AF67: не имеется | AG67: ул. Квартальная, д.10, 1962 г.; ул. Квартальная, д.15, 1964 г. | AH67: СЭЗ № 29.01.04.000.М.000.453.05.25 от 26.05.2025 г. | AI67: Предписание Управление Роспотребнадзора АО от 05.04.2023 № 137/пр. (срок устранения 04.09.2024), замечания по помещениям, в которых будут размещаться отряды: дефекты потолка, сколы покраски. В столовой – замена мебели. Не устранено, написано ходатайство о продлении на год, ответа пока нет | AJ67: Договор № 31 от 05.02.2024 г. ГБУЗ АО "АГКБ№ 4" | AK67: Лицензия № ЛО35-01270-29/0023637 от 22.11.2021 г. | AL67: Условия не созданы | AM67: Принято на методическом совете Протокол № 7 от 28.04.2025 г. Утверждено и.о. директора МБУ ДО «ЦДОД «Контакт» А.Н. Савкин Приказ № 62 от 28.04.2025 г. | AN67: https://sch30.ru/docostaln/lag/rabochaja_programma_vospitatelnoj_raboty.docx
A68: 47 | B68: 14 | C68: Лагерь с дневным пребыванием детей муниципального бюджетного учреждения дополнительного образования городского округа "Город Архангельск" "Центр дополнительного образования детей "Контакт" на базе муниципального бюджетного общеобразовательного учреждения городского округа "Город Архангельск" "Средняя школа № 37 имени Николая Степановича Мусинского" (МБУ ДО "ЦДОД "Контакт" на базе МБОУ СШ № 37) | D68: муниципальная | E68: Чистикова Ирина Андреевна | F68: 2928001762 | G68: Юридический адрес: 163020, г. Архангельск, пер. Банный 1-й, д. 2, корп.1 Тел: 8(8182) 29-68-86 E-mail: cdodkontakt@yandex.ru Фактический адрес: 163012, г. Архангельск, ул. Индустриальная, д. 13; ул. Розы Шаниной, д. 6 (приготовление пищи) Тел: 8 (8182) 23-42-40 E-mail: school37arhcity@rambler.ru | H68: http://school37arh.ru/article/view/157 | I68: лагерь, организованный образовательной организацией, с дневным пребыванием | J68: сезонный | M68: 02.06.2025-23.06.2025 | N68: 90 | AC68: 177.64 | AD68: 7-17 лет | AE68: Режим работы лагеря с 8:30 до 14:30. Организовано 2-х разовое питание и медицинское сопровождение. Имеются игровые комнаты, музыкальный зал, спортивные площадки. Заланированные мероприятия: организация культурно-массовых и спортивных мероприятий, творческие мастерские, психологические тренинги, походы, посещение музея | AF68: не имеется | AG68: 1966 г. | AH68: СЭЗ № 29.01.04.000.М.000.420.05.25 от 21.05.2025 г. | AI68: Предписания ОНДиПР г.Архангельска – нет 1) Предписание Управления Роспотребнадзора АО № 194/пр от 11.05.2023 г., срок устранения до 25.09.2024. (работы по устранению продолжаются) 2) Предписание Управления Роспотребнадзора АО № 308/пр. от 24.05.2024 г., срок устранения до 25.09.2025. (работы по устранению продолжаются) | AJ68: Договор № 6 М от 27.11.2024 г. ГБУЗ АО "АГКБ № 6" | AK68: Выписка из реестра лицензий № ЛО35-01270-29/00236399 от 27.10.2021 г. | AL68: Имеется паспорт доступности | AM68: Принято на методическом совете Протокол № 7 от 28.04.2025 г. Утверждено и.о. директора МБУ ДО «ЦДОД «Контакт» А.Н. Савкин Приказ № 62 от 28.04.2025 г. | AN68: http://school37arh.ru/content/site_files/school37arh/2025_4/rabochaya_programma_lagerya.pdf
A69: 48 | B69: 15 | C69: Лагерь с дневным пребыванием детей муниципального бюджетного учреждения дополнительного образования городского округа "Город Архангельск" "Центр дополнительного образования детей "Контакт" на базе муниципального бюджетного общеобразовательного учреждения городского округа "Город Архангельск" "Средняя школа № 43" (МБУ ДО "ЦДОД "Контакт" на базе МБОУ СШ № 43) | D69: муниципальная | E69: Чистикова Ирина Андреевна | F69: 2928001762 | G69: Юридический адрес: 163020, г. Архангельск, пер. Банный 1-й, д. 2, корп.1 Тел: 8(8182) 29-68-86 E-mail: cdodkontakt@yandex.ru Фактический адрес: 163012, г. Архангельск, ул. Кировская, д. 12 Тел: 8 (8182) 23-49-88 E-mail: mbou43@inbox.ru | H69: https://43.arkhschool.ru/?section_id=46 | I69: лагерь, организованный образовательной организацией, с дневным пребыванием | J69: сезонный | M69: 02.06.2025-23.06.2025 | N69: 105 | AC69: 177.64 | AD69: 7-17 лет | AE69: Режим работы лагеря с 8:30 до 14:30. Организовано 2-х разовое питание и медицинское сопровождение. Имеются игровые комнаты, спортивнывй зал, спортивные площадки. Заланированные мероприятия: организация культурно-массовых и спортивных мероприятий, творческие мастерские, психологические тренинги, походы, посещение музея | AF69: не имеется | AG69: 1965 г. | AH69: СЭЗ № 29.01.04.000.М.000.422.05.25 от 21.05.2025 г. | AI69: Предписания ОНДиПР г.Архангельска – нет Предписание Управление Роспотребнадзора АО : 1. 203/пр. от 17.05.2023. Нарушения частично сняты, остальные нарушения отсрочены до 29.08.2025. 2. 314/пр. от 30.05.2024. Срок выполнения предписания 30.09.2025 г. | AJ69: Договор № 6 М от 27.11.2024 г. ГБУЗ АО "АГКБ № 6" | AK69: Выаиска из реестра лицензий № Л035-01270-29/00236439 от 17.08.2021 г. | AL69: Пандус. При необходимости для обеспечения доступа в здание и передвижению по зданию МБОУ СШ № 43 инвалиду или лицу с ОВЗ будет предоставлено сопровождающее лицо | AM69: Принято на методическом совете Протокол № 7 от 28.04.2025 г. Утверждено и.о. директора МБУ ДО «ЦДОД «Контакт» А.Н. Савкин Приказ № 62 от 28.04.2025 г. | AN69: https://43.arkhschool.ru/upload/arkhcs43_new/files/5b/39/5b396aa8b4957bc882853ee925cae1dd.pdf
A70: 49 | B70: 16 | C70: Лагерь с дневным пребыванием детей муниципального бюджетного учреждения дополнительного образования городского округа "Город Архангельск" "Центр дополнительного образования детей "Контакт" на базе муниципального бюджетного общеобразовательного учреждения городского округа "Город Архангельск" "Средняя школа № 50 имени дважды Героя Советского Союза А.О. Шабалина" (МБУ ДО "ЦДОД "Контакт" на базе МБОУ СШ № 50) | D70: муниципальная | E70: Чистикова Ирина Андреевна | F70: 2928001762 | G70: Юридический адрес: 163020, г. Архангельск, пер. Банный 1-й, д. 2, корп.1 Тел: 8(8182) 29-68-86 E-mail: cdodkontakt@yandex.ru Фактический адрес: 163020, г. Архангельск, ул. Краснофлотская, д. .3 Тел: 8 (8182) 22-58-53 E-mail: arhschool50@rambler.ru | H70: https://arhschool50.ru/detskij-ozdorovitelnyj-lager | I70: лагерь, организованный образовательной организацией, с дневным пребыванием | J70: сезонный | M70: 02.06.2025-23.06.2025 | N70: 75 | AC70: 177.64 | AD70: 7-17 лет | AE70: Режим работы лагеря с 8:30 до 14:30. Организовано 2-х разовое питание и медицинское сопровождение. Имеются игровые комнаты, спортивнывй зал, спортивные площадки. Заланированные мероприятия: организация культурно-массовых и спортивных мероприятий, творческие мастерские, психологические тренинги, походы, посещение музеев и библиотеки. | AF70: не имеется | AG70: 1990 г. | AH70: СЭЗ № 29.01.04.000.М.000.291.05.25 от 05.05.2025 г. | AI70: Предписания ОНДиПР г. Архангельска – нет Предписание Роспотребнадзора АО № 193/пр от 03.05.2023 г., срок устранения 03.05.2025 г. Предписание Роспотребнадзора АО № 309/пр от 16.05.2024 г., срок устранения 16.05.2025 г. Замечания в данных предписаниях не влияют на работу лагеря. | AJ70: Договор № 7 М от 20.12.2024 г. ГБУЗ АО "АГКБ № 7" | AK70: Лицензия № 6789 от 10.12.2021 г. | AL70: Условия не созданы | AM70: Принято на методическом совете Протокол № 7 от 28.04.2025 г. Утверждено и.о. директора МБУ ДО «ЦДОД «Контакт» А.Н. Савкин Приказ № 62 от 28.04.2025 г. | AN70: https://disk.yandex.ru/i/zo10lLrqcbknlQ
A71: 50 | B71: 17 | C71: Лагерь с дневным пребыванием детей муниципального бюджетного учреждения дополнительного образования городского округа "Город Архангельск" "Центр дополнительного образования детей "Контакт" на базе муниципального бюджетного общеобразовательного учреждения городского округа "Город Архангельск" "Средняя школа № 51 имени Ф.А.Абрамова" (МБУ ДО "ЦДОД "Контакт" на базе МБОУ СШ № 51) | D71: муниципальная | E71: Чистикова Ирина Андреевна | F71: 2928001762 | G71: Юридический адрес: 163020, г. Архангельск, пер. Банный 1-й, д. 2, корп.1 Тел: 8(8182) 29-68-86 E-mail: cdodkontakt@yandex.ru Фактический адрес: 163059, г. Архангельск, ул. Малиновского, д. 4 Тел: 8 (8182) 23-40-68 E-mail: kants51@yandex.ru | H71: https://sulfat51.eduarkh.ru/about/news/3032538 | I71: лагерь, организованный образовательной организацией, с дневным пребыванием | J71: сезонный | M71: 02.06.2025-23.06.2025 | N71: 120 | AC71: 177.64 | AD71: 7-17 лет | AE71: Режим работы лагеря с 8:30 до 14:30. Организовано 2-х разовое питание и медицинское сопровождение. Имеются игровые комнаты, спортивнывй зал, спортивные площадки. Заланированные мероприятия: организация культурно-массовых и спортивных мероприятий, творческие мастерские, психологические тренинги, походы, посещение музея. | AF71: не имеется | AG71: 1975 г. | AH71: СЭЗ № 29.01.04.000.М.000452.05.25 от 26.05.2025 г. | AI71: Предписание Управление Роспотребнадзора АО № 325/ пр от 26.04.2024г. Данные помещения не используются в работе летнего лагеря. Срок устранения до 01.09.2025 г. | AJ71: Договор № 6 М от 27.11.2024 г. ГБУЗ АО "АГКБ № 6" | AK71: Лицензия № 6743 от 18.10.2021 г. | AL71: Имеется лестничный гусеничный подъемник, оборудован туалет для детей с ОВЗ. | AM71: Принято на методическом совете Протокол № 7 от 28.04.2025 г. Утверждено и.о. директора МБУ ДО «ЦДОД «Контакт» А.Н. Савкин Приказ № 62 от 28.04.2025 г. | AN71: https://sulfat51.eduarkh.ru/uploads/40400/40309/section/2561778/2024/dokumenty_/VP_Olimpia.pdf?1710753340893
A72: 51 | B72: 18 | C72: Лагерь с дневным пребыванием детей муниципального бюджетного учреждения дополнительного образования городского округа "Город Архангельск" "Центр дополнительного образования детей "Контакт" на базе муниципального бюджетного общеобразовательного учреждения городского округа "Город Архангельск" "Средняя школа № 62 имени Героя Советского Союза В.Ф.Маргелова" (МБУ ДО "ЦДОД "Контакт" на базе МБОУ СШ № 62) | D72: муниципальная | E72: Чистикова Ирина Андреевна | F72: 2928001762 | G72: Юридический адрес: 163020, г. Архангельск, пер. Банный 1-й, д. 2, корп.1 Тел: 8(8182) 29-68-86 E-mail: cdodkontakt@yandex.ru Фактический адрес: 163013, г. Архангельск, ул. Кедрова, д. 34 Тел: 8 (8182) 22-16-95 E-mail: arh-school62u@mail.ru | H72: https://arh-school62.ucoz.ru/index/letnjaja_kampanija/0-411 | I72: лагерь, организованный образовательной организацией, с дневным пребыванием | J72: сезонный | M72: 02.06.2025-23.06.2025 | N72: 60 | AC72: 177.64 | AD72: 7-17 лет | AE72: Режим работы лагеря с 8:30 до 14:30. Организовано 2-х разовое питание и медицинское сопровождение. Имеются игровые комнаты, спортивнывй зал, спортивные площадки. Заланированные мероприятия: организация культурно-массовых и спортивных мероприятий, творческие мастерские, психологические тренинги, посещение музея. | AF72: не имеется | AG72: 1988 г. | AH72: СЭЗ № 29.01.04.000.М.000424.05.25 от 21.05.2025 г. | AI72: Предписание Управление Роспотребнадзора АО № 865\пр от 07.10.2024 г., устранить до 24.09.2025 г. 1. Дефекты санитарно-технического оборудования (раковины в трещинах и потертостях) в каб.301, 305 2. Необходимо провести горячее водоснабжение в каб.214,31+ лаборантская, санитарный узел для персонала на 3 этаже. | AJ72: Договор № 7 М от 20.12.2024 г. ГБУЗ АО "АГКБ № 7" | AK72: Лицензия № 5767 от 22.04.2015г. | AL72: Условия не созданы | AM72: Принято на методическом совете Протокол № 7 от 28.04.2025 г. Утверждено и.о. директора МБУ ДО «ЦДОД «Контакт» А.Н. Савкин Приказ № 62 от 28.04.2025 г. | AN72: https://arh-school62.ucoz.ru/2024-2025/ilovepdf_merged.pdf
A73: 52 | B73: 19 | C73: Лагерь с дневным пребыванием детей муниципального бюджетного учреждения дополнительного образования городского округа "Город Архангельск" "Центр дополнительного образования детей "Контакт" на базе муниципального бюджетного общеобразовательного учреждениягородского округа "Город Архангельск" "Средняя школа № 68" (МБУ ДО "ЦДОД "Контакт" на базе МБОУ СШ № 68) | D73: муниципальная | E73: Чистикова Ирина Андреевна | F73: 2928001762 | G73: Юридический адрес: 163020, г. Архангельск, пер. Банный 1-й, д. 2, корп.1 Тел: 8(8182) 29-68-86 E-mail: cdodkontakt@yandex.ru Фактический адрес: 163022, г. Архангельск, ул. Менделеева, д. 19 Тел: 8 (8182) 24-63-37 E-mail: school68@mail.ru | H73: https://68.arkhschool.ru/?section_id=46 | I73: лагерь, организованный образовательной организацией, с дневным пребыванием | J73: сезонный | M73: 02.06.2025-23.06.2025 | N73: 50 | AC73: 177.64 | AD73: 7-17 лет | AE73: Режим работы лагеря с 8:30 до 14:30. Организовано 2-х разовое питание и медицинское сопровождение. Имеются игровые комнаты, спортивнывй зал, спортивные площадки. Заланированные мероприятия: организация культурно-массовых и спортивных мероприятий, творческие мастерские, психологические тренинги, посещение музея. | AF73: не имеется | AG73: 1989 г. | AH73: СЭЗ № 29.01.04.000.М.000419.05.25 от 21.05.2025 г. | AI73: Предписание Роспотребнадзора АО №266/пр от 05.06.2023г. по результатам профилактического визита срок устранения 02.10.2024, срок устранения продлен до 29.08.2025; Предписание Роспотребнадзора АО №388/пр от 28.05.2024г. по результатам профилактического визита, срок устранения 26.09.2026 г. Данные помещения не участвуют в работе летнего лагеря. | AJ73: Договор № 6 М от 27.11.2024 г. ГБУЗ АО "АГКБ № 6" | AK73: Выписка из реестра лицензии № ЛО35-01270-29/00236446 от 03.09.2021г. | AL73: Условия не созданы | AM73: Принято на методическом совете Протокол № 7 от 28.04.2025 г. Утверждено и.о. директора МБУ ДО «ЦДОД «Контакт» А.Н. Савкин Приказ № 62 от 28.04.2025 г. | AN73: https://68.arkhschool.ru/upload/arkhcs68_new/files/f5/c0/f5c0befff8aee8071faf7f4f91e9ea75.pdf
A74: 53 | B74: 20 | C74: Лагерь с дневным пребыванием детей муниципального бюджетного учреждения дополнительного образования городского округа "Город Архангельск" "Центр дополнительного образования детей "Контакт" на базе муниципального бюджетного общеобразовательного учреждениягородского округа "Город Архангельск" "Архангельская средняя школа Соловецких юнг" (МБУ ДО "ЦДОД "Контакт" на базе МБОУАСШ СЮ) | D74: муниципальная | E74: Чистикова Ирина Андреевна | F74: 2928001762 | G74: Юридический адрес: 163020, г. Архангельск, пер. Банный 1-й, д. 2, корп.1 Тел: 8(8182) 29-68-86 E-mail: cdodkontakt@yandex.ru Фактический адрес: 163065, г. Архангельск, ул Прокопия Галушина, д. 25, корп. 1 Тел: 8 (8182) 66-83-86 E-mail: school32arh@yandex.ru | H74: http://www.yungash-school.ru/menusummercompany | I74: лагерь, организованный образовательной организацией, с дневным пребыванием | J74: сезонный | M74: 02.06.2025-23.06.2025 | N74: 50 | AC74: 177.64 | AD74: 7-17 лет | AE74: Режим работы лагеря с 8:30 до 14:30. Организовано 2-х разовое питание и медицинское сопровождение. Имеются игровые комнаты, спортивнывй зал, спортивные площадки. Заланированные мероприятия: организация культурно-массовых и спортивных мероприятий, творческие мастерские, ппоходы, посещение музея, театра. | AF74: не имеется | AG74: 1989 г. | AH74: СЭЗ № 29.01.04.000.М.000602.05.25 от 27.05.2025 г. | AI74: Предписание ОНДиПР г.Архангельска №494/1 от 23.11.2021 г. – исполнение отсрочено до 01.05.2024 г. – предписание исполняется. Предписание Роспотребнадзора по Арх.обл.№ 264/-2 пр от 23.05.24 г. - срок до 23.11.26 г. Предписание Роспотребнадзора по Арх.обл.№ 264/-1 пр от 23.05.24 г. срок до 23.11.26 г. – срок до 15.09.25 г. | AJ74: Договор № 2 М 16.12.2024 г. ГБУЗ АО "АКГБ № 2" | AK74: Лицензия № 5827 от 08.05.2015 г. | AL74: Условия не созданы | AM74: Принято на методическом совете Протокол № 7 от 28.04.2025 г. Утверждено и.о. директора МБУ ДО «ЦДОД «Контакт» А.Н. Савкин Приказ № 62 от 28.04.2025 г. | AN74: https://www.yungash-school.ru/Files/budadmin.pdf
A75: 54 | B75: 21 | C75: Лагерь с дневным пребыванием детей муниципального бюджетного учреждения дополнительного образования городского округа "Город Архангельск" "Ломоносовский дом детского творчества" на базе муниципального бюджетного общеобразовательного учреждения городского округа "Город Архангельск" "Средняя школа № 36 имени Героя Советского союза П.В.Усова" (МБУ ДО "ЛДДТ" на базе МБОУ СШ № 36) | D75: муниципальная | E75: Лямова Елена Николаевна | F75: 2927002770 | G75: Юридический адрес: 163030, г. Архангельск, ул. Русанова, д. 12 Тел/факс: 8 (8182) 68-58-38 E-mail: lddt-zav@mail.ru Фактический адрес: 163002, г. Архангельск, ул. Смольный Буян, д. 18, корп. 2 Тел: 8 (8181) 68-52-14 E-mail: srednyashkola36@yandex.ru | H75: http://mbou-ssh36.arkh.eduru.ru/summer_holidays | I75: лагерь, организованный образовательной организацией, с дневным пребыванием | J75: сезонный | M75: 02.06.2025-23.06.2025 | N75: 170 | AC75: 177.64 | AD75: 7-17 лет | AE75: Режим работы с 8:30 до 14:30. Организовано 2-х разовое питание и медицинское сопровождение. Имеются спортивные площадки. Запланированные мероприятия: организация культурно-массовых и спортивных мероприятий, творческие мастерские, походы. | AF75: не имеется | AG75: 1988 г.; кап.ремонт, 2023 г. | AH75: СЭЗ № 29.01.04.000.М.000361.05.25 от 15.05.2025 г. | AI75: Предписание Роспотребнадзора от 12.04.2024 № 209/пр, нарушения есть. Срок исполнения 25.04.2025 г. | AJ75: Договор № б/н от 07.02.2025 г. ГБУЗ АО "АГКБ № 2" | AK75: Лицензия № 6719 от 10.09.2021 г. Лицензия № 6813 от 24.12.2021 г. МБУ ДО "ЛДДТ" | AL75: В организации имеются средства ориентации в образовательном учреждении(светоотражающие полоски, указатели) | AM75: Приказ директора от 07.05.2025 г. 143-ОД | AN75: https://mbou-ssh36.arkh.eduru.ru/media/2025/05/15/1308923790/Programma_vospitaniya_DOL.pdf
A76: 55 | B76: 22 | C76: Лагерь с дневным пребыванием детей муниципального бюджетного учреждения дополнительного образования городского округа "Город Архангельск" "Ломоносовский дом детского творчества" на базе муниципального бюджетного общеобразовательного учреждения городского округа "Город Архангельск" "Средняя школа № 20 имени Героя Советского Союза П.М.Норицына" (МБУ ДО "ЛДДТ" на базе МБОУ СШ № 20) | D76: муниципальная | E76: Лямова Елена Николаевна | F76: 2927002770 | G76: Юридический адрес: 163030, г. Архангельск, ул. Русанова, д. 12 Тел/факс: 8 (8182) 68-58-38 E-mail: lddt-zav@mail.ru Фактический адрес: 163060, г. Архангельск, ул. 23-й Гвардейской Дивизии, д. 8 Тел: 8 (8181) 64-01-67 E-mail: direktor@ schooltwenty.ru | H76: https://schooltwenty.ru/parents/letnii-otdyh | I76: лагерь, организованный образовательной организацией, с дневным пребыванием | J76: сезонный | M76: 02.06.2025-27.06.2025 | N76: 100 | AC76: 177.64 | AD76: 7-17 лет | AE76: Режим работы: с 09:00 до 15:00. Организовано 2-х разовое питание и медицинское сопровождение. Имеются игровые комнаты, спортивный зал, спортивные площадки. Запланированные мероприятия: организация культурно-массовых и спортивных мероприятий, творческие мастерские. | AF76: не имеется | AG76: 1982 г. ; кап.ремонт, 2023 г. | AH76: СЭЗ № 29.01.04.000.М.000394.05.25 от 20.05.2025 г. | AI76: Управление Федеральной службы по надзору в сфере защиты прав потребителей и благополучия человека по Архангельской области. Акт профилактического визита №863/2024 от 07.10.2024г. Нарушения есть. Предписание № 863/пр от 07.10.2024 г. Срок до 01.09.2025 г. | AJ76: Договор № б/н от 07.02.2025 г. ГБУЗ АО "АГКБ № 2" | AK76: Лицензия № 6756 от 28.10.2021г. Лицензия № 6813 от 24.12.2021 г. МБУ ДО "ЛДДТ" | AL76: В наличии пандус, светоотражающая разметка | AM76: Приказ директора от 07.05.2025 г. 143-ОД | AN76: http://schooltwenty.ru/content/2024/АВ%202024/программа%20Олимпийская%20деревня.docx
A77: 56 | B77: 23 | C77: Лагерь с дневным пребыванием детей муниципального бюджетного учреждения дополнительного образования городского округа "Город Архангельск" "Ломоносовский дом детского творчества" на базе муниципального бюджетного общеобразовательного учреждения городского округа "Город Архангельск" "Средняя школа № 95 имени П.Г.Лушева" (МБУ ДО "ЛДДТ" на базе МБОУ СШ № 95) | D77: муниципальная | E77: Лямова Елена Николаевна | F77: 2927002770 | G77: Юридический адрес: 163030, г. Архангельск, ул. Русанова, д. 12 Тел/факс: 8 (8182) 68-58-38 E-mail: lddt-zav@mail.ru Фактический адрес: 163015, г. Архангельск, просп. Ленинградский, д. 165, корп. 1; ул. Розы Шаниной, д. 6 Тел: 8 (8182) 68-60-59 E-mail: school_95@mail.ru | H77: http://arh-school95.su/achievements/letnyaya-kompaniya-2022 | I77: лагерь, организованный образовательной организацией, с дневным пребыванием | J77: сезонный | M77: 02.06.2025-23.06.2025 | N77: 139 | AC77: 177.64 | AD77: 7-17 лет | AE77: Режим работы с 9:00 до 15:00. Организовано 2-х разовое питание и медицинское сопровождение. Имеются игровые комнаты, спортивный зал, спортивная площадка. Запланированные мероприятия: организация культурно-массовых и спортивных мероприятий, творческие мастерские, походы, посещенеие музея. | AF77: не имеется | AG77: здание начальной школы, 1966 г. | AH77: СЭЗ № 29.01.04.000.М.000393.05.25 от 20.05.2025 г. | AI77: Предписание Роспотребнадзора № 134 от 05.03.2024. Срок исполнения 05.03.2025 г. | AJ77: Договор № 30 от 05.02.2024 г. ГБУЗ АО "АГКБ № 4" | AK77: Лицензия № 6680 от 13.07.2021 г. МБОУ СШ № 95 Лицензия № 6813 от 24.12.2021 г. МБУ ДО "ЛДДТ" | AL77: Система информации и связи, светоотражающие указатели. | AM77: Приказ директора от 07.05.2025 г. 143-ОД | AN77: https://clck.ru/3M2zPq
A78: 57 | B78: 24 | C78: Лагерь с дневным пребыванием детей муниципального бюджетного учреждения дополнительного образования городского округа "Город Архангельск" "Ломоносовский дом детского творчества" на базе муниципального бюджетного общеобразовательного учреждения городского округа "Город Архангельск" "Средняя школа № 26 имени В.Д. Никитова" (МБУ ДО "ЛДДТ" на базе МБОУ СШ № 26) | D78: муниципальная | E78: Лямова Елена Николаевна | F78: 2927002770 | G78: Юридический адрес: 163030, г. Архангельск, ул. Русанова, д. 12 Тел/факс: 8 (8182) 68-58-38 E-mail: lddt-zav@mail.ru Фактический адрес: 163062, г. Архангельск, ул. Воронина, д. 37, ул. Воронина, корп. 3, корп. 4 Тел: 8 (8182) 62-88-02 Е-mail: schkola26.arhangelsk@yandex.ru | H78: https://arhshkola26.ru/roditelyam/letnij-lager/2025-2/ | I78: лагерь, организованный образовательной организацией, с дневным пребыванием | J78: сезонный | M78: 02.06.2025-27.06.2025 | N78: 135 | AC78: 177.64 | AD78: 7-17 лет | AE78: Режим работы с 9:00 до 15:00. Организовано 2-х разовое питание и медицинское сопровождение. Имеются игровые комнаты, спортивные площадки. Запланированные мероприятия: организация культурно-массовых и спортивных мероприятий, творческие мастерские. | AF78: не имеется | AG78: 1967 г. | AH78: СЭЗ № 29.01.04.000.М.000277.04.25 от 30.04.2025 г. | AI78: Управление Федеральной службы по надзору в сфере защиты прав потребителей и благополучия человека по Архангельской области от 14.02.2022 № 62/пр. Продлено до 13.05.2025г. Управление Федеральной службы по надзору в сфере защиты прав потребителей и благополучия человека по Архангельской области от 20.05.2024 № 305/1/пр. Срок устранения до 24.09.2025 г. | AJ78: Договор № 30 от 05.02.2024 г. ГБУЗ АО "АГКБ № 4" | AK78: Лицензия № 6813 от 24.12.2021 г. МБУ ДО "ЛДДТ" Лицензия № 6774 от 26.11.2021 г. МБОУ СШ № 26 | AL78: В наличии пандус | AM78: Приказ директора от 07.05.2025 г. 143-ОД | AN78: https://arhshkola26.ru/wp-content/uploads/2025/05/programma_vospitatelnoj_raboty.pdf
A79: 58 | B79: 25 | C79: Лагерь с дневным пребыванием детей муниципального бюджетного учреждения дополнительного образования городского округа "Город Архангельск" "Ломоносовский дом детского творчества" на базе муниципального бюджетного общеобразовательного учреждения городского округа "Город Архангельск" "Средняя школа № 28 имени Жореса Ивановича Алфёрова" (МБУ ДО "ЛДДТ" на базе МБОУ СШ № 28) | D79: муниципальная | E79: Лямова Елена Николаевна | F79: 2927002770 | G79: Юридический адрес: 163030, г. Архангельск, ул. Русанова, д. 12 Тел/факс: 8 (8182) 68-58-38 E-mail: lddt-zav@mail.ru Фактический адрес: 163057, г. Архангельск, ул. Воронина, д. 28, корп.1 Тел: 8 (8182) 68-66-89 Е-mail: info@school28.edu.ru | H79: https://school28-arh.edusite.ru/p176aa1.html | I79: лагерь, организованный образовательной организацией, с дневным пребыванием | J79: сезонный | M79: 02.06.2025-23.06.2025 | N79: 130 | AC79: 177.64 | AD79: 7-17 лет | AE79: Режим работы с 8:30 до 14:30. Организовано 2-х разовое питание и медицинское сопровождение. Имеются игровые комнаты, спортивный зал, спортивная площадка. Запланированные мероприятия: организация культурно-массовых и спортивных мероприятий, творческие мастерские, психологические тренинги, походы, посещенеие музея. | AF79: не имеется | AG79: 2023 г. | AH79: СЭЗ № 29.01.04.000.М.000223.04.25 от 24.04.2025 г. | AI79: Проверок не было | AJ79: Договор № 30 от 05.02.2024 г. ГБУЗ АО "АГКБ № 4" | AK79: Лицензия № 6742 от 18.10.2021 г. выписка из реестра лицензий №ЛО35-01270-29/00236373 от 18.10.2021 г. Лицензия № 6813 от 24.12.2021 г. МБУ ДО "ЛДДТ" | AL79: В наличии пандус | AM79: Приказ директора от 07.05.2025 г. 143-ОД | AN79: https://school28-arh.edusite.ru/p275aa1.html
A80: 59 | B80: 26 | C80: Лагерь с дневным пребыванием детей муниципального бюджетного учреждения дополнительного образования городского округа "Город Архангельск" "Ломоносовский дом детского творчества" на базе муниципального бюджетного общеобразовательного учреждения городского округа "Город Архангельск" "Средняя школа № 27" (МБУ ДО "ЛДДТ" на базе МБОУ СШ № 27) | D80: муниципальная | E80: Лямова Елена Николаевна | F80: 2927002770 | G80: Юридический адрес: 163030, г. Архангельск, ул. Русанова, д. 12 Тел/факс: 8 (8182) 68-58-38 E-mail: lddt-zav@mail.ru Фактический адрес: 163016, Архангельская область, г.Архангельск, ул. Кирова, д. 7, ул. Циолковского, д. 4 Тел: 8 (8182) 68-60-85 Е-mail: aschool27@mail.ru | H80: https://arhschool27.edusite.ru/p261aa1.html | I80: лагерь, организованный образовательной организацией, с дневным пребыванием | J80: сезонный | M80: 02.06.2025-27.06.2025 | N80: 110 | AC80: 177.64 | AD80: 6,5-17 лет | AE80: Режим работы с 9:00 до 15:00. Организовано 2-х разовое питание и медицинское сопровождение. Имеются игровые комнаты, спортивный зал, спортивные площадки. Запланированные мероприятия: организация культурно-массовых и спортивных мероприятий, творческие мастерские, психологические тренинги, походы. | AF80: не имеется | AG80: здание начальной школы, 1966 г. | AH80: СЭЗ № 29.01.04.000.М.000225.05.25 от 24.04.2025 г. | AI80: Управление Федеральной службы по надзору в сфере защиты прав потребителей и благополучия человека по Архангельской области, профилактический визит предписание №4/1пр. от 13.03. 2024 г., срок исполнения 15.09.2025 г. | AJ80: Договор № 30 от 05.02.2024 г. ГБУЗ АО "АГКБ № 4" | AK80: Лицензия № 6776 от 26.11.2021 г. Лицензия № 6813 от 24.12.2021 г. МБУ ДО "ЛДДТ" | AL80: В наличии пандус | AM80: Приказ директора от 07.05.2025 г. 143-ОД | AN80: https://arhschool27.edusite.ru/DswMedia/rpv_lager-_2024.pdf
A81: 60 | B81: 27 | C81: Лагерь с дневным пребыванием детей муниципального бюджетного учреждения дополнительного образования городского округа "Город Архангельск" "Ломоносовский дом детского творчества" на базе муниципального бюджетного общеобразовательного учреждения городского округа "Город Архангельск" "Средняя школа № 82" (МБУ ДО "ЛДДТ" на базе МБОУ СШ № 82) | D81: муниципальная | E81: Лямова Елена Николаевна | F81: 2927002770 | G81: Юридический адрес: 163030, г. Архангельск, ул. Русанова, д. 12 Тел/факс: 8 (8182) 68-58-38 E-mail: lddt-zav@mail.ru Фактический адрес: 163038, г. Архангельск, ул. Речников, д. 46 Тел: 8 (8182) 29-65-75 Е-mail: Zaton.shkola82@yandex.ru | H81: https://school82arh.ucoz.net/index/dol_quot_start_quot/0-127 | I81: лагерь, организованный образовательной организацией, с дневным пребыванием | J81: сезонный | M81: 02.06.2025-23.06.2025 | N81: 110 | AC81: 177.64 | AD81: 7-17 лет | AE81: Режим работы лагеря: с 8:30 до 14:30. Организовано 2-х разовое питание и медицинское сопровождение. Имеются игровые комнаты, спортивные площадки. Запланированные мероприятия: организация культурно-массовых и спортивных мероприятий, творческие мастерские, походы, выездные мероприятия, развлекательные и спортивные мероприятия с привлечением сторонних организаций. | AF81: не имеется | AG81: здание школы, 1939 г.; кап. ремонт, 20120 г. | AH81: СЭЗ № 29.01.04.000.М.000281.04.25 от 30.04.2025 г. | AI81: Акт профилактического визита Роспотребнадзора № 1113/2024 от 27.12.24 – 1 замечание. Провести ремонт потолка с устранением дефектов поверхности в туалете для мальчиков на 2 этаже (ржавые следы металлического покрытия). Срок исполнения 24.12.2026 г. | AJ81: Договор № 30 от 05.02.2024 г. ГБУЗ АО "АГКБ № 4" | AK81: Лицензия № 6804 от 23.12.2021г. Лицензия № 6813 от 24.12.2021 г. МБУ ДО "ЛДДТ" | AL81: Условия не созданы | AM81: Приказ директора от 07.05.2025 г. 143-ОД | AN81: https://school82arh.ucoz.net/22/2025/programma_vospitatelnoj_raboty_dol_2025_mbou_ssh_8.pdf
A82: 61 | B82: 28 | C82: Лагерь с дневным пребыванием детей муниципального бюджетного учреждения дополнительного образования городского округа "Город Архангельск" "Ломоносовский дом детского творчества" на базе муниципального бюджетного общеобразовательного учреждения городского округа "Город Архангельск" "Средняя школа № 93 имени 77-й гвардейской Московско-черниговской стрелковой дивизии" (МБУ ДО "ЛДДТ" на базе МБОУ СШ № 93) | D82: муниципальная | E82: Лямова Елена Николаевна | F82: 2927002770 | G82: Юридический адрес: 163030, г. Архангельск ул. Русанова, д. 12 Тел/факс: 8 (8182) 68-58-38 E-mail: lddt-zav@mail.ru Фактический адрес: 163039, г. Архангельск, ул. Вторая линия, д. 10,корп. 1; ул. Клепача, д.3, корп. 2 Тел: 8 (8182) 62-69-97 Е-mail: mousosh93@rambler.ru | H82: https://arhschool93.nubex.ru/61076 | I82: лагерь, организованный образовательной организацией, с дневным пребыванием | J82: сезонный | M82: 02.06.2025-23.06.2025 | N82: 63 | AC82: 177.64 | AD82: 7-17 лет | AE82: Режим работы лагеря: 9:00 до 15:00. Организовано 2-х разовое питание и медицинское сопровождение. Имеются игровые комнаты, уличные спортивные площадки. Запланированные мероприятия: организация культурно-массовых и спортивных мероприятий, творческие мастерские, психологические тренинги, походы. | AF82: не имеется | AG82: основное здание, 1969 г. | AH82: СЭЗ № 29.01.04.000.М.000227.04.25 от 24.05.2025 г. | AI82: Проверок не было | AJ82: Договор № 30 от 05.02.2024 г. ГБУЗ АО "АГКБ № 4" | AK82: Лицензия № 6805 от 23.12.2021 г. Лицензия № 6813 от 24.12.2021 г. МБУ ДО "ЛДДТ" | AL82: Условия созданы для хранения лекарственных препаратов для медицинского применения и специализированных продуктов лечебного питания | AM82: Приказ директора от 07.05.2025 г. 143-ОД | AN82: https://arhschool93.nubex.ru/ru/61076/62862/62868/64304/
A83: 62 | B83: 29 | C83: Лагерь с дневным пребыванием детей муниципального бюджетного учреждения дополнительного образования городского округа "Город Архангельск" "Ломоносовский дом детского творчества" (МБУ ДО "ЛДДТ") | D83: муниципальная | E83: Лямова Елена Николаевна | F83: 2927002770 | G83: Юридический адрес: 163030, г. Архангельск, ул. Русанова, д. 12 Тел/факс: 8(8182) 68-58-38 E-mail: lddt-zav@mail.ru Фактический адрес: 163030, г. Архангельск, ул. Воронина, д.28, корп. 1 Тел.: 8(8182) 68-66-89; 8(8182) 62-90-69 | H83: https://lddt.profiedu.ru/?section_id=4 | I83: лагерь, организованный образовательной организацией, с дневным пребыванием | J83: сезонный | M83: 02.06.2025-23.06.2025 | N83: 58 | AC83: 177.64 | AD83: 6,5-17 лет | AE83: Режим работы с 9:00 до 15:00. Организовано 2-х разовое питание и медицинское сопровождение. Имеются игровые комнаты. Запланированные мероприятия: организация культурно-массовых и спортивных мероприятий, творческие мастерские, походы. | AF83: не имеется | AG83: 1963 г. | AH83: СЭЗ № 29.01.04.000.М.000224.04.25 от 24.04.2025 г. | AI83: Проверок не было | AJ83: Договор № 30 от 05.02.2024 г. ГБУЗ АО "АГКБ № 4" | AK83: Лицензия № 6813 от 24.12.2021г. Лицензия № 6813 от 24.12.2021 г. МБУ ДО "ЛДДТ" | AL83: Условия не созданы | AM83: Приказ директора от 07.05.2025 г. 143-ОД | AN83: https://lddt.profiedu.ru/file/download?id=750
A84: 63 | B84: 30 | C84: Лагерь с дневным пребыванием детей муниципального бюджетного учреждения дополнительного образования городского округа "Город Архангельск" "Соломбальский дом детского творчества" на базе муниципального бюджетного общеобразовательного учреждениягородского округа "Город Архангельск" "Средняя школа № 1" (МБУ ДО "СДДТ" на базе МБОУ СШ № 1) | D84: муниципальная | E84: Студенцова Анна Иннокентьевна | F84: 2928000906 | G84: Юридический адрес: 163020, г. Архангельск, Банный переулок 1-й, д. 2 Тел/факс: 8 (8182) 22-31-04; 8 (8182) 24-9140 Фактический адрес: 163045, г. Архангельск, ул. Комсомольская, д. 5 Тел: 8 (8182) 62-58-94 Е-mail: school1arh@mail.ru | H84: https://1.arkhschool.ru/?section_id=276 | I84: лагерь, организованный образовательной организацией, с дневным пребыванием | J84: сезонный | M84: 02.06.2025-30.06.2025 | N84: 104 | AC84: 177.64 | AD84: 6,5-17 лет | AE84: Режим работы лагеря с 8:30 до 14:30 с 2-х разовым питанием. Организовано медицинское сопровождение. Имеются игровые комнаты, актовый зал, большой спортивный зал. Запланированные мероприятия: организация мероприятий патриотичекой направленности,экскурсии, встречи с представителями библиотек города Архангельска. | AF84: не имеется | AG84: 1972 г. | AH84: СЭЗ № 29.01.04.000.М.000459.05.25 от 26.05.2025 г. | AI84: Управление федеральной службы по надзору в сфере защиты прав потребителей и благополучия человека от 10.12.2021 № 956/-1 пр. (до 06.12.2024, исполнено частично, подано ходатайство о продлении сроков); - Управление федеральной службы по надзору в сфере защиты прав потребителей и благополучия человека от 10.12.2021 № 956/-2 пр. (до 06.12.2024, исполнено частично, подано ходатайство о продлении сроков); - Управление федеральной службы по надзору в сфере защиты прав потребителей и благополучия человека от 01.03.2023 № 71-1/пр. (до 01.11.2024, исполнено частично, подано ходатайство о продлении сроков); - Управление федеральной службы по надзору в сфере защиты прав потребителей и благополучия человека от 01.03.2023 № 71-2/пр. (до 01.11.2024, исполнено частично, подано ходатайство о продлении сроков); - Управление федеральной службы по надзору в сфере защиты прав потребителей и благополучия человека от 07.03.2024 № 135/пр. (до 23.09.2025). | AJ84: Договор № 05/25 от 15.01.2025 г. ГБУЗ АО "АГДКП" | AK84: Выписка из реестра лицензий № ЛО35-01270-29/00236318 от 19.10.2021г. | AL84: Назначены сотрудники (тьюторы), осуществляющие сопровождение детей-инвалидов и детей с ОВЗ (при необходимости) в процессе оказания им услуг по организации отдыха и оздоровления. | AM84: Утверждено приказом директора МБУ ДО «СДДТ» № 121 от 05.05.2025 г. | AN84: https://golnk.ru/ZBReD
A85: 64 | B85: 31 | C85: Лагерь с дневным пребыванием детей муниципального бюджетного учреждения дополнительного образования городского округа "Город Архангельск" "Соломбальский Дом детского творчества" на базе муниципального бюджетного общеобразовательного учреждениягородского округа "Город Архангельск" "Средняя школа № 23 имени А.С. Пушкина" (МБУ ДО "СДДТ" на базе МБОУ СШ № 23 имени А.С. Пушкина) | D85: муниципальная | E85: Студенцова Анна Иннокентьевна | F85: 2928000906 | G85: Юридический адрес: 163020, г. Архангельск, Банный переулок 1-й, д. 2 Тел/факс: 8 (8182) 22-31-04; 8 (8182) 24-9140 Е-mail: sddt.goral@yandex.ru Фактический адрес: 163045, г. Архангельск, прсп. Троицкий, д.162; просп. Московский, д.43, корп. 2 Тел: 8 (81812) 27-51-24, секретарь Е-mail: secretarmou23@gmail.com | H85: https://arh29shkola23.edusite.ru/p310aa1.html | I85: лагерь, организованный образовательной организацией, с дневным пребыванием | J85: сезонный | M85: 02.06.2025-27.06.2025 | N85: 75 | AC85: 177.64 | AD85: 6,5-17 лет | AE85: Режим работы лагеря с 08.30 до 14.30 часов с 2-х разовым питанием. Имеются игровые комнаты, столовая. Организовано медицинское сопровождение. Запланированные мероприятия: организация мероприятий арктической направленности, экскурсии, встречи с представителями библиотек города Архангельска | AF85: не имеется | AG85: 1936 г.; кап.ремонт, 2023 г. | AH85: СЭЗ № 29.01.04.000.М.000457.05.25 от 26.05.2025 г. | AI85: Управление федеральной службы по надзору в сфере защиты прав потребителей и благополучия человека от 20.12.2023 № 515 (до 09.09.2025). | AJ85: Договор № 05/25 от 15.01.2025 г. ГБУЗ АО "АГДКП" | AK85: Лицензия № ЛО-35-01270-29/00236318 от 19.10.2021 г. | AL85: Безбарьерная среда для инвалидов по зрению и слабовидящих людей; - назначены сотрудники (тьюторы), осуществляющие сопровождение детей-инвалидов и детей с ОВЗ (при необходимости) в процессе оказания им услуг по организации отдыха и оздоровления; - расширенные дверные проемы. | AM85: Утверждено приказом директора МБУ ДО «СДДТ» № 121 от 05.05.2025 г. | AN85: https://golnk.ru/D8Kn9
A86: 65 | B86: 32 | C86: Лагерь с дневным пребыванием детей муниципального бюджетного учреждения дополнительного образования городского округа "Город Архангельск" "Соломбальский дом детского творчества" на базе муниципального бюджетного общеобразовательного учреждениягородского округа "Город Архангельск" "Основная школа № 48" (МБУ ДО "СДДТ" на базе МБОУ ОШ № 48) | D86: муниципальная | E86: Студенцова Анна Иннокентьевна | F86: 2928000906 | G86: Юридический адрес: 163020, г. Архангельск, Банный переулок 1-й, д. 2 Тел/факс: 8 (8182) 22-31-04; 8 (8182) 24-91-40 Фактический адрес: 163019, г. Архангельск, ул. Приморская, д. 13; ул.Воронина, д.28, корп. 1 Тел: 8 (8182) 67-66-94 Е-mail: scool48@mail.ru | H86: https://arh-school48.nubex.ru/12344/ | I86: лагерь, организованный образовательной организацией, с дневным пребыванием | J86: сезонный | M86: 02.06.2025-27.06.2025 | N86: 30 | AC86: 177.64 | AD86: 6,5-17 лет | AE86: Режим работы лагеря с 9:00 до 15:00 с 2-х разовым питанием. Организовано медицинское сопровождение. Помещения лагеря: каигровые комнаты, столовая (актовый зал), спортивный зал. Запланированные мероприятия: организация культурно-массовых мероприятий, экскурсии, спортивные мепроприятия, тематические беседы, лекции | AF86: не имеется | AG86: 1968 г. | AH86: СЭЗ № 29.01.04.000.М.000335.05.25 от 13.05.2025 г. | AI86: Проверок не было | AJ86: Договор № б/н от 10.02.2025 г. ГБУЗ АО "АГКБ № 7" | AK86: Выписка из реестра лицензий № ЛО35-01270-29/00236318 от 19.10.2021 г. | AL86: Назначены сотрудники (тьюторы), осуществляющие сопровождение детей-инвалидов и детей с ОВЗ (при необходимости) в процессе оказания им услуг по организации отдыха и оздоровления; - табличка с названием школы, написанная шрифтом Брайля. | AM86: Утверждено приказом директора МБУ ДО «СДДТ» № 121 от 05.05.2025 г. | AN86: https://golnk.ru/wx9bx
A87: 66 | B87: 33 | C87: Лагерь с дневным пребыванием детей муниципального бюджетного учреждения дополнительного образования городского округа "Город Архангельск" "Соломбальский дом детского творчества" на базе муниципального бюджетного общеобразовательного учреждения городского округа "Город Архангельск" "Средняя школа № 49 имени В.Ф.Чуданова" (МБУ ДО "СДДТ" на базе МБОУ СШ № 49) | D87: муниципальная | E87: Студенцова Анна Иннокентьевна | F87: 2928000906 | G87: Юридический адрес: 163020, г. Архангельск, Банный переулок 1-й, д. 2 Тел/факс: 8 (8182) 22-31-04; 8 (8182)24-9140 Фактический адрес: 163020, г. Архангельск, просп. Никольский, д. 152, Тел: 8 (8182) 22-55-71 Е-mail: schkola49@yandex.ru | H87: https://xn--49-9kc7blsn5b.xn--p1ai/summer-campaign-2023 | I87: лагерь, организованный образовательной организацией, с дневным пребыванием | J87: сезонный | M87: 02.06.2025-27.06.2025 | N87: 76 | AC87: 177.64 | AD87: 6,5-17 лет | AE87: Режим работы лагеря с 08.30 до 14.30 часов с 2-х разовым питанием. Помещения лагеря: кабинеты для отрядов, столовая. Запланированные мероприятия: культурно-массовые мероприятия, экскурсии, спортивные мероприятия, тематические беседы, лекции. | AF87: не имеется | AG87: 1963 г. | AH87: СЭЗ № 29.01.04.000.М.000455.05.25 от 26.05.2025 г. | AI87: Управление федеральной службы по надзору в сфере защиты прав потребителей и благополучия человека от 30.05.2024 № 238/пр. (до 25.09.2025); - Управление федеральной службы по надзору в сфере защиты прав потребителей и благополучия человека от 30.05.2023 № 241/пр. (до 31.05.2025). | AJ87: Договор № б/н от 10.02.2025 г. ГБУЗ АО "АГКБ № 7" | AK87: Выписка из реестр лицензий № ЛО35-01270- 29/00236318 от 19.10.2021 г. | AL87: Назначены сотрудники (тьюторы), осуществляющие сопровождение детей-инвалидов и детей с ОВЗ (при необходимости) в процессе оказания им услуг по организации отдыха и оздоровления; - табличка с названием школы, написанная шрифтом Брайля; - обрамление входной двери желтым цветом, на стеклянных входных дверях – желтые круги во избежание столкновения слабовидящего с дверью; - адаптация официального сайта для лиц с нарушением зрения. | AM87: Утверждено приказом директора МБУ ДО «СДДТ» № 121 от 05.05.2025 г. | AN87: https://golnk.ru/VKnYw
A88: 67 | B88: 34 | C88: Лагерь с дневным пребыванием детей муниципального бюджетного учреждения дополнительного образования городского округа "Город Архангельск" "Соломбальский дом детского творчества" на базе муниципального бюджетного общеобразовательного учреждения городского округа "Город Архангельск" "Средняя школа № 54 имени Ивана Ермолаевича Седунова" (МБУ ДО "СДДТ" на базе МБОУ СШ № 54) | D88: муниципальная | E88: Студенцова Анна Иннокентьевна | F88: 2928000906 | G88: Юридический адрес: 163020, г. Архангельск, Банный переулок 1-й, д. 2 Тел/факс: 8 (8182) 22-31-04; 8 (8182) 24-91-40 Фактический адрес: 163018, г. Архангельск, ул. Луганская, д. 6, Тел: 8 (8182) 67-01-09 Е-mail: 29school54@rambler.ru | H88: http://school54.arkh.eduru.ru/letnaya_kampaniay | I88: лагерь, организованный образовательной организацией, с дневным пребыванием | J88: сезонный | M88: 02.06.2025-27.06.2025 | N88: 77 | AC88: 177.64 | AD88: 6,5-17 лет | AE88: Режим работы лагеря с 8:30 до 14:30 с 2-х разовым питанием. Организовано медицинское сопровождение. Помешения лагеря: 4 кабинета-игровые комнаты, столовая, спортивная площадка. Запланированные мероприятия: организация культурно-массовых мероприятий, экскурсии, спортивные мероприятия, тематические беседы, лекции | AF88: не имеется | AG88: 1964 г. | AH88: СЭЗ № 29.01.04.000.М.000336.05.25 от 13.05.2025 г. | AI88: Управление федеральной службы по надзору в сфере защиты прав потребителей и благополучия человека от 24.05.2023 № 262/пр (до 01.10.2024, исполнено частично, написано письмо о продлении сроков до октября 2025 г. | AJ88: Договор № б/н от 10.02.2025 г. ГБУЗ АО "АГКБ № 7" | AK88: Выписка из реестра лицензий №ЛО35-01270- 29/00236318 от 19.10.2021 г. | AL88: Назначены сотрудники (тьюторы), осуществляющие сопровождение детей-инвалидов и детей с ОВЗ (при необходимости) в процессе оказания им услуг по организации отдыха и оздоровления; - на входных дверях – желтые круги во избежание столкновения слабовидящего с дверью; - адаптация официального сайта для лиц с нарушением зрения. | AM88: Утверждено приказом директора МБУ ДО «СДДТ» № 121 от 05.05.2025 г. | AN88: https://disk.yandex.ru/i/bM_oHnbXHyObmg
A89: 68 | B89: 35 | C89: Лагерь с дневным пребыванием детей муниципального бюджетного учреждения дополнительного образования городской округ "Город Архангельск" "Соломбальский Дом детского творчества" на базе муниципального бюджетного общеобразовательного учреждения городской округ "Город Архангельск" "Средняя школа № 55 имени А.И. Анощенкова" (МБУ ДО "СДДТ" на базе МБОУ СШ № 55) | D89: муниципальная | E89: Студенцова Анна Иннокентьевна | F89: 2928000906 | G89: Юридический адрес: 163020, г. Архангельск, Банный переулок 1-й, д. 2 Тел/факс: 8 (8182) 22-31-04; 8 (8182) 24-91-40 Фактический адрес: 163025, г. Архангельск, ул. Пионерская, д. 82, корп. 1, Тел: 8 (953) 936-50-77, канцелярия Е-mail: adm.55@mail.ru | H89: https://sch55.eduarkh.ru/about/leto | I89: лагерь, организованный образовательной организацией, с дневным пребыванием | J89: сезонный | M89: 02.06.2025-27.06.2025 | N89: 53 | AC89: 177.64 | AD89: 6,5-17 лет | AE89: Режим работы лагеря с 8:30 до 14:30 с 2-х разовым питанием. Организовано медицинсое сопровождение. Помещения лагеря: две игровые комнаты, столовая, спортивный зал. Запланированные мероприятия: организация культурно-массовых мероприятий, тематические беседы | AF89: не имеется | AG89: 1972 г. | AH89: СЭЗ № 29.01.04.000.М.000388.05.25 от 20.05.2025 г. | AI89: Управление федеральной службы по надзору в сфере защиты прав потребителей и благополучия человека от 18.10.2021 № 821/пр (до 01.09.2025); - Управление федеральной службы по надзору в сфере защиты прав потребителей и благополучия человека от 08.10.2024 № 871/пр (до 01.09.2025) | AJ89: Договор № 1/2025 от 12.01.2025 г. ГБУЗ АО "АГКБ № 6" | AK89: Виписка из реестра лицензий № ЛО35-01270- 29/00236318 от 19.10.2021 г. | AL89: Назначены сотрудники (тьюторы), осуществляющие сопровождение детей-инвалидов и детей с ОВЗ (при необходимости) в процессе оказания им услуг по организации отдыха и оздоровления; - пандус при входе в школу; - адаптация официального сайта для лиц с нарушением зрения | AM89: Утверждено приказом директора МБУ ДО «СДДТ» № 121 от 05.05.2025 г. | AN89: https://golnk.ru/1vRZ5
A90: 69 | B90: 36 | C90: Лагерь с дневным пребыванием детей муниципального бюджетного учреждения дополнительного образования городского округа "Город Архангельск" "Соломбальский Дом детского творчества" на базе муниципального бюджетного общеобразовательного учреждения городского округа "Город Архангельск" "Средняя школа № 59 имени Героя Советского Союза М.Е.Родионова" (МБУ ДО "СДДТ" на базе МБОУ СШ № 59) | D90: муниципальная | E90: Студенцова Анна Иннокентьевна | F90: 2928000906 | G90: Юридический адрес: 163020, г. Архангельск, Банный переулок 1-й, д. 2 Тел/факс: 8 (8182) 22-31-04; 8 (8182) 24-91-40 Фактический адрес: 163026, г. Архангельск, ул. Победы, д. 128, корп.1, Тел: 8 (8182) 47-19-25 Е-mail: mousosh59@mail.ru | H90: https://mbou59.com.ru/?page_id=1916 | I90: лагерь, организованный образовательной организацией, с дневным пребыванием | J90: сезонный | M90: 02.06.2025-27.06.2025 | N90: 75 | AC90: 177.64 | AD90: 6,5-17 лет | AE90: Режим работы лагеря с 08.30 до 14.30 часов с 2-х разовым питанием. Организовавно медицинское сопровождение. Помешения лагеря: комнаты для занятий - 2 класса,, столовая, актовый зал, спортивный зал, уличные спортивные площадки при школе. Запланированные мероприятия: организация культурно-массовых мероприятий, тематические беседы | AF90: не имеется | AG90: 1995 г. | AH90: СЭЗ № 29.01.04.000.М.000399.05.25 от 20.05.2025 г. | AI90: Прокуратура г. Архангельска от 13.11.2023 № 7-40-2023 (до 31.03.2025); - Управление федеральной службы по надзору в сфере защиты прав потребителей и благополучия человека от 20.11.2023 № 493/пp (до 02.09.2024, исполнено частично, сроки продлены до сентября 2025); - Управление федеральной службы по надзору в сфере защиты прав потребителей и благополучия человека от 04.12.2024 № 968/пр (до 10.12.2026). | AJ90: Договор № 1/2025 от 12.01.2025 г. ГБУЗ АО "АГКБ № 6" | AK90: Выписка из реестр лицензий № ЛО35-01270- 29/00236318 от 19.10.2021 г. | AL90: Назначены сотрудники (тьюторы), осуществляющие сопровождение детей-инвалидов и детей с ОВЗ (при необходимости) в процессе оказания им услуг по организации отдыха и оздоровления; - привлечение педагога-психолога для детей с ТНР и ЗПР | AM90: Утверждено приказом директора МБУ ДО «СДДТ» № 121 от 05.05.2025 г. | AN90: https://golnk.ru/YXyQR
A91: 70 | B91: 37 | C91: Лагерь с дневным пребыванием детей муниципального бюджетного учреждения дополнительного образования городского округа "Город Архангельск" "Соломбальский дом детского творчества" на базе муниципального бюджетного общеобразовательного учреждения городского округа "Город Архангельск" "Средняя школа № 60" (МБУ ДО "СДДТ" на базе МБОУ СШ № 60) | D91: муниципальная | E91: Студенцова Анна Иннокентьевна | F91: 2928000906 | G91: Юридический адрес: 163020, г. Архангельск, Банный переулок 1-й, д. 2 Тел/факс: 8 (8182) 22-31-04; 8 (8182) 24-91-40 Фактический адрес: 163029, г. Архангельск, ул.Мудьюгская,д. 25, ул. Мудьюгская, д. 17, корп. 1, Тел: 8 (8182) 69-15-61, секретарь,бухгалтерия Е-mail: sh60-arh@yandex.ru | H91: https://ssh60.arkh.eduru.ru/organizasia_otdiha | I91: лагерь, организованный образовательной организацией, с дневным пребыванием | J91: сезонный | M91: 02.06.2025-27.06.2025 | N91: 25 | AC91: 177.64 | AD91: 6,5-17 лет | AE91: Режим работы лагеря с 8:30 до 14:30 с 2-х разовым питанием. Организовано медицинское сопровождение. Помещения лагеря:2 игровые комнаты, спортивный зал, читальный зал, спортивная площадка, стадион. Запланированные мероприятия: организация культурно-массовых и спортивных мероприятий, тематические беседы | AF91: не имеется | AG91: ул. Мудьюгская, д. 25, 1961 г.; ул. Мудьюгская, д.17, корп. 1, 1972 г. | AH91: СЭЗ № 29.01.04.000.М.000485.05.25 от 27.05.2025 г. | AI91: Управление федеральной службы по надзору в сфере защиты прав потребителей и благополучия человека от 13.06.2024 № 403/пр, до 13.06.25 г | AJ91: Договор № 1/2025 от 12.01.2025 г. ГБУЗ АО "АГКБ № 6" | AK91: Выписка из реестра лицензий № ЛО35-01270- 29/00236318 от 19.10.2021 г. | AL91: Назначены сотрудники (тьюторы), осуществляющие сопровождение детей-инвалидов и детей с ОВЗ (при необходимости) в процессе оказания им услуг по организации отдыха и оздоровления; - адаптация официального сайта для лиц с нарушением зрения. | AM91: Утверждено приказом директора МБУ ДО «СДДТ» № 121 от 05.05.2025 г. | AN91: https://golnk.ru/grG0X
A92: 71 | B92: 38 | C92: Лагерь с дневным пребыванием детей муниципального бюджетного учреждения дополнительного образования городского округа "Город Архангельск" "Соломбальский дом детского творчества" на базе муниципального бюджетного общеобразовательного учреждения городского округа "Город Архангельск" "Средняя школа № 70 имени Александра Грина" (МБУ ДО "СДДТ" на базе МБОУ СШ № 70) | D92: муниципальная | E92: Студенцова Анна Иннокентьевна | F92: 2928000906 | G92: Юридический адрес: 163020, г. Архангельск, Банный переулок 1-й, д. 2 Тел/факс: 8 (8182) 22-31-04; 8 (8182) 24-9140 Фактический адрес: 163017, Архангельская область, г. Архангельск, ул. Кегостровская, д. 85, Тел: 8 (8182) 69-15-66 Е-mail: school70-arh@mail.ru | H92: https://mousosh70.ucoz.ru/index/letnjaja_kampanija/0-20 | I92: лагерь, организованный образовательной организацией, с дневным пребыванием | J92: сезонный | M92: 02.06.2025-27.06.2025 | N92: 52 | AC92: 177.64 | AD92: 6,5-17 лет | AE92: Режим работы лагеря с 8:30 до 14:30 с 2-х разовым питанием. Помещения лагеря: раздевалка, столовая, 2 игровые комнаты, спортивный зал. Организовано медицинское сопровождение. Запланированные мероприятия: организация культурно-массовых и спортивных мероприятий, тематические беседы | AF92: не имеется | AG92: 1967 г. | AH92: СЭЗ № 29.01.04.000.М.000334.05.25 от 13.05.2025 г. | AI92: Управление федеральной службы по надзору в сфере защиты прав потребителей и благополучия человека № 401/2пр (до 01.09.2025); Управление федеральной службы по надзору в сфере защиты прав потребителей и благополучия человека № 401/пр (до 01.09.2025). | AJ92: Договор № 05/25 от 15.01.2025 г. ГБУЗ АО "АГДКП" | AK92: Выписка из реестра лицензий № ЛО35-01270- 29/00236318 от 19.10.2021 г. | AL92: Назначены сотрудники (тьюторы), осуществляющие сопровождение детей-инвалидов и детей с ОВЗ (при необходимости) в процессе оказания им услуг по организации отдыха и оздоровления; - адаптация официального сайта для лиц с нарушением зрения. | AM92: Утверждено приказом директора МБУ ДО «СДДТ» № 121 от 05.05.2025 г. | AN92: https://golnk.ru/z258n
A93: 72 | B93: 39 | C93: Лагерь с дневным пребыванием детей муниципального бюджетного учреждения дополнительного образования городского округа "Город Архангельск" "Соломбальский дом детского творчества" (МБУ ДО "СДДТ") | D93: муниципальная | E93: Студенцова Анна Иннокентьевна | F93: 2928000906 | G93: Юридический адрес: 163020, г. Архангельск, Банный переулок 1-й, д. 2 Тел/факс: 8 (8182) 22-31-04; 8 (8182) 24-91-40 Е-mail: sddt.goral@yandex.ru Фактический адрес: 163020, г. Архангельск, Банный переулок 1-й, д. 2; ул. Краснофлотская, д.3 (питание) | H93: https://solombal.arkhschool.ru/?section_id=10 | I93: лагерь, организованный образовательной организацией, с дневным пребыванием | J93: сезонный | M93: 02.06.2025-27.06.2025 | N93: 83 | AC93: 177.64 | AD93: 6,5-17 лет | AE93: Режим работы лагеря с 09.00 до 15.00 часов с 2-х разовым питанием. Помещения лагеря: игровые комнаты, актовый зал. Организовано медицинское сопровождение. Запланированные мероприятия: культурно-массовые мероприятия, беседы, экскурсии, занятия по краткосрочным ДООП | AF93: не имеется | AG93: 1982 г. | AH93: СЭЗ № 29.01.04.000.М.000501.05.25 от 27.05.2025 г. | AI93: Управление федеральной службы по надзору в сфере защиты прав потребителей и благополучия человека – профилактический визит 20.06.2024 г. | AJ93: Договор № б/н от 10.02.2025 г. ГБУЗ АО "АГКБ № 7" | AK93: Выписка из реестра лицензий № ЛО35-01270- 29/00236318 от 19.10.2021 г. | AL93: Адаптация официального сайта для лиц с нарушением зрения; - контрастная маркировка лестницы и входной двери для лиц с нарушением зрения; - назначены сотрудники (тьюторы), осуществляющие сопровождение детей-инвалидов и детей с ОВЗ (при необходимости) в процессе оказания им услуг по организации отдыха и оздоровления. | AM93: Утверждено приказом директора МБУ ДО «СДДТ» № 121 от 05.05.2025 г. | AN93: https://solombal.arkhschool.ru/upload/arkhcssolombal_new/files/90/b8/90b84421978b1cd4273565f9b352c549.pdf
A94: 73 | B94: 40 | C94: Лагерь с дневным пребыванием детей муниципального бюджетного учреждения дополнительного образования городского округа "Город Архангельск" "Соломбальский дом детского творчества" (МБУ ДО "СДДТ" на базе Детского издательского центра) | D94: муниципальная | E94: Студенцова Анна Иннокентьевна | F94: 2928000906 | G94: Юридический адрес: 163020, г. Архангельск, Банный переулок 1-й, д. 2 Тел/факс: 8 (8182) 22-31-04; 8 (8182) 24-91-40 Фактический адрес: 163060, г. Архангельск, ул. Шабалина, д. 22, кв.1-2; ул. Воскресенская, д.106, корп. 2 Тел: 8 (8182) 23-95-85 Е-mail: sddt.goral@yandex.ru | H94: https://solombal.arkhschool.ru/?section_id=10 | I94: лагерь, организованный образовательной организацией, с дневным пребыванием | J94: сезонный | M94: 02.06.2025-23.06.2025 | N94: 15 | AC94: 177.64 | AD94: 6,5-17 лет | AE94: Режим работы лагеря с 08.30 до 14.30 часов с 2-х разовым питанием. Помещения лагеря: кабинеты для занятий, раздевалка. Запланированные мероприятия: культурно-массовые мероприятия, беседы, мастер-классы, выставки, занятия по краткосрочной ДООП. | AF94: не имеется | AG94: 1973 г. | AH94: СЭЗ № 29.01.04.000.М.000458.05.25 от 26.05.2025 г. | AI94: Управление федеральной службы по надзору в сфере защиты прав потребителей и благополучия человека – профилактический визит 20.06.2024 г. | AJ94: Договор № б/н от 10.23.2025 г. ГБУЗ АО "АГКБ № 7" | AK94: Выписка из реестра лицензий № ЛО35-01270-29/00236318 от 19.10.2021 г. | AL94: Платформа для инвалидов "Veara Easy Trap"; - адаптация официального сайта для лиц с нарушением зрения; - контрастная покраска ступеней для лиц с нарушением зрения; - назначены сотрудники (тьюторы), осуществляющие сопровождение детей-инвалидов и детей с ОВЗ (при необходимости) в процессе оказания им услуг по организации отдыха и оздоровления. | AM94: Утверждено приказом директора МБУ ДО «СДДТ» № 121 от 05.05.2025 г. | AN94: https://golnk.ru/QKyLp
A95: 74 | B95: 41 | C95: Лагерь с дневным пребыванием детей муниципального бюджетного учреждения дополнительного образования городского округа "Город Архангельск" "Детский (подростковый) центр "Радуга" на базе муниципального бюджетного общеобразовательного учреждения городского округа "Город Архангельск" "Гимназия № 3 имени К.П.Гемп" (МБУ ДО "ДПЦ "Радуга" на базе МБОУ Гимназия № 3) | D95: муниципальная | E95: Добрынина Елена Валерьевна | F95: 2901068671 | G95: Юридический адрес: 163000, г. Архангельск, просп. Троицкий, д. 96, корп. 2 Тел: 8 (8182) 65-31-67 8 (8182) 65-49-30 Е-mail: arhraduga@mail.ru Фактический адрес: 163000, г. Архангельск, ул. Воскресенская, д. 7, корп. 1 Тел: 8 (8182) 65-73-33 E-mail: aog3adm@yandex.ru | H95: http://gimnasia3.ru/component/content/article/9-2012-01-11-10-16-34/269-detskij-lager-qsolnyshkoq | I95: лагерь, организованный образовательной организацией, с дневным пребыванием | J95: сезонный | M95: 02.06.2025-27.06.2025 | N95: 150 | AC95: 177.64 | AD95: 7-14 лет | AE95: Режим работы: с 8:30 до 14:30. Организовано 2-х разовое питание и медицинское сопровождение. Имеются игровые комнаты, уличная спортивная площадка. Запланированные мероприятия: организация культурно-массовых мероприятий, творческие мастерские, экскурсии, прогулки | AF95: не имеется | AG95: 1971 г. | AH95: СЭЗ № 29.01.04.000.М.000292.05.25 от 05.05.2025 г. | AI95: Предписание Роспотребнадзора № 808/пр от 25 ноября 2024 г., замечание устранить до 25.05.2025 г. | AJ95: Договор № 04/25 от 25.12.2024 г. ГБУЗ АО "АГДКП" | AK95: Лицензия № 6752 от 25.10.2021 г. МБОУ Гимназия № 3 Лицензия № 6386 от 15.12.2016 г. МБУ ДО ДПЦ "Радуга" | AL95: Для детей с ОВЗ цветовое обозначение лестниц. Дети с частичными нарушениями слуха, речевого развития, зрения. Стены учебных кабинетов спокойных пастельных тонов. | AM95: Согласовано: директором МБОУ Гимназия №3 Калининой Е. Н., принято на методическом совете Протокол №4 от 30.04.2025 г. Утверждено: директором МБУ ДО «ДПЦ «Радуга» Добрыниной Е. В., Приказ №33к от 07.05.2025 г. | AN95: http://gimnasia3.ru/documents/Solnishko-2024/progr_vosp_soln_2024_2.pdf
A96: 75 | B96: 42 | C96: Лагерь с дневным пребыванием детей муниципального бюджетного учреждения дополнительного образования городского округа "Город Архангельск" "Детский (подростковый) центр "Радуга" на базе муниципального бюджетного общеобразовательного учреждения городского округа "Город Архангельск" "Средняя школа № 5" (МБУ ДО "ДПЦ "Радуга" на базе МБОУ СШ № 5) | D96: муниципальная | E96: Добрынина Елена Валерьевна | F96: 2901068671 | G96: Юридический адрес: 163000, г. Архангельск, просп. Троицкий, д. 96, корп. 2 Тел: 8 (8182) 65-31-67, 8 (8182) 65-49-30 Е-mail: arhraduga@mail.ru Фактический адрес: 163051, г. Архангельск ул. Воскресенская, д. 103, корп. 1 Тел: 8 (8182) 20-30-29 Е-mail: direktor.school5@yandex.ru | H96: https://arhschool5.ru/info/vneurochnaya-deyatelnost/ozdorovitelnaya-kampaniya-2018/ | I96: лагерь, организованный образовательной организацией, с дневным пребыванием | J96: сезонный | M96: 02.06.2025-27.06.2025 | N96: 75 | AC96: 177.64 | AD96: 7-13 лет | AE96: Режим работы: с 8:30 до 14:30. Организовано 2-х разовое питание и медицинское сопровождение. Имеются игровые комнаты, сенсорная комната, комната психологической разгрузки, спортивный зал, спортивные площадки. Запланированные мероприятия: организация культурно-массовых мероприятий, психологические тренинги, творческие мастерские, походы, посещение музея | AF96: не имеется | AG96: 1969 г. | AH96: СЭЗ № 29.01.04.000.М.000179.04.25 от 16.04.2025 г. | AI96: Проверок не было | AJ96: Договор № 04/25 от 25.12.2024 г. ГБУЗ АО "АГДКП" | AK96: Лицензия № 6730 от 28.09.2021г. Лицензия № 6386 от 15.12.2016 г. МБУ ДО ДПЦ "Радуга" | AL96: В наличии пандус; назначены сотрудники, осуществляющие сопровождение детей – инвалидов и детей с ОВЗ (при необходимости) в процессе оказания им услуг по организации отдыха и оздоровления. Для детей с ОВЗ цветовое обозначение лестниц. Дети с частичными нарушениями слуха, речевого развития, зрения. Стены учебных кабинетов спокойных пастельных тонов. | AM96: Согласовано: директором МБОУ СШ №5 Селяковой Е. П., принято на методическом совете Протокол №5 от 12.05.2025 г. Утверждено: директором МБУ ДО «ДПЦ «Радуга» Добрыниной Е. В., Приказ №33к от 07.05.2025 г. | AN96: https://arhschool5.ru/?page_id=208
A97: 76 | B97: 43 | C97: Лагерь с дневным пребыванием детей муниципального бюджетного учреждения дополнительного образования городского округа "Город Архангельск" "Детский (подростковый) центр "Радуга" на базе муниципального бюджетного общеобразовательного учреждения городского округа "Город Архангельск" "Средняя школа № 8" (МБУ ДО "ДПЦ "Радуга" на базе МБОУ СШ № 8) | D97: муниципальная | E97: Добрынина Елена Валерьевна | F97: 2901068671 | G97: Юридический адрес: 163000, г. Архангельск, просп. Троицкий, д. 96, корп. 2 Тел: 8 (8182) 65-31-67, 8 (8182) 65-49-30 Е-mail: arhraduga@mail.ru Фактический адрес: 163046, г. Архангельск просп. Обводный канал, д. 30 Тел: 8 (8182) 64-05-34, 8 (8182) 64-08-05 E-mail: a_s_8@mail.ru | H97: https://guarant-success.ucoz.ru/index/letnij_lager/0-183 | I97: лагерь, организованный образовательной организацией, с дневным пребыванием | J97: сезонный | M97: 03.06.2025-30.06.2025 | N97: 130 | AC97: 177.64 | AD97: 7-14 лет | AE97: Режим работы: с 8:30 до 14:30. Организовано 2-х разовое питание и медицинское сопровождение. Имеются игровые комнаты. Запланированные мероприятия: организация культурно-массовых мероприятий, творческие мастерские, психологические тренинги, походы, посещение музея | AF97: не имеется | AG97: 1966 г. | AH97: СЭЗ № 29.01.04.000.М.000149.04.25 от 14.04.2025 г. | AI97: Предписание Роспотребнадзора № 4/пр от 24 октября 2024 г., замечание устранить до 26.10.2026 г. | AJ97: Договор № б/н от 10.02.2025 г. ГБУЗ АО "АГКП № 2" | AK97: Лицензия № 6736 от 01.10.2021 г. Лицензия № 6386 от 15.12.2016 г. МБУ ДО ДПЦ "Радуга" | AL97: В наличии пандус. Для детей с ОВЗ цветовое обозначение лестниц. Стены учебных кабинетов спокойных пастельных тонов. | AM97: Согласовано: директором МБОУ СШ №5 Селяковой Е. П., принято на методическом совете Протокол №5 от 12.05.2025 г. Утверждено: директором МБУ ДО «ДПЦ «Радуга» Добрыниной Е. В., Приказ №33к от 07.05.2025 г. | AN97: https://guarant-success.ucoz.ru/Documents/Lager/rabochaja_programma_dol_mbou_ssh-8.pdf
A98: 77 | B98: 44 | C98: Лагерь с дневным пребыванием детей муниципального бюджетного учреждения дополнительного образования городского округа "Город Архангельск" "Детский (подростковый) центр "Радуга" на базе муниципального бюджетного общеобразовательного учреждения городского округа "Город Архангельск" "Средняя школа № 17" (МБУ ДО "ДПЦ "Радуга" на базе МБОУ СШ № 17) | D98: муниципальная | E98: Добрынина Елена Валерьевна | F98: 2901068671 | G98: Юридический адрес: 163000, г. Архангельск, просп. Троицкий, д. 96, корп. 2 Тел: 8 (8182) 65-31-67, 8 (8182) 65-49-30 Е-mail: arhraduga@mail.ru Фактический адрес: 163060, г. Архангельск, ул. Воскресенская, д. 106, корп. 2 Тел: 8 (8182) 20-31-08, Факс: 8 (8182) 20-36-40 Е-mail: school17-arh@mail.ru | H98: https://29arhangelsk-17.edusite.ru/magicpage.html?page=354789 | I98: лагерь, организованный образовательной организацией, с дневным пребыванием | J98: сезонный | M98: 02.06.2025-23.06.2025 | N98: 100 | AC98: 177.64 | AD98: 7-12 лет | AE98: Режим работы: с 8:30 до 14:30. Организовано 2-х разовое питание и медицинское сопровождение. Имеются игровые комнаты. Запланированные мероприятия: организация культурно-массовых и спортивных мероприятий, творческие мастерские, психологические тренинги, походы, посещение музея | AF98: не имеется | AG98: 1975 г. | AH98: СЭЗ № 29.01.04.000.М.000181.04.25 от 16.04.2025 г. | AI98: Предписание Роспотребнадзора от 31.05.2023 № 234/пр устранить до 01.12.2025 г. | AJ98: Договор № б/н от 10.01.2025 г. ГБУЗ АО "АГКП № 2" | AK98: Лицензия № 6746 от 22.10.2021 г. Лицензия № 6386 от 15.12.2016 г. МБУ ДО ДПЦ "Радуга" | AL98: Для детей с ОВЗ цветовое обозначение лестниц. Стены учебных кабинетов спокойных пастельных тонов. | AM98: Согласовано: директором МБОУ СШ №5 Селяковой Е. П., принято на методическом совете Протокол №5 от 12.05.2025 г. Утверждено: директором МБУ ДО «ДПЦ «Радуга» Добрыниной Е. В., Приказ №33к от 07.05.2025 г. | AN98: http://www.29arhangelsk-17.edusite.ru/sveden/files/5281f2e66fb74bfa0b948b1dd6ab578c.pdf
A99: 78 | B99: 45 | C99: Лагерь с дневным пребыванием детей муниципального бюджетного учреждения дополнительного образования городского округа "Город Архангельск" "Детский (подростковый) центр "Радуга" на базе муниципального бюджетного общеобразовательного учреждения городского округа "Город Архангельск" "Гимназия № 24 имени Бориса Львовича Розинга" (МБУ ДО "ДПЦ "Радуга" на базе МБОУ Гимназия № 24) | D99: муниципальная | E99: Добрынина Елена Валерьевна | F99: 2901068671 | G99: Юридический адрес: 163000, г. Архангельск, просп. Троицкий, д. 96, корп. 2 Тел: 8 (8182) 65-31-67, 8 (8182) 65-49-30 Е-mail: arhraduga@mail.ru Фактический адрес: 163051, г. Архангельск, , ул. Тимме, д. 22, корп. 3, Тел: 8 (8182) 64-61-51 Е-mail: schule24@yandex.ru | H99: http://shkola24.su/?page_id=24525 | I99: лагерь, организованный образовательной организацией, с дневным пребыванием | J99: сезонный | M99: 02.06.2025-27.06.2025 | N99: 150 | AC99: 177.64 | AD99: 7-13 лет | AE99: Режим работы: с 8:30 до 14:30. Организовано 2-х разовое питание и медицинское сопровождение. Имеются игровые комнаты, спортивная площадка. Запланированные мероприятия: организация культурно-массовых и спортивных мероприятий, творческие мастерские, посещение музея | AF99: не имеется | AG99: 1989 г. | AH99: СЭЗ № 29.01.04.000.М.000170.04.25 от 16.04.2025 г. | AI99: Предписание Роспотребнадзора от 26.04.24 № 196/пр устранить до 29.08.25 г. | AJ99: Договор № 04/25 от 25.12.2024 г. ГБУЗ АО "АГДКП" | AK99: Лицензия № 6722 от 14.09.2021г. Лицензия № 6386 от 15.12.2016 г. МБУ ДО ДПЦ "Радуга" | AL99: Для детей с ОВЗ цветовое обозначение лестниц. Стены учебных кабинетов спокойных пастельных тонов. | AM99: Согласовано: директором МБОУ СШ №5 Селяковой Е. П., принято на методическом совете Протокол №5 от 12.05.2025 г. Утверждено: директором МБУ ДО «ДПЦ «Радуга» Добрыниной Е. В., Приказ №33к от 07.05.2025 г. | AN99: http://shkola24.su/wp-content/uploads/2025/05/Programma-vospitatelnoj-raboty-DOL.pdf
A100: 79 | B100: 46 | C100: Лагерь с дневным пребыванием детей муниципального бюджетного учреждения дополнительного образования городского округа "Город Архангельск" "Детский (подростковый) центр "Радуга" на базе муниципального бюджетного общеобразовательного учреждения городского округа "Город Архангельск" "Средняя школа № 33" (МБУ ДО "ДПЦ "Радуга" на базе МБОУ СШ № 33) | D100: муниципальная | E100: Добрынина Елена Валерьевна | F100: 2901068671 | G100: Юридический адрес: 163000, г. Архангельск, просп. Троицкий, д. 96, корп. 2 Тел: 8 (8182) 65-31-67, 8 (8182) 65-49-30 Е-mail: arhraduga@mail.ru Фактический адрес: 163060, г. Архангельск, ул. 23-й Гвардейской Дивизии, д. 9 Тел: 8 (8182) 64-08-18 E-mail: masar33@yandex.ru | H100: https://3329.edusite.ru/p160aa1.html | I100: лагерь, организованный образовательной организацией, с дневным пребыванием | J100: сезонный | M100: 02.06.2025-23.06.2025 | N100: 80 | AC100: 177.64 | AD100: 7-14 лет | AE100: Режим работы: с 8:30 до 14:30. Организовано 2-х разовое питание и медицинское сопровождение. Имеются игровые комнаты, спортивная площадка. Запланированные мероприятия: организация культурно-массовых и спортивных мероприятий, творческие мастерские, прогулки | AF100: не имеется | AG100: 1971 г. | AH100: СЭЗ № 29.01.04.000.М.000150.04.25 от 14.04.2025 г. | AI100: Предписание Роспотребнадзора № 1/пр. от 06.02.2025 г., устранить до 10.09.2026 г. | AJ100: Договор № б/н от 10.01.2025 г. ГБУЗ АО "АГКП № 2" | AK100: Лицензия № 5819 от 08.02.2022 г. Лицензия № 6386 от 15.12.2016 г. МБУ ДО ДПЦ "Радуга" | AL100: Стены учебных кабинетов спокойных пастельных тонов. | AM100: Согласовано: директором МБОУ СШ №5 Селяковой Е. П., принято на методическом совете Протокол №5 от 12.05.2025 г. Утверждено: директором МБУ ДО «ДПЦ «Радуга» Добрыниной Е. В., Приказ №33к от 07.05.2025 г. | AN100: https://disk.yandex.ru/i/ERZAbRsJOBAQyw
A101: 80 | B101: 47 | C101: Лагерь с дневным пребыванием детей муниципального бюджетного учреждения городского округа муниципального образования "Город Архангельск" "Детский (подростковый) центр "Радуга" (МБУ ДО "ДПЦ "Радуга") | D101: муниципальная | E101: Добрынина Елена Валерьевна | F101: 2901068671 | G101: Юридический и фактический адрес: 163000, г. Архангельск, просп. Троицкий, д. 96, корп. 2 Тел: 8 (8182) 65-31-67; 8 (8182) 65-49-30 Е-mail: arhraduga@mail.ru | H101: http://www.arhraduga.ru/summer-company-2020/ | I101: лагерь, организованный образовательной организацией, с дневным пребыванием | J101: сезонный | M101: 02.06.2025-27.06.2025 | N101: 30 | AC101: 177.64 | AD101: 7-13 лет | AE101: Режим работы: с 8:30 до 14:30. Организовано 2-х разовое питание и медицинское сопровождение. Имеются игровые комнаты, уличная спортивная площадка. Запланированные мероприятия: организация культурно-массовых и спортивных мероприятий, творческие мастерские, экскурсии, прогулки | AF101: не имеется | AG101: 1941 г. | AH101: СЭЗ № 29.01.04.000.М.000171.04.25 от 16.04.2025 г. | AI101: Проверок не было | AJ101: Договор № 04/25 от 25.12.2024 г. ГБУЗ АО "АГДКП" | AK101: Лицензия № 6386 от 15.12.2016 г. | AL101: Для детей с ОВЗ цветовое обозначение лестниц. Дети с частичными нарушениями слуха, речевого развития, зрения. Стены учебных кабинетов спокойных пастельных тонов. | AM101: Согласовано: директором МБОУ СШ №5 Селяковой Е. П., принято на методическом совете Протокол №5 от 12.05.2025 г. Утверждено: директором МБУ ДО «ДПЦ «Радуга» Добрыниной Е. В., Приказ №33к от 07.05.2025 г. | AN101: http://www.arhraduga.ru/summer-company-2020/dol-2021-programs/
A102: 81 | B102: 48 | C102: Лагерь с дневным пребыванием детей муниципального бюджетного учреждения дополнительного образования городского округа "Город Архангельск" "Детский (подростковый) центр "Радуга" на базе муниципального бюджетного общеобразовательного учреждения городского округа "Город Архангельск" "Основная школа № 69 имени А.А.Ефремова" (МБУ ДО "ДПЦ "Радуга" на базе МБОУ ОШ № 69) | D102: муниципальная | E102: Добрынина Елена Валерьевна | F102: 2901068671 | G102: Юридический адрес: 163000, г. Архангельск, просп. Троицкий, д. 96, корп. 2 Тел: 8 (8182) 65-31-67; 8 (8182) 65-49-30 Е-mail: arhraduga@mail.ru Фактический адрес: 163044, г. Архангельск, ул.Ленинская, д. 1 Тел: 8 (902) 194-31-31 Е-mail: school-69@mail.ru | H102: https://shkola-69.edusite.ru/magicpage.html?page=696917 | I102: лагерь, организованный образовательной организацией, с дневным пребыванием | J102: сезонный | M102: 02.06.2025-27.06.2025 | N102: 75 | AC102: 177.64 | AD102: 7-17 лет | AE102: Режим работы: с 8:30 до 14:30. Организовано 2-х разовое питание и медицинское сопровождение. Имеются игровые комнаты, уличная спортивная площадка. Запланированные мероприятия: организация культурно-массовых и спортивных мероприятий, творческие мастерские, прогулки | AF102: не имеется | AG102: 2014 г. | AH102: СЭЗ № 29.01.04.000.М.000201.04.25 от 21.04.2025 г. | AI102: Предписание Роспотребнадзора № 202/пр от 24.04.2023 устранить до 29.08.2025 г. | AJ102: Договор № б/н от 10.01.2025 г. ГБУЗ АО "Первая городская клиническая больница им. Е.Е.Волосевич" | AK102: Лицензия № 6807 от 23.12.2021г. Лицензия № 6386 от 15.12.2016 г. МБУ ДО ДПЦ "Радуга" | AL102: Стены учебных кабинетов спокойных пастельных тонов | AM102: Согласовано: директором МБОУ СШ №5 Селяковой Е. П., принято на методическом совете Протокол №5 от 12.05.2025 г. Утверждено: директором МБУ ДО «ДПЦ «Радуга» Добрыниной Е. В., Приказ №33к от 07.05.2025 г. | AN102: https://shkola-69.edusite.ru/magicpage.html?page=696917
A103: 82 | B103: 49 | C103: Лагерь с дневным пребыванием детей муниципального бюджетного учреждения дополнительного образования городского округа "Город Архангельск" "Детский (подростковый) центр "Радуга" на базе муниципального бюджетного общеобразовательного учреждения городского округа "Город Архангельск" "Средняя школа № 73" (МБУ ДО "ДПЦ "Радуга" на базе МБОУ СШ № 73) | D103: муниципальная | E103: Добрынина Елена Валерьевна | F103: 2901068671 | G103: Юридический адрес: 163000, г. Архангельск, просп. Троицкий, д. 96, корп. 2 Тел: 8 (8182) 65-31-67; 8 (8182) 65-49-30 Е-mail: arhraduga@mail.ru Фактический адрес: 163044, г. Архангельск, ул. Стивидорская, д. 11, Тел: 8 (906) 284-40-34 Е-mail: dir@school73.ru | H103: http://www.school73.ru/content/blogcategory/96/90/ | I103: лагерь, организованный образовательной организацией, с дневным пребыванием | J103: сезонный | M103: 02.06.2025-23.06.2025 | N103: 40 | AC103: 177.64 | AD103: 7-12 лет | AE103: Режим работы: с 8:30 до 14:30. Организовано 2-х разовое питание и медицинское сопровождение. Имеются игровые комнаты, уличная спортивная площадка. Запланированные мероприятия: организация культурно-массовых и спортивных мероприятий, творческие мастерские, прогулки | AF103: не имеется | AG103: 1971 г. | AH103: СЭЗ № 29.01.04.000.М.000172.04.25 от 16.04.2025 г. | AI103: Предписание Роспотребнадзора № 381/пр. от 30.05.24 г. устранить до 30.09.25 г. Предписание 7/пр. от12.02.2025 устранить до 12.02.2026 г. | AJ103: Договор № б/н от 10.01.2025 г. ГБУЗ АО "Первая городская клиническая больница им. Е.Е.Волосевич" | AK103: Лицензия № 6770 от 22.11.2021г. Лицензия № 6386 от 15.12.2016 г. МБУ ДО ДПЦ "Радуга" | AL103: Стены учебных кабинетов спокойных пастельных тонов | AM103: Согласовано: директором МБОУ СШ №5 Селяковой Е. П., принято на методическом совете Протокол №5 от 12.05.2025 г. Утверждено: директором МБУ ДО «ДПЦ «Радуга» Добрыниной Е. В., Приказ №33к от 07.05.2025 г. | AN103: http://www.school73.ru/content/blogsection/20/119/
A104: 83 | B104: 50 | C104: Лагерь с дневным пребыванием детей муниципального бюджетного учреждения дополнительного образования городского округа "Город Архангельск" "Детский (подростковый) центр "Радуга" на базе муниципального бюджетного общеобразовательного учреждения городского округа "Город Архангельск" "Средняя школа № 14 с углублённым изучением отдельных предметов имени Я. И. Лейцингера" (МБУ ДО "ДПЦ "Радуга" на базе МБОУ СШ № 14) | D104: муниципальная | E104: Добрынина Елена Валерьевна | F104: 2901068671 | G104: Юридический адрес: 163000, г. Архангельск, просп. Троицкий, д. 96, корп. 2 Тел: 8 (8182) 65-31-67; 8 (8182) 65-49-30 Е-mail: arhraduga@mail.ru Фактический адрес: 163000, г. Архангельск, просп. Троицкий, д. 130 Тел: 8 (8182) 28-57-41; 8 (8182) 21-59-06 E-mail: moush14@list.ru | H104: http://mboussh14.arkh.eduru.ru/lok | I104: лагерь, организованный образовательной организацией, с дневным пребыванием | J104: сезонный | M104: смены отмены кап.ремонт | N104: 0 | AC104: 177.64 | AD104: 7-12 лет | AE104: Режим работы: с 8:30 до 14:30. Организовано 2-х разовое питание и медицинское сопровождение. Имеются кабинеты для отдыха детей. Запланированные мероприятия: организация культурно-массовых и спортивных мероприятий, творческие мастерские, психологическик тренинги, посещение музея | AF104: не имеется | AG104: основное здание, 1937 г.; здание столовой, 1992 г. | AH104: СЭЗ № 29.01.04.000.М.000179.03.23 от 29.03.2023 г. СМЕНА ОТМЕНЕНА «В связи с окончанием срока действия санитарно-эпидемиологического заключения организация отдыха не имеет право предоставлять услугу по отдыху и оздоровлению детей» | AI104: Проверок в 2024 г. не было | AJ104: Договор № 04/25 от 25.12.2024 г. ГБУЗ АО "АГДКП" | AK104: Лицензия № 6727 от 22.11.2021 г. Лицензия № 6386 от 15.12.2016 г. МБУ ДО ДПЦ "Радуга" | AL104: Стены учебных кабинетов спокойных пастельных тонов. | AM104: СМЕНА ОТМЕНЕНА КАПИТАЛЬНЫЙ РЕМОНТ | AN104: СМЕНА ОТМЕНЕНА КАПИТАЛЬНЫЙ РЕМОНТ
A105: 84 | B105: 51 | C105: Лагерь с дневным пребыванием детей муниципального бюджетного учреждения дополнительного образования городского округа "Город Архангельск" "Спортивная школа "Искра" (МБУ ДО СШ Искра) | D105: муниципальная | E105: Шашков Ратибор Валерьевич | F105: 2901095805 | G105: Юридический адрес: 163038, г. Архангельск, ул. Вычегодская, д. 19, корп. 2 Тел: 8 (8182) 45-57-09 Е-mail: iduc19@mail.ru Фактический адрес: 163038, г. Архангельск, ул. Вычегодская, д. 19, корп. 2; ул. Речников, д. 46 | H105: https://iskra29.arkhschool.ru/?section_id=22 | I105: лагерь, организованный образовательной организацией, с дневным пребыванием | J105: сезонный | M105: 02.06.2025-25.06.2025 | N105: 90 | AC105: 177.64 | AD105: 6,5-17 лет | AE105: Режим работы с 9:00 до 15:00. Организовано 2-х разовое питание и медицинское сопровождение. Имеются игровые комнаты, спортивный зал, тренажерный зал, спортивные площадки. Запланированные мероприятия: организация культурно-массовых и спортивных мероприятий. | AF105: не имеется | AG105: 1990 г. | AH105: СЭЗ № 29.01.04.000.М.000327.05.25 от 13.05.2025 г. | AI105: Проверок в 2024 г. не было | AJ105: Договор № 54 от 18.03.2025 г. ГБУЗ АО "Архангельская городская клиническая больница № 2" | AK105: Лицензия № 6206 от 24.03.2016 г. | AL105: Условия не созданы | AM105: Прококол заседания Тренерского Совета от 15.05.2025 г. | AN105: https://iskra29.arkhschool.ru/?section_id=24
A106: 85 | B106: 52 | C106: Лагерь с дневным пребыванием детей государственного бюджетного учреждения Архангельской области социального обслуживания детей с ограниченными возможностями "Архангельский многопрофильный реабилитационный центр для детей" (ГБУ АО "Архангельский многопрофильный РЦ для детей") | D106: Государственная/ Министерство труда, занятости и социального развития Архангельской области | E106: Тюрина Ирина Владимировна | F106: 2901069964 | G106: Юридический адрес: 163060, г. Архангельск, ул. Урицкого, д. 51, корп. 1 Тел/факс: 8 (8182) 29-43-92 E-mail: oerc29@mail.ru Фактический адрес: 163060, г. Архангельск, ул. Урицкого, д. 51, корп. 1; просп. Ломоносова, д.292 | H106: https://centr.arkh.socinfo.ru/dream | I106: организация отдыха детей и их оздоровления сезонного или круглогодичного действия, с дневным пребыванием | J106: сезонный | M106: 02.06.2025-27.06.2025 | N106: 50 | AC106: 633.00 | AD106: 6,5-17 лет | AE106: Режим работы: с 8:30 до 14:30. Организовано 2-х разовое питание и медицинское сопровождение. Имеются игровые комнаты, мастерская, зал ЛФК, актовый зал. Запланированные мероприятия: орнанизация культурно-массовых и спортивных мероприятий, творческие мастерские. | AF106: не имеется | AG106: 2005 г. | AH106: СЭЗ № 29.01.04.000.М.000366.05.25 от 15.05.2025 г. | AI106: Акт профилактического визита Управления Роспотребнадзора по АО № 646/2021 г. от 25.07.2024 г., замечаний нет | AJ106: Лицензия № ЛО-29-01-002592 от 19.12.2018 г. | AK106: Лицензия № 6538 от 21.12.2018 г. | AL106: Нарушения опорно-двигательного аппарата. В наличии пандус. Назначены сотрудники, осуществляющие сопровождение детей-инвалидов и детей с ОВЗ (при необходимости) в процессе оказания им услуг по организации отдыха и оздоровления | AM106: Утверждено, Приказ от 30.04.2025 г. № 26/1-ОД Принято методическим советом Протокол от 30.04.2025 г. №1 | AN106: https://centr.arkh.socinfo.ru/media/2025/05/14/1309114281/Programma_vospitatel_noj_raboty_LOU_Mechty_2025.docx
A107: 86 | B107: 53 | C107: Лагерь с дневным пребыванием детей муниципального автономного учреждения дополнительного образования городского округа "Город Архангельск" "Центр технического творчества, спорта и развития детей "Архангел" на базе муниципального бюджетного общеобразовательного учреждения городского округа "Город Архангельск" "Средняя школа № 77" (МАУ ДО "Центр "Архангел" на базе МБОУ СШ № 77) | D107: муниципальная | E107: Фомин Александр Анатольевич | F107: 2901041616 | G107: Юридический адрес: 163009, г. Архангельск, ул. Октябрят, д. 4, корп. 4 Фактический адрес: 163035, г. Архангельск, ул. Дежневцев, д. 12 Тел: 8 (8182) 45-06-36 E-mail: mbou77adm@mail.ru | H107: https://arh77.arkhschool.ru/?section_id=46 | I107: лагерь, организованный образовательной организацией, с дневным пребыванием | J107: сезонный | M107: 02.06.2025-23.06.2025 | N107: 58 | AC107: 177.64 | AD107: 7-15 лет | AE107: Режим работы: с 09:00 до 15:00. Организовано 2-х разовое питание и медицинское сопровождение. Имеется спортивный зал, спортивная площадка. Запланированные мероприятия: организация культурных детских мероприятий, участие в спортивных мероприятиях, посещение творческих мастер-классов | AF107: не имеется | AG107: 1973 г.; кап.ремонт, 2023 г., ул. Дежневцев, д. 12 | AH107: СЭЗ № 29.01.04.000.М.000294.05.25 от 05.05.2025 г. | AI107: Предписание Управление Федеральной службы по надзору в сфере защиты прав потребителей и благополучия человека по Архангельской области от 22.05.2024 г. №306/пр / устранение замечаний продлено до 26.09.2025 г. | AJ107: Договор заключается на период работы лагеря ГБУЗ АО "АГКП № 2" | AK107: Лицензия № 6683 от 09.08.2021 г. МБОУ СШ № 77 | AL107: Созданы условия для хранения лекарственных препаратов для медицинского применения и специализированных продуктов питания, передаваемые родителями или законными представителями ребенка с ОВЗ (ЗПР; ТНР); наличие медицинского работника, имеющего опыт работы с детьми ОВЗ (ЗПР; ТНР); обученный персонал для работы с детьми с различными видами ограничений (ОВЗ; ЗПР; ТНР); разработка специальных мероприятий, учитывающих физические возможности детей (ЗПР; ТНР); наличие психолога и социального работника для помощи детям в адаптации и социализации (ЗПР; ТНР). | AM107: Принято методическим советом № 2 от 06.05.2025 г. Утверждено Директором МАУ ДО «Центр «Архангел» Приказ № 90 от 07.05.2025 г. | AN107: https://arh77.arkhschool.ru/?section_id=85
A108: 87 | B108: 54 | C108: Лагерь с дневным пребыванием детей муниципального бюджетного учреждения дополнительного образования городского округа "Город Архангельск" "Соломбальский Дом детского творчества" на базе муниципального бюджетного общеобразовательного учреждения городского округа "Город Архангельск" "Средняя школа № 52 имени Героя Советского Союза Г.И.Катарина" (МБУ ДО "СДДТ" на базе МБОУ СШ № 52) | D108: муниципальная | E108: Студенцова Анна Иннокентьевна | F108: 2928000906 | G108: Юридический адрес: 163020, г. Архангельск, Банный 1-й переулок , д. 2 Тел/факс: 8 (8182) 22-31-04; 8 (8182) 24-91-40 Фактический адрес: 163020, г. Архангельск, ул. Маяковсого, д. 41 Тел: 8 (8182) 22-82-33 Е-mail: school52r29@yandex.ru | H108: https://52.arkhschool.ru/?section_id=66 | I108: лагерь, организованный образовательной организацией, с дневным пребыванием | J108: сезонный | M108: смена отменена кап.ремонт | N108: 0 | AC108: 170.81 | AD108: 6,5-17 лет | AE108: Режим работы с 08:30 до 14:30. Организовано 2-х разовое питание. Помещения лагеря: 2 игоровые комнаты, спортивный зал, игровой зал, столовая. Запланированные мероприятия: организация культурно-массовых мероприятий, экскурсии, спортивные мероприятия, тематические беседы, лекции | AF108: не имеется | AG108: 1937 г. | AH108: СЭЗ № 29.01.04.000.М.000196.04.23 от 04.04.2023 г. СМЕНА ОТМЕНЕНА «В связи с окончанием срока действия санитарно-эпидемиологического заключения организация отдыха не имеет право предоставлять услугу по отдыху и оздоровлению детей» | AI108: Роспотребнадзор - проверка с 08.02.2024 г., по настоящее время (результаты не известны) Роспотребнадзор - проверка 05.06.2023 – 19.06.2023 Акт выездной плановой проверки № 286/2023 от 19.06.2023 г,. нарушения устранены в ходе проверки | AJ108: Договор № б/н от 10.02.2025 г. ГБУЗ АО "АГКБ № 7" | AK108: Выписка из реестра лицензий № ЛО35-01270- 29/00236318 от 19.10.2021 г. | AL108: Условия не созданы | AM108: СМЕНА ОТМЕНЕНА КАПИТАЛЬНЫЙ РЕМОНТ | AN108: СМЕНА ОТМЕНЕНА КАПИТАЛЬНЫЙ РЕМОНТ
A109: 88 | B109: 55 | C109: Лагерь с дневным пребыванием детей государственного бюджетного общеобразовательного учреждения Архангельской области "Соломбальская специальная (коррекционная) общеобразовательная школа-интернат" (ГБОУ АО "Соломбальская СКОШИ") | D109: государственная | E109: Димитрова Марина Владимировна | F109: 2901173563 | G109: Юридический адрес: 163020, г. Архангельск, ул. Маяковского, д. 8 Фактический адрес: 163020, г. Архангельск, Набережная Г. Седова, д. 15 Тел: 8 (8182) 22-30-92 Е-mail: school39-dir@mail.ru | H109: https://solombalaskoshi.edusite.ru/magicpage.html?page=684161 | I109: лагерь, организованный образовательной организацией, с дневным пребыванием | J109: сезонный | M109: смена отменена кап ремонт | N109: 0 | AC109: 240.00 | AD109: 7-14 лет | AE109: Режим работы с 9:00 до 14:30. Организовано 2-х разовое питание и медицинское сопровождение. Имеются игровые комнаты, комната психологической разгрузки, спортивные площадки. Запланированные мероприятия: организация культурно-массовых и спортивных мероприятий, творческике мастерские, психологические тренинги, походы | AF109: не имеется | AG109: здание школы, 1935 г.; корпус интерната, 1938 г. | AH109: СЭЗ № 29.01.04.000.М.000508.04.22 от 24.05.2022 г. СМЕНА ОТМЕНЕНА «В связи с окончанием срока действия санитарно-эпидемиологического заключения организация отдыха не имеет право предоставлять услугу по отдыху и оздоровлению детей» | AI109: Согласно акту профилактического визита Роспотребнадзора от 20.02.2023 № 62/2023 нарушений не выявлено; согласно акту профилактического визита Роспотребнадзора от 14.06.2023 №32/2023 нарушений не выявлено; согласно акту внепланового инспекционного визита МЧС России по Архангельской области от 22.08.2023 № 2308/505-29/151-В/АИВ нарушений не выявлено | AJ109: Лицензия № ЛО-29-01-002228 от 17.02.2017 г. | AK109: Лицензия № 6451 от 26.05.2017 г. | AL109: Условия не созданы. Назначены сотрудники, осуществляющие сопровождение детей-инвалидов и детей с ОВЗ (при необходимости) в процессе оказания им услуг по организации отдыха и оздоровления | AM109: СМЕНА ОТМЕНЕНА КАПИТАЛЬНЫЙ РЕМОНТ | AN109: СМЕНА ОТМЕНЕНА КАПИТАЛЬНЫЙ РЕМОНТ
A110: 89 | B110: 56 | C110: Лагерь с дневным пребыванием детей Автономная некоммерческая общеобразовательная организация "Школа Современного образования" (АНОО "ШСО") | D110: частная | E110: Зубарева Елена Сергеевна | F110: 2901306573 | G110: Юридический адрес: 163065, Архангельская область, г. Архангельск, ул.Стрелковая, д. 25, корп. 1, кв. 222 Фактический адрес: 163000, Архангельская область, г. Архангельск, ул. Ломоносова, д. 32; ул. Менделеева, д.19 Тел: 8 (991) 113-90-47 Е-mail: school.modern32@yandex.ru | H110: https://schoolso.ru/letnij-ozdorovitelnyj-lager-s-dnevnym-prebyvaniem-pri-anoo-shso | I110: лагерь, организованный образовательной организацией, с дневным пребыванием | J110: сезонный | M110: 02.06.2025-27.06.2025 | N110: 30 | O110: смена отменена | P110: 0 | Q110: смена отменена | R110: 0 | AC110: 1,200.00 | AD110: 6,5-12 лет | AE110: Режим работы с 9:00 до 15:00. Организовано 2-х разовое питание и медицинское сопровождение. Имеются игровые комнаты, комната психологической разгрузки, спортивный зал, спортивные площадки. Запланированные мероприятия: организация культурно-развлекательных и спортивных мероприятий, мастер-классы, посещение музея. | AF110: нет | AG110: 1979 г. | AH110: СЭЗ № 29.01.04.000.М.000436.05.25 от 22.05.2025 г. | AI110: Управление Федеральной службы по надзору в сфере защиты прав потребителей от 23.07.2024 № 296/2024 Замечание: устранить до 02.06.2025 г. | AJ110: Договор №б/н от 10.01.2025 г. Медицинская организация "Здоровый малыш" | AK110: Выписка из реестра лицензий № ЛО35-01270-29/00236339 от 21.10.2021 г. | AL110: Условия не созданы | AM110: Утверждено директором АНОО "ШСО" от 30.03.2023 г. | AN110: https://schoolso.ru/f/programma_vospitaniya_planeta_tekhnologii_774_1_1.pdf
A111: 90 | B111: 57 | C111: Лагерь с дневным пребыванием детей муниципального автономного учреждения дополнительного образования городского округа "Город Архангельск" "Центр технического творчества, спорта и развития детей "Архангел" на базе муниципального бюджетного общеобразовательного учреждения городского округа "Город Архангельск" "Средняя школа № 9 имени Константина Симонова" (МАУ ДО "Центр "Архангел" на базе МБОУ СШ № 9) | D111: муниципальная | E111: Фомин Александр Анатольевич | F111: 2901075037 | G111: Юридический адрес: 163009, г. Архангельск, ул. Октябрят, д. 4, корп. 4 Тел: 8 (8182) 29-52-08 Фактический адрес: 163000, г. Архангельск, просп. Ломоносова, д. 80, Тел: 8 (991) 469 7377 E-mail: mboy9@mail.ru | H111: http://arh9.lbihost.ru/организация-отдыха-детей-и-их-оздоров/лагерь-с-дневным-пребыванием-детей-2024/ | I111: лагерь, организованный образовательной организацией, с дневным пребыванием | J111: сезонный | M111: 03.06.2025-30.06.2025 | N111: 126 | AC111: 177.64 | AD111: 7-15 лет | AE111: Режим работы с 8:30 до 14:30. Организовано 2-х разовое питание и медицинское сопровождение. Имеются игровые комнаты, сенсорная комната, спортивный зал, спортивная площадка. Запланированные мероприятия: участие в тематических играх, спортивных эстафетах, в мероприятиях направленных на знакомство и изучение Арктики | AF111: нет | AG111: основное здание, 1952 г.; кап.ремонт, 2020-2021 г. | AH111: СЭЗ № 29.01.04.000.М.000283.04.25 от 30.04.2025 г. | AI111: Предписание Управления Роспотребнадзора по Архангельской области № 949/пр от 25.10.2024 г., устранить замечания до 27.10.2025 г. | AJ111: Договор заключается на период работы лагеря ГБУЗ АО "АГКП № 2" | AK111: Лицензия № 6720 от 13.09.2021 г. МАУ ДО "Центр "Архангел" Выписка из реестра лицензий № ЛО35-01270-29/00236314 от 27.12.2021 г. | AL111: Адаптированные программы для детей с ОВЗ (с ЗПР, с ТНР) | AM111: Принято Методическим советом № 2 от 06.05.2025 г. Утверждено Директором МАУ ДО «Центр «Архангел» Приказ № 90 от 07.05.2025 г. | AN111: https://disk.yandex.ru/i/JkgCESJU47nbNQ
A112: 91 | B112: 58 | C112: Лагерь с дневным пребыванием детей муниципального бюджетного учреждения дополнительного образования городского округа "Город Архангельск" "Детский (подростковый) центр "Радуга" на базе муниципального бюджетного общеобразовательного учреждения городского округа "Город Архангельск" "Средняя школа № 45" (МБУ ДО "ДПЦ "Радуга" на базе МБОУ СШ № 45) | D112: муниципальная | E112: Добрынина Елена Валерьевна | F112: 2901068671 | G112: Юридический адрес: 163000, г. Архангельск, просп. Троицкий, д. 96, корп. 2 Тел: 8 (8182) 65-31-67; 8 (8182) 65-49-30 Е-mail: arhraduga@mail.ru Фактический адрес: 163071, г. Архангельск, ул. Садовая, д. 61 Тел: 8 (8182) 29-19-94 Е-mail: 29school45@mail.ru | H112: https://school45.1mcg.ru/Bokovoe-menyu/Letnyaya-kampaniya-2023 | I112: лагерь, организованный образовательной организацией, с дневным пребыванием | J112: сезонный | M112: 02.06.2025-27.06.2025 | N112: 155 | AC112: 177.64 | AD112: 7-12 лет | AE112: Режим работы с 9:00 до 15:00. Организовано 2-х разовое питание и медицинское сопровождение. Имеются игровые комнаты. Запланированные мероприятия: организация и проведение культурно-массовых и спортивных мероприятий, творческие мастерские, посещение музея | AF112: нет | AG112: 1992 г. | AH112: СЭЗ № 29.01.04.000.М.000226.04.25 от 24.04.2025 г. | AI112: Проверок не было | AJ112: Договор № 04/25 от 25.12.2024 г. ГБУЗ АО "Архангельская городская детская клиническая поликлиника" | AK112: Лицензия № 6676 от 05.07.2021 г. Лицензия № 6386 от 15.12.2016 г. МБУ ДО ДПЦ "Радуга" | AL112: Стены учебных кабинетов спокойных пастельных тонов. | AM112: Согласовано: директором МБОУ СШ №45 Елькиной Л. В., 07.05.2025 г. Утверждено: директором МБУ ДО «ДПЦ «Радуга» Добрыниной Е. В., Приказ №33к от 07.05.2025 г. | AN112: https://school45.1mcg.ru/Bokovoe-menyu/Letnyaya-kampaniya-2023
A113: 92 | B113: 59 | C113: Лагерь с дневным пребыванием детей муниципального бюджетного учреждения дополнительного образования городского округа "Город Архангельск" "Детский (подростковый) центр "Радуга" на базе муниципального бюджетного общеобразовательного учреждения городского округа "Город Архангельск" "Гимназия № 6" (МБУ ДО "ДПЦ "Радуга" на базе МБОУ Гимназия № 6) | D113: муниципальная | E113: Добрынина Елена Валерьевна | F113: 2901068671 | G113: Юридический адрес: 163000, г. Архангельск, просп. Троицкий, д. 96, корп. 2 Тел: 8 (8182) 65-31-67; 8 (8182) 65-49-30 Е-mail: arhraduga@mail.ru Фактический адрес: 163000, г. Архангельск, просп. Троицкий, д. 69 Тел: 8 (8182) 21-57-78 Е-mail: gym6@mail.ru | H113: https://gym6.eduarkh.ru/about/leto | I113: лагерь, организованный образовательной организацией, с дневным пребыванием | J113: сезонный | M113: 02.06.2025-27.06.2025 | N113: 85 | AC113: 177.64 | AD113: 7-17 лет | AE113: Режим работы: с 8:30 до 14:30. Организовано 2-х разовое питание и медицинское сопровождение. Имеются игровые комнаты. Запланированные мероприятия: организация и проведение культурно-массовых мероприятий, творческих мастерских, экскурсий, прогулок, посещение музеев. | AF113: нет | AG113: 1936 г. | AH113: СЭЗ № 29.01.04.000.М.000180.04.25 от 16.04.2025 г. | AI113: Проверок не было | AJ113: Договор № 04/25 от 25.12.2024 г. ГБУЗ АО "Архангельская городская детская клиническая поликлиника" | AK113: Лицензия № 6747 от 22.10.2021 г. Лицензия № 6386 от 15.12.2016 г. МБУ ДО ДПЦ "Радуга" | AL113: Сигнальная лента для разметки направления движения. Стены учебных кабинетов спокойных пастельных тонов. | AM113: Согласовано: директором МБОУ Гимназия №6 Михайловой Н. П. 07.05.2025 г. Утверждено: директором МБУ ДО «ДПЦ «Радуга» Добрыниной Е. В., Приказ №33к от 07.05.2025 г. | AN113: https://gym6.eduarkh.ru/about/leto/doc/2035535
A114: 93 | B114: 60 | C114: Лагерь с дневным пребыванием детей муниципального автономного учреждения дополнительного образования городского округа "Город Архангельск" "Центр технического творчества, спорта и развития детей "Архангел" (МАУ ДО "Центр "Архангел") | D114: муниципальная | E114: Фомин Александр Анатольевич | F114: 2901075037 | G114: Юридический адрес: 163009, г. Архангельск, ул. Октябрят, д. 4, корп. 4 Фактический адрес: 163009, г. Архангельск, ул. Полины Осипенко, д. 7, корп. 1; ул. Федора Абрамова, д.14 Тел. 8 (8182) 29-52-08 E-mail: arhctt@bk.ru | H114: ttps://arhctt.profiedu.ru/?section_id=48 | I114: лагерь, организованный образовательной организацией, с дневным пребыванием | J114: сезонный | M114: 02.06.2025-23.06.2025 | N114: 12 | AC114: 177.64 | AD114: 8-12 лет | AE114: Режим работы лагеря: с 9:00 до 15:00. Организовано 2-х разовое питание и медицинское сопровождение. Имеются игровые комнаты, спортивный зал. Запланированные мероприятия: культурные досуговые мероприятия, творческие конкурсы, спортивные мероприятия, различные мастер-классы, посещение экскурсий | AF114: нет | AG114: 2012 г. | AH114: СЭЗ № 29.01.04.000.М.000470.05.25 от 26.05.2025 г. | AI114: Проверок в 2024 г. не было | AJ114: Договор заключается на период работы лагеря ГБУЗ АО "АГКП № 2" | AK114: Лицензия № 6720 от 13.09.2021 г. МАУ ДО "Центр "Архангел" Выписка из реестра лицензий №ЛО35-01270-29/00236338 от 13.09.2021 г. | AL114: Использование специальных образовательных программ, учебных пособий и дидактических материалов, интерактивная доска для детей ОВЗ (глухие, слабослышащие, слепые, слабовидящие, НОДА, с ЗПР, с ТНР, с РАС, с умственной отсталостью). Назначение сотрудника для необходимой помощи человеку (глухие, слабослышащие, слепые, слабовидящие, НОДА, с ЗПР, с ТНР, с РАС, с умственной отсталостью, инвалиды-колясочники). | AM114: Принято Методическим советом № 2 от 06.05.2025 г. Утверждено Директором МАУ ДО «Центр «Архангел» Приказ № 90 от 07.05.2025 г. | AN114: https://arhctt.profiedu.ru/?section_id=49
A115: 94 | B115: 61 | C115: Лагерь с дневным пребыванием детей муниципального бюджетного учреждения дополнительного образования городского округа "Город Архангельск" "Спортивная школа № 6" (МБУ ДО СШ № 6) | D115: муниципальная | E115: Некрасов Алексей Николаевич | F115: 2901044374 | G115: Юридический адрес: 163045, г. Архангельск, ул. Гагарина, д. 9 Фактический адрес: 163060, г. Архангельск, ул. Никольский, д. 25; ул. Комсомольская, д. 5 (питание) Тел: 8 (8182) 22-50-15 E-mail: dussh6@yandex.ru | H115: https://ssh6.profiedu.ru/?section_id=18 | I115: лагерь, организованный образовательной организацией, с дневным пребыванием | J115: сезонный | M115: 02.06.2025-25.06.2025 | N115: 60 | AC115: 201.24 | AD115: 6,6-17 лет | AE115: Режим работы: с 08:30 до 14:30. Организовано 2-разовое питание и медицинское сопровождение. Имеется спортивный зал. Запланированные мероприятия: организация культурно-массовых и спортивных мероприятий | AF115: не имеется | AG115: 1971 г. | AH115: СЭЗ № 29.01.04.000.М.000487.05.25 от 27.05.2025 г. | AI115: Проверок не было | AJ115: Договор заключается на период работы лагеря ГБУЗ АО "АКГБ № 7" | AK115: Лицензия № 1650 от 13.09.2022 г. | AL115: Условия для детей-инвалидов с нарушением речи - созданы | AM115: Утверждено Директором МБУ ДО СШ № 6 от 12.05.2025 г. | AN115: https://ssh6.profiedu.ru/upload/proedussh6_new/files/fc/ac/fcac1843b55574a4ac9323e80fbc089e.pdf
A116: 95 | B116: 62 | C116: Лагерь с дневным пребыванием детей муниципального бюджетного учреждения дополнительного образования городского округа «Город Архангельск» «Шахматно-шашечная спортивная школа № 5 имени Я.Г. Карбасникова» (МБУ ДО СШ № 5) | D116: муниципальная | E116: Каменев Андрей Александрович | F116: 2901043571 | G116: Юридический адрес: 163071, г. Архангельск, ул. Воскресенская, д. 95 Тел. (8182) 65-92-76 Вахта 20-27-23; 29-02-39 E-mail: arhchesschool5@mail.ru Фактический адрес: 163071, г. Архангельск, ул. Воскресенская, д. 95; ул. Воскресенская, д. 103, корп. 3 | H116: http://шшдюсш5.рф/%d0%bb%d0%b5%d1%82%d0%bd%d0%b8%d0%b9-%d0%bb%d0%b0%d0%b3%d0%b5%d1%80%d1%8c | I116: лагерь, организованный образовательной организацией, с дневным пребыванием | J116: сезонный | M116: 02.06.2025-27.06.2025 | N116: 30 | AC116: 177.64 | AD116: 7-12 лет | AE116: Режим работы: 9:00-15:00. Организация 2-х разового питания (завтрак, обед) и медицинского сопровождения. Организация культурно-досуговых и спортивных мероприятий: турнир по настольному хоккею и теннису, настольные игры, пиратский квест, посещение кинотеатра, музеев, квиз, уроки по фехтованию, WARPOINT, мастер-классы, Лазертаг, поездка в Фермерскую Слободу, шахматные и шашечные турниры | AF116: не имеется | AG116: 1989 г. | AH116: СЭЗ № 29.01.04.000.М.000202.04.25 от 21.04.2025 г. | AI116: Проверок в 2024 году не было | AJ116: Договор № 06/25 от 28.01.2025 г. ГБУЗ АО "Архангельская городская детская клиническая поликлиника" | AK116: Лицензия № 2201 от 18.11.2021 | AL116: У входных дверей учебных корпусов (ул.Воскресенская, 95) установлены кнопки вызова вахтера для людей с ограниченными возможностями. На всех стеклянных дверях помещений наклеены с двух сторон предупредительные знаки «Осторожно (желтый круг)» во избежание столкновения слабовидящего с дверью. Краевые ступени лестничных маршей в учреждении выделены (покрашены) желтым цветом. Для слабовидящих людей на санузлах установлены таблички с желтым фоном и черными точками со шрифтом Брайля, дублирующие название помещения. Реализована возможность просматривать новости и рубрики на официальном сайте людям с ограниченными возможностями по зрению. | AM116: Согласовано на Педагогическом совете Протокол № 2 от 18.02.2025 г. | AN116: https://drive.google.com/file/d/1SXhOSbOI3WnI0KhHirW8XgEY9gvtWIaF/view
A117: 96 | B117: 63 | C117: Лагерь с дневным пребыванием детей муниципального бюджетного учреждения дополнительного образования городского округа "Город Архангельск" "Детский (подростковый) центр "Радуга" на базе муниципального бюджетного общеобразовательного учреждения городского округа "Город Архангельск" "Средняя школа № 22" (МБУ ДО "ДПЦ "Радуга" на базе МБОУ СШ № 22) | D117: муниципальная | E117: Добрынина Елена Валерьевна | F117: 2901068671 | G117: Юридический адрес: 163000, г. Архангельск, просп. Троицкий, д. 96, корп. 2 Тел: 8 (8182) 65-31-67; 8 (8182) 65-49-30 Е-mail: arhraduga@mail.ru Фактический адрес: 163071, г. Архангельск, просп. Советских Космонавтов, д. 69; ул. Комсомольская, д. 59 Тел: 8 (8182) 28-57-51 Е-mail: secretar22@mail.ru | H117: https://sch22.eduarkh.ru/about/leto | I117: лагерь, организованный образовательной организацией, с дневным пребыванием | J117: сезонный | M117: 02.06.2025-23.06.2025 | N117: 85 | AC117: 177.64 | AD117: 7-12 лет | AE117: Режим работы с 8:30 до 14:30. Организовано 2-х разовое питание и медицинское сопровождение. Имеются игровые комнаты, уличная спортивная площадка. Запланированные мероприятия: организация и проведение культурно-массовых и спортивных мероприятий, творческие мастерские,экскурсии, прогулки | AF117: нет | AG117: 1938 г. | AH117: СЭЗ № 29.01.04.000.М.000258.04.25 от 29.04.2025 г. | AI117: Предписание Роспотребнадзора № 864/пр от 25 октября 2024 г. устранить до 31 марта 2025 г. | AJ117: Договор № 04/25 от 25.12.2024 г. ГБУЗ АО "Архангельская городская детская клиническая поликлиника" | AK117: Лицензия № 6762 от 29.10.2021 г. Лицензия № 6386 от 15.12.2016 г. МБУ ДО ДПЦ "Радуга" | AL117: Сигнальная лента для разметки направления движения. Стены учебных кабинетов спокойных пастельных тонов. | AM117: Согласовано: директором МБОУ СШ №22 Уткиной О. Л., принято на методическом совете Протокол №5 от 29.04.2025 г. Утверждено: директором МБУ ДО «ДПЦ «Радуга» Добрыниной Е. В., Приказ №33к от 07.05.2025 г. | AN117: https://sch22.eduarkh.ru/about/leto
A118: 97 | B118: 64 | C118: Лагерь с дневным пребыванием детей государственного бюджетного общеобразовательного учреждения Архангельской области "Архангельская санаторная школа-интернат № 2" (ГБОУ АО АСШИ № 2) | D118: государственная | E118: Смирнова Эльвира Николаевна | F118: 2901042257 | G118: Юридический и фактический адрес: 164044, Архангельская область, г. Архангельск, ул. Л.Н. Лочехина, д. 13 Тел: 8 (8182) 29-65-13 Е-mail: shi-gorod@yandex.ru | H118: https://arh-ashi2.nubex.ru/8184/ | I118: лагерь, организованный образовательной организацией, с дневным пребыванием | J118: сезонный | M118: 02.06.2025-26.06.2025 | N118: 30 | AC118: 145.00 | AD118: 7-12 лет | AE118: Режим работы: с 08:30 до 14:30. Организовано 2- х разовое питание и медицинское сопровождение. Имеются игровые комнаты, спортивный зал, спортивная площадка. Запланированные мероприятия: организация культурно-массовых, спортивных мероприятий, творческие мастерские, посещение музея | AF118: не имеется | AG118: 1987 г. | AH118: СЭЗ № 29.01.04.000.М.000482.05.25 от 26.05.2025 г. | AI118: Профилактический визит Управления Роспотребнадзора по Архангельской области, предписание от 16.06.2024 № 649/пр, замечания устранены | AJ118: Лицензия № ЛО-29-01.002836 от 17.01.2020 г. | AK118: Лицензия № 6339 от 27.09.2016 г. | AL118: Летний лагерь посещают несовершеннолетние, не имеющие статуса ОВЗ. Назначены сотрудники, осуществляющие сопровождение детей – инвалидов и детей с ОВЗ (при необходимости) в процессе оказания им услуг по организации отдыха и оздоровления. | AM118: Утверждено приказом директора ГБОУ АО АСШИ № 2 от 03.04.2025 г. № 66/1-од | AN118: https://r1.nubex.ru/s6625-91b/f3693_62/Программа%20воспитания%20для%20организации%20отдыха%20детей%20 и%20их%20оздоровления.PDF
A119: 98 | B119: 65 | C119: Лагерь с дневным пребыванием детей государственного бюджетного общеобразовательного учреждения Архангельской области "Специальная (коррекционная) общеобразовательная школа № 31" (ГБОУ АО СКОШ № 31) | D119: государственная | E119: Малков Станислав Евгеньевич | F119: 2901040651 | G119: Юридический и фактический адрес:163002, г. Архангельск, просп. Ленинградский, д. 17 Тел: 8 (8182) 64-35-23 Е-mail: dokum31@yandex.ru | H119: http://arhschool31.ru/magicpage.html?page=303678 | I119: лагерь, организованный образовательной организацией, с дневным пребыванием | J119: сезонный | M119: 30.05.2025-21.06.2025 | N119: 65 | AC119: 240.00 | AD119: 6,5-17 лет | AE119: Режим работы: с 8:30 до 14:30. Организовано 2- х разовое питание и медицинское сопровождение. Имеются спортивный зал, спортивные площадки. Запланированные мероприятия: организация культурно-массовых, спортивных мероприятий. Творческие мастерские, походы, посещение музеев | AF119: не имеется | AG119: 2015 г. | AH119: СЭЗ № 29.01.04.000.М.000395.05.25 от 20.05.2025 г. | AI119: Акт профилактического визита Роспотребнадзора от 06.12.2024 №885/2024 нарушений не выявлено. | AJ119: Лицензия № ЛО-29-01-002924 от 20.07.2020 г. | AK119: Лицензия № 5851 от 15.05.2015 г. | AL119: В наличии пандус; назначены сотрудники, осуществляющие сопровождение детей-инвалидов и детей с ОВЗ в процессе оказания им услуг по организации отдыха и оздоровления | AM119: Утверждено Педагогический Совет № 4 от 28.04.2025 г. | AN119: https://cloud.mail.ru/public/jj4g/f4XYC31uG
A120: 99 | B120: 66 | C120: Лагерь с дневным пребыванием детей муниципального бюджетного учреждения дополнительного образования городского округа "Город Архангельск" "Спортивная школа № 1" (МБУ ДО СШ № 1) | D120: муниципальная | E120: Батурин Артур Александрович | F120: 2901043797 | G120: Юридический и фактический адрес:163000, г. Архангельск, просп. Троицкий, д.69 Тел: 8 (8182) 20-72-56 Е-mail: 1dussh1@mail.ru | H120: http://dussh1-arhcity.ru/ | I120: лагерь, организованный образовательной организацией, с дневным пребыванием | J120: сезонный | M120: 02.06.2025-25.06.2025 | N120: 50 | AC120: 177.64 | AD120: 7-17 лет | AE120: Режим работы: с 9:00 до 15:00. Количество рабочих дней в неделю лагеря с дневным пребыванием. Организовано 2-х разовое питание и медицинское сопровождение. Имеются игровые комнаты, сенсорная комната, комната психологической разгрузки, спортивный зал, спортивные площадки. Запланированные мероприятия: организация физкультурно-массовых и спортивных мероприятий, тренировки, экскурсии | AF120: не имеется | AG120: 1997 г. | AH120: СЭЗ № 29.01.04.000.М.000488.05.25 от 27.05.2025 г. | AI120: Проверок в 2024 году не было | AJ120: Договор № 06/24 от 28.02.24 г. ГБУЗ АО "АГДКП" | AK120: Выписка из реестра лицензий № ЛО35-01270-29/00236394 от 20.08.2021 г. | AL120: В наличии пандус, специализированный подъемник для колясочников, таблички на стенах по Брайлю, специализированные желтые линии на полу, обеспечение входной группы; назначены сотрудники, осуществляющие сопровождение детей – инвалидов и детей с ОВЗ (при необходимости) в процессе оказания им услуг по организации отдыха и оздоровления. | AM120: Утверждено и.о. директора МБУ ДО СШ № 1 А.А.Батурин от 13.03.2025 г. | AN120: http://dussh1-arhcity.ru/images/programma-lager-2025.pdf
A121: 100 | B121: 67 | C121: Лагерь с дневным пребыванием детей муниципального бюджетного учреждения дополнительного образования городского округа "Город Архангельск" "Спортивная школа имени Героя Советского Союза Павла Васильевича Усова" (МБУ ДО СШ им. П.В. Усова) | D121: муниципальная | E121: Молчанов Денис Ильич | F121: 2901044173 | G121: Юридический адрес: 163062, г. Архангельск, ул. Никитова, д. 1 Фактический адрес: 163062, г. Архангельск, ул. Воронина, д. 28;ул. Воронина, д. 28, корп. 1 (питание) Тел/факс: 8 (8182) 69-88-45 E-mail: uk0174@mail.ru | H121: https://dussh2-arh.ru/ | I121: лагерь, организованный образовательной организацией, с дневным пребыванием | J121: сезонный | M121: 02.06.2025-27.06.2025 | N121: 47 | AC121: 177.64 | AD121: 6,5-17 лет | AE121: Режим работы: с 9:00 до 15:00. Организовано 2-х разовое питание и медицинское сопровождение. Имеется спортивный зал, тренажерный зал. Запланированные мероприятия: организация культурно-массовых и спортивных мероприятий | AF121: нет | AG121: 2021 г. | AH121: СЭЗ № 29.01.04.000.М.000319.05.25 от 07.05.2025 г. | AI121: Проверок не было | AJ121: Договор № 55 от 18.04.2025 г. ГБУЗ АО "АГКБ № 2" | AK121: Выписка из реестра лицензий № ЛО35-01270-29/00236449 от 26.08.2021 г. | AL121: Условия не созданы | AM121: Программа утверждена директором МБУ ДО СШ имени П.В. Усова 07.05.2025 г. | AN121: https://dussh2-arh.ru/uploads/s/m/z/i/mziteqwidmni/file/SnYXPSdY.pdf
A122: 101 | B122: 68 | C122: Лагерь с дневным пребыванием детей муниципального бюджетного учреждения дополнительного образования городского округа "Город Архангельск" "Спортивная школа № 6" (МБУ ДО СШ № 6) | D122: муниципальная | E122: Некрасов Алексей Николаевич | F122: 2901044374 | G122: Юридический адрес: 163045, г. Архангельск, ул. Гагарина, д. 9 Фактический адрес: 163060, г. Архангельск, ул. Целлюлозная, д. 22, корп. 1, ул. Кировская, д. 12 Тел: 8 (8182) 22-50-15 E-mail: dussh6@yandex.ru | H122: https://ssh6.profiedu.ru/?section_id=19 | I122: лагерь, организованный образовательной организацией, с дневным пребыванием | J122: сезонный | M122: 02.06.2025-25.06.2025 | N122: 20 | AC122: 201.24 | AD122: 6,6-17 лет | AE122: Режим работы: с 8:30 до 14:30. Организовано 2-х разовое питание и медицинское сопровождение. Имеется спортивный зал. Запланированные мероприятия: организация культурно-массовых и спортивных мероприятий | AF122: нет | AG122: 1952 г. | AH122: СЭЗ № 29.01.04.000.М.000502.05.25 от 27.05.2025 г. | AI122: Проверок не было | AJ122: Договор заключается на период работы лагеря ГБУЗ АО "АКГБ № 6" | AK122: Лицензия № 1650 от 13.09.2022 г. | AL122: Условия для детей-инвалидов с нарушением речи - созданы | AM122: Утверждена и.о. директора П.В.Семенова от 01.04.2025 г. | AN122: https://ssh6.profiedu.ru/?section_id=19
A123: 102 | B123: 69 | C123: Лагерь с дневным пребыванием детей муниципального бюджетного учреждения дополнительного образования городского округа "Город Архангельск" "Спортивная школа "Парусный центр "Норд" имени Ю.С. Анисимова" (МБУ ДО СШ Парусный центр Норд им. Ю.С. Анисимова) | D123: муниципальная | E123: Осколков Александр Геннадьевич | F123: 2901006114 | G123: Юридический адрес: 163020, г. Архангельск, ул. Советская, д. 1 Тел.: 8(8182) 23-32-25 E-mail: nordparus29@yandex.ru Фактический адрес: 163020, г. Архангельск, ул. Краснофлотская, д. 3 (игровые комнаты, помещение для сушки одежды, питание); 163001, г. Архангельск, ул. Ф.Шубина, д. 20 (спортивный зал, тренажерный зал) | H123: https://nordparus29.ru/lager | I123: лагерь, организованный образовательной организацией, с дневным пребыванием | J123: сезонный | M123: 02.06.2025-27.06.2025 | N123: 65 | AC123: 222.05 | AD123: 6,5-17 лет | AE123: Режим работы: 9:00-15:00. Организация 2-х разового питания и медицинского сопровождения. Имеются игровые комнаты, спортивные площадки. Запланированные мероприятия:организация культурно-массовых и спортивных мероприятий | AF123: не имеется | AG123: здание корпуса ул. Краснофлотская, д.3, 1990 г. здание корпуса ул. Ф. Шубина, д.20, 1964 г. | AH123: СЭЗ № 29.01.04.000.М.000367.05.25 от 15.05.2025 г. | AI123: Предписание от 17.11.2021 № 1006/2021 Управление Роспотребнадзора по Архангельской области по адресу: г. Архангельск, ул. Советская, 1 – образовательная деятельность осуществляется не в зданиях с необходимым вспомогательным набором помещений(выполнено), а в каркасных металлических сооружениях. Помещения для проведения теоретических занятий, медицинский кабинет, туалеты, эллинг не оборудованы системами холодного и горячего водоснабжения, канализацией по адресу: г. Архангельск, пр. Никольский, 2/3 – здание не оборудовано системами холодного и горячего водоснабжения, канализацией | AJ123: Договор № б/н от 07.02.2025 г. ГБУЗ АО "АГКБ № 7" | AK123: Лицензия № ЛО35-01270-29/00372893 от 30.05.2022 г. | AL123: С нарушениями слуха (легкая степень). Нарушение опорно-двигательного аппарата ( легкие степени ДЦП) | AM123: Принято Педагогический Совет № 8 от 06 мая 2025 года Приказ № 132р от 07 мая 2025года | AN123: https://nordparus29.ru/f/programma_vospitatelnoj_raboty_ dlya_organizacii_otdyha_detej_i_ih_ ozdorovleniya_655273.pdf
A124: 103 | B124: 70 | C124: Лагерь с дневным пребыванием детей Учреждение дополнительного образования "Академия Будущего" ИП Тяпкин Дмитрий Викторович | D124: коммерческая | E124: Тяпкин Дмитрий Викторович | F124: 292600004356 | G124: Юридический адрес: 163000, г. Архангельск, просп. Новгородский, д.87, кв.1 Фактический адрес: 163000, г. Архангельск, просп. Троицкий, д.20, помещения № 91,100,101,102, 103,110,111; ул. Комсомольская, д.59; просп. Советских Космонавтов, д.69 Тел.: 8(8182) 43-30-40; 8-921-075-65-88 Е-mail: kiberone29@yandex.ru | H124: https://vk.com/academyofthefuture | I124: лагерь, организованный образовательной организацией, с дневным пребыванием | J124: сезонный | M124: смена отменена | N124: 0 | AC124: 2,780.00 | AD124: 6,6-14 лет | AE124: Режим работы лагеря: с 8:30 до 14:30. Организовано 2-х разовое питание и медицинское сопровождение. Имеется класс для проведения мастер-классов. Запланированные мероприятия: проведение мастер-классов, творческие мастерские, посещение музеев | AF124: не имеется | AG124: договор субаренды с ИП Ждановой О.В. от 01.07.2022 г. | AH124: СЭЗ № 29.01.04.000.М.000617.05.24 от 27.05.2024 г. СМЕНА ОТМЕНЕНА «В связи с окончанием срока действия санитарно-эпидемиологического заключения организация отдыха не имеет право предоставлять услугу по отдыху и оздоровлению детей» | AI124: Проверок не было | AJ124: Договор № 3 от 09.02.2024 г. ООО "Очаг" | AK124: Лицензия № ЛО35-01270-29/00632221 от 14.12.2022 г. | AL124: Условия не созданы | AM124: СМЕНА ОТМЕНЕНА | AN124: СМЕНА ОТМЕНЕНА
A125: 104 | B125: 71 | C125: Лагерь с дневным пребыванием детей муниципального автономного учреждения дополнительного образования городского округа "Город Архангельск" "Центр технического творчества, спорта и развития детей "Архангел" на базе муниципального бюджетного общеобразовательного учреждения городского округа "Город Архангельск" "Средняя школа № 7 имени Владимира Николаевича Булатова" (МАУ ДО "Центр "Архангел" на базе МБОУ СШ № 7) | D125: муниципальная | E125: Фомин Александр Анатольевич | F125: 2901075037 | G125: Юридический адрес: 163009, г. Архангельск, ул. Октябрят, д. 4, корп. 4 Фактический адрес: 163002, г. Архангельск, ул. Карпогорская, д. 36 Тел: 8 (8182) 60-97-97 E-maill: mbous7@inbox.ru | H125: https://mbous7.ru/organizatsiya-otdykha-detey-i-ikh-ozdorovleniya/lager-s-dnevnym-prebyvaniem-detey/2024-god/ | I125: лагерь, организованный образовательной организацией, с дневным пребыванием | J125: сезонный | M125: 02.06.2025-23.06.2025 | N125: 100 | AC125: 177.64 | AD125: 7-11 лет | AE125: Режим работы: с 08:30 до 14:30. Шестидневная рабочая неделя. Организовано 2-х разовое питание и медицинское сопровождение. Имеются спортивный зал, спортивная площадка. Запланированные мероприятия: участие в экологических акциях, мастер-классы по созданию изделий из подручных средств, спортивные эстафеты, посещение экскурсий | AF125: не имеется | AG125: 2023 г. | AH125: СЭЗ № 29.01.04.000.М.000486.05.25 от 27.05.2025 г. | AI125: Предписание Управления Роспотребнадзора по Архангельской области от 31.01.2024 г. № 36-1/пр / замечания устранены. Предписание Управления Роспотребнадзора по Архангельской области от 31.01.2025 г. № 2/-1 пр / замечания устранить до 03.03.2025 г. Предписание Управления Роспотребнадзора по Архангельской области от 31.01.2025 г. № 2/-2 пр /замечания устранить до 30.01.2026 г. | AJ125: Договор заключается на период работы лагеря ГБУЗ АО "АГКП № 2" | AK125: Выписка из реестра лицензий № Л035-01270-29/00645510 от 28.03.2023 г | AL125: Входы в здание оборудованы пандусами и дополнительно вход в здание со стороны пр. Московский оборудован подъемником для доступности детей инвалидов и детей с ограниченными возможностями здоровья (инвалиды-колясочники, детей с нарушениями функции опорно-двигательного аппарата, инвалидов по зрению). Так же в школе расположены 2 лифта в блоках В и Е соответственно для удобства детей с ограниченными возможностями здоровья (инвалиды-колясочники, детей с нарушениями функции опорно-двигательного аппарата, инвалидов по зрению). На 1 этаже школы находится медицинский блок для хранения лекарственных препаратов (слабослышащих, слабовидящих, инвалидов с сахарным диабетом, бронхиальной астмой, онкобольных). Пищеблок на 1 этаже оснащён необходимым оборудованием для хранения лечебного питания, необходимое для ребенка, нуждающегося в соблюдении режима лечения (инвалидов с сахарным диабетом, бронхиальной астмой, онкобольных, глухие, слабослышащие, слепые, слабовидящие, НОДА, с ЗПР, с ТНР, с РАС, с умственной отсталостью). | AM125: Принято Методическим советом № 2 от 06 мая 2025 г. Утверждено Директором МАУ ДО «Центр «Архангел» Приказ № 90 от 07 мая 2025 г. | AN125: https://mbous7.ru/upload/medialibrary/51d/ixbbooskqta1cv5zjq1wqd3dygfalpbc.pdf
A126: 105 | B126: 72 | C126: Лагерь с дневным пребыванием детей муниципального бюджетного учреждения дополнительного образования городского округа "Город Архангельск" "Детский (подростковый) центр "Радуга" на базе муниципального бюджетного общеобразовательного учреждения городского округа "Город Архангельск" "Средняя школа № 14 с углублённым изучением отдельных предметов имени Я. И. Лейцингера" на базе МБОУ СШ № 14 по адресу МБОУ СШ № 1 (МБУ ДО "ДПЦ "Радуга" на базе МБОУ СШ № 14 в здании МБОУ СШ № 1) | D126: муниципальная | E126: Добрынина Елена Валерьевна | F126: 2901068671 | G126: Юридический адрес: 163000, г. Архангельск, просп. Троицкий, д. 96, корп. 2 Тел: 8 (8182) 65-31-67; 8 (8182) 65-49-30 Е-mail: arhraduga@mail.ru Фактический адрес: 163000, г. Архангельск, ул. Комсомольская, д.5 Тел: 8 (8182) 62-58-94 | H126: https://mboussh14.arkh.eduru.ru/lok | I126: лагерь, организованный образовательной организацией, с дневным пребыванием | J126: сезонный | M126: 03.06.2025-28.06.2025 | N126: 80 | AC126: 177.64 | AD126: 7-12 лет | AE126: Режим работы: с 8:30 до 14:30. Организовано 2-х разовое питание и медицинское сопровождение. Имеются кабинеты для отдыха детей. Запланированные мероприятия: организация культурно-массовых и спортивных мероприятий, творческие мастерские, психологическик тренинги, походы, посещение музея | AF126: не имеется | AG126: 1992 г. | AH126: СЭЗ № 29.01.04.000.М.000484.05.25 от 27.05.2025 г. | AI126: Предписание Роспотребнадзора № 135/пр. от 07.03.2024 устранить до 23.09.2025 г. | AJ126: Договор № 04/25 от 25.12.2024 г. ГБУЗ АО "АГДКП" | AK126: Лицензия № 6727 от 22.09.2021 г. МБОУ СШ № 14 Лицензия № 6386 от 15.12.2016 г. МБУ ДО ДПЦ "Радуга" | AL126: Стены учебных кабинетов спокойных пастельных тонов | AM126: Согласовано: директором МБОУ СШ №14 Труфановой О. Н., принято на методическом совете Протокол №9 от 07.05.2025 г. Утверждено: директором МБУ ДО «ДПЦ «Радуга» Добрыниной Е. В., Приказ №33к от 07.05.2025 г. | AN126: https://mboussh14.arkh.eduru.ru/lok
A127: 106 | B127: 73 | C127: Лагерь с дневным пребыванием детей муниципального бюджетного учреждения дополнительного образования городского округа "Город Архангельск" "Центр дополнительного образования детей "Контакт" (МБУ ДО "ЦДОД "Контакт") | D127: муниципальная | E127: Чистикова Ирина Андреевна | F127: 2928001762 | G127: Юридический адрес: 163025, Архангельская область, г. Архангельск, пер. Банный 1-й, д.2, корп 1 Тел: 8 (8182) 29-68-86 E-mail: cdodkontakt@yandex.ru Фактический адрес: 163025, Архангельская область, г. Архангельск, пер. Банный 1-й, д.2, корп 1; ул. Краснофлотская, д.3 (питание) | H127: https://kontakt29.eduarkh.ru/about/news/2777272 | I127: лагерь, организованный образовательной организацией, с дневным пребыванием | J127: сезонный | M127: 02.06.2025-23.06.2025 | N127: 29 | AC127: 177.64 | AD127: 7-17 лет | AE127: Режим работы: с 8:30 до 14:30. Организовано 2-х разовое питание и медицинское сопровождение. Имеются игровые комнаты, спортивный зал, спортивные площадки. Запланированные мероприятия: организация культурно-массовых и спортивных мероприятий, творческие мастерские, психологическик тренинги, походы, посещение музея | AF127: не имеется | AG127: 1979 г. | AH127: СЭЗ № 29.01.04.000.М.000290.05.25 от 05.05.2025 г. | AI127: Проверок не было | AJ127: Договор № 7М от 20.12.2024 г. ГБУЗ АО "АГКБ № 7" | AK127: Выписка из реестра лицензий № ЛО35-01270-29/00236308 от 11.02.2022 г. | AL127: Условия не созданы | AM127: Принято на методическом совете Протокол № 7 от «28» апреля 2025 г. Утверждено и.о. директора МБУ ДО «ЦДОД «Контакт» А.Н. Савкин Приказ № 62 от «28» апреля 2025 г. | AN127: https://kontakt29.eduarkh.ru/documents/regulat_ documents/doc/2171399
A128: 107 | B128: 74 | C128: Лагерь с дневным пребыванием детей муниципального бюджетного учреждения дополнительного образования городского округа "Город Архангельск" "Спортивная школа имени Героя Советского Союза Павла Васильевича Усова" (МБУ ДО СШ им. П.В. Усова) | D128: муниципальная | E128: Молчанов Денис Ильич | F128: 2901044173 | G128: Юридический адрес: 163062, г. Архангельск, ул. Никитова, д. 1 Фактический адрес: 163062, г. Архангельск, ул. Октябрьская, д. 22 (помещения лагеря); ул. Кирова, д. 7 (организация питания) Тел/факс: 8 (8182) 69-88-45 E-mail: uk0174@mail.ru | H128: https://dussh2-arh.ru/ | I128: лагерь, организованный образовательной организацией, с дневным пребыванием | J128: сезонный | M128: 02.06.2025-27.06.2025 | N128: 20 | AC128: 177.64 | AD128: 6,5-17 лет | AE128: Режим работы: с 9:00 до 15:00. Организовано 2-х разовое питание и медицинское сопровождение. Имеется спортивный зал, тренажерный зал. Запланированные мероприятия: организация культурно-массовых и спортивных мероприятий | AF128: нет | AG128: 1994 г., ул. Октябрьская, д. 22 | AH128: СЭЗ № 29.01.04.000.М.000316.05.25 от 07.05.2025 г. | AI128: Проверок не было | AJ128: Договор № 55 от 18.04.2025 г. ГБУЗ АО "АГКБ № 2" | AK128: Лицензия № 6698 от 26.08.2021 г. | AL128: Условия не созданы | AM128: Программа утверждена директором МБУ ДО СШ имени П.В. Усова 7.05.2025 г. | AN128: https://dussh2-arh.ru/uploads/s/m/z/i/mziteqwidmni/file/SnYXPSdY.pdf
A129: 108 | B129: 75 | C129: Лагерь с дневным пребыванием детей муниципального бюджетного учреждения дополнительного образования городского округа "Город Архангельск" "Соломбальский Дом детского творчества" на базе муниципального бюджетного общеобразовательного учреждения городского округа "Город Архангельск" "Средняя школа № 52 имени Героя Советского Союза Г.И.Катарина" (МБУ ДО "СДДТ" на базе МБОУ СШ № 52 в здании МБОУ СШ № 50) | D129: муниципальная | E129: Студенцова Анна Иннокентьевна | F129: 2928000906 | G129: Юридический адрес: 163020, г. Архангельск, Банный 1-й переулок , д. 2 Тел/факс: 8 (8182) 22-31-04; 8 (8182) 24-91-40 Фактический адрес: 163020, г. Архангельск, ул.Краснофлотская, д. 3 Тел: 8 (8182) 22-82-33 Е-mail: school52r29@yandex.ru | H129: https://52.arkhschool.ru/?section_id=49 | I129: лагерь, организованный образовательной организацией, с дневным пребыванием | J129: сезонный | M129: 02.06.2025-27.06.2025 | N129: 50 | AC129: 177.64 | AD129: 6,5-17 лет | AE129: Режим работы с 08:30 до 14:30. Организовано 2-х разовое питание. Помещения лагеря: 2 игоровые комнаты, спортивный зал, игровой зал, столовая. Запланированные мероприятия: организация культурно-массовых мероприятий, экскурсии, спортивные мероприятия, тематические беседы, лекции | AF129: не имеется | AG129: 1990 г. | AH129: СЭЗ № 29.01.04.000.М.000337.05.25 от 13.05.2025 г. | AI129: Управление федеральной службы по надзору в сфере защиты прав потребителей и благополучия человека от 17.12.2021 № 1014/пр (до 18.12.2023, исполнено); - Федеральная служба по надзору в сфере защиты прав потребителей и благополучия человека от 03.05.2023 № 193/пр (до 03.05.2024, частично исполнено, подано ходатайство о продлении сроков); - Управление федеральной службы по надзору в сфере защиты прав потребителей и благополучия человека от 16.05.2024 № 309/пр (до 16.05.2025); - Управление федеральной службы по надзору в сфере защиты прав потребителей и благополучия человека от 11.02.2025 | AJ129: Договор № б/н от 10.02.2025 г. ГБУЗ АО "АГКБ № 7" | AK129: Выписка из реестра лицензий № ЛО35-01270- 29/00236318 от 19.10.2021 г. МБУ ДО "СДДТ" Выписка из реестра лицензий № ЛО35-01270- 29/00236421 от 10.12.2021 г. МБУ СШ № 50 | AL129: Назначены сотрудники (тьюторы), осуществляющие сопровождение детей-инвалидов и детей с ОВЗ (при необходимости) в процессе оказания им услуг по организации отдыха и оздоровлени; адаптация официального сайта для лиц с нарушением зрения | AM129: Утверждено Приказом директора МБУ ДО «СДДТ» № 121 от 05.05.2025 г. | AN129: https://golnk.ru/85w7q
A130: 109 | B130: 76 | C130: Лагерь с дневным пребыванием детей муниципального бюджетного учреждения дополнительного образования городского округа "Город Архангельск" "Спортивная школа "Каскад" (МБУ ДО СШ Каскад) | D130: муниципальная | E130: Коршунова Татьяна Васильевна | F130: 2901046879 | G130: Юридический адрес: 163071, г. Архангельск, ул. Гайдара, д.50 корп.1 Тел.: 27-03-97 Фактический адрес: 163071, г. Архангельск, ул. Гайдара, д.50 корп.1 (спортивные залы) ул. Воскресенская, д.95, корп. 3 (питание) Е-mail: dhkaskad@yandex.ru | H130: https://dhkaskad.ru/activity/letnyaya-kampaniya/ | I130: лагерь, организованный образовательной организацией, с дневным пребыванием | J130: сезонный | M130: 02.06.2025-23.06.2025 | N130: 75 | AC130: 177.64 | AD130: 6,5-17 лет | AE130: Режим работы: с 9:00 до 15:00. Организовано 2-х разовое питание и медицинское сопровождение. Имеются игровые комнаты, спортивный зал, тренажёрный зал. Запланированные мероприятия: организация культурно-массовых и спортивных мероприятий | AF130: не имеется | AG130: 1964 г. 2023 г., кап. ремонт | AH130: СЭЗ № 29.01.04.000.М.000389.05.25 от 20.05.2025 г. | AI130: Профилактический визит Роспотребнадзора 21.06.2024 г., предписаний нет | AJ130: Договор заключается на период работы лагеря ГБУЗ АО «АГДКП № 6» | AK130: Выписка из реестра лицензий №ЛО35-01270-29/003236372 от 31.08.2021 г. | AL130: Условия созданы для отдельных групп детей с ограниченными возможностями здоровья ( ОНР, I степени тугоухости). | AM130: Утверждено Приказом директора МБУ ДО СШ Каскад от 05.05.2025 г. №160-р | AN130: https://dhkaskad.ru/activity/letnyaya-kampaniya/
A131: 110 | B131: 77 | C131: Лагерь с дневным пребыванием детей муниципального автономного учреждения дополнительного образования городского округа "Город Архангельск" "Центр технического творчества, спорта и развития детей "Архангел" на базе муниципального бюджетного общеобразовательного учреждения городского округа "Город Архангельск" "Открытая (сменная) школа" (МАУ ДО "Центр "Архангел" на базе МБОУ ОСШ) | D131: муниципальная | E131: Фомин Александр Анатольевич | F131: 2901075037 | G131: Юридический адрес: 163009, г. Архангельск, ул. Октябрят, д. 4, корп. 4 Фактический адрес: 163046, Архангельская область, г. Архангельск, просп. Чубарова-Лучинского, д. 29; просп. Советских Космонавтов, д.69; ул. Комсомольская, д.59 Тел: 8 (8182) 28-57-32 E-mail: mouososhbsh@mail.ru | H131: http://arhmouososh.ucoz.ru/index/2024_god/0-705 | I131: лагерь, организованный образовательной организацией, с дневным пребыванием | J131: сезонный | M131: 02.06.2025-23.06.2025 | N131: 10 | AC131: 177.64 | AD131: 14-17 лет | AE131: Режим работы: с 08:30 до 14:30. Шестидневная рабочая неделя. Организовано 2-х разовое питание и медицинское сопровождение. Для организации летней кампании планируется использование актового зала, игровой комнаты, библиотеки. Запланированные мероприятия: организация спортивных мероприятий, посещение экскурсий, мастер-классов, творческих мастерских. | AF131: не имеется | AG131: 1902 г.; 2000 г. | AH131: СЭЗ № 29.01.04.000.М.000295.05.25 от 05.05.2025 г. | AI131: Предписание Управления Роспотребнадзора по Архангельской области от 22.12.2021 г. № 1028/пр., устранение замечаний продлено – до 13.12.2024 г. Предписание Управления Роспотребнадзора по Архангельской области от 29.12.2023 г. №542/пр., устранить замечания до 29.12.2024 г. Предписание Управления Роспотребнадзора по Архангельской области от 06.11.2024 г. № 958/пр., устранить замечания до 19.12.2025 г. | AJ131: Договор заключается на период работы лагеря ГБУЗ АО "АГКП №7" | AK131: выписка из реестра лицензий № ЛО35-01270-29/00236319 от 09.09.2021 г. | AL131: Для учащихся с ОВЗ (ЗПР) разработаны адаптированные образовательные программы, предусмотрено привлечение специалистов службы сопровождения (социального педагога, педагога-психолога) (ЗПР). Предусмотрено проведение психологических консультаций для учащегося с ОВЗ и его родителей (законных представителей) (ЗПР). | AM131: Принято Методическим советом № 2 от 06 мая 2025 г. Утверждено Директором МАУ ДО «Центр «Архангел» Приказ № 90 от 07.05.2025 г. | AN131: http://arhmouososh.ucoz.ru/Documents/2024-2025/letniy_lager/programma_vr_letnego_lagerja_mbou_ossh.pdf
A132: 111 | B132: 78 | C132: Лагерь с дневным пребыванием детей Общество с ограниченной ответственностью "Домус" (ООО "Домус") | D132: коммерческая | E132: генеральный директор Соболев Александр Николаевич зам.генерального директора Кокшейкина Анастасия Юрьевна | F132: 2901250232 | G132: Юридический адрес: 163013, г. Архангельск, ул. Полярная, д.17 Фактический адрес: 163020, г. Архангельск, ул. Советская, д. 7; ул. Комсомольская, д.59 (питание) Тел.8 909 550 35 01 E-mail^ gorkanikul@yandex.ru | H132: https://gorkanikul.tilda.ws/ | I132: лагерь, организованный образовательной организацией, с дневным пребыванием | J132: сезонный | M132: 02.06.2025-06.06.2025 09.06.2025-13.06.2025 | N132: 16 | O132: 16.06.2025-20.06.2025 23.06.2025-27.06.2025 30.06.2025-04.07.2025 07.07.2025-11.07.25 14.07.2025-18.07.2025 | P132: 40 | Q132: 21.07.2025-25.07.2025 28.07.2025-01.08.2025 | R132: 16 | S132: 04.08.2025-08.08.2025 11.08.2025-15.08.2025 18.08.2025-22.08.2025 25.08.2025-29.08.2025 (смена отменена) | T132: 24 | AC132: 2800.00 | AD132: 7-13 лет | AE132: Режим работы:с 9:00 до 17:00. Организовано 3-х разовое питание и медицинское сопровождение. Имеются спортивный зал, спортивные площадки. Запланированные мероприятия: организация культурно-массовых мероприятий, творческие мастерские, психологические тренинги, походы, посещение музея. | AF132: не имеется | AG132: 2009 г. | AH132: СЭЗ № 29.01.04.000.М.000504.05.25 от 27.05.2025 г. | AI132: Проверок не было | AJ132: Договор № б/н от 09.01.2025 г. ГБУЗ АО "Университетская Клиника" | AK132: нет | AL132: Нарушения речи, слабовидящие | AM132: Программу утверждаем 26.05.2025 г. Зам. директора Кокшейкина Анастасия Юрьевна | AN132: https://gorkanikul.tilda.ws/documents
A133: 112 | B133: 79 | C133: Лагерь с дневным пребыванием детей на базе автономной некоммерческой общеобразовательной организации "Университетская гимназия" | D133: коммерческая | E133: Ипатов Станислав Николаевич | F133: 2901277749 | G133: Юридический адрес: 163002, Архангельская обл., г. Архангельск, просп. Ломоносова, д. 11, E-mail: office@ugkseniya.ru Фактический адрес: 163002, Архангельская обл., г. Архангельск, ул. Смольный Буян, д. 7 | H133: http://xeniya.ru/roditelyam/dopolnitelnyye-uslugi/letniilager | I133: лагерь, организованный образовательной организацией, с дневным пребыванием | J133: сезонный | M133: 28.05.2025-27.06.2025 | N133: 50 | AC133: 1,200.00 | AD133: 7-11 лет | AE133: Режим работы: понедельник-пятница, 09.00-16.00. Организовано двухразовое питание и медицинское сопровождение. Имеются игровые комнаты, спортивный зал, спортивная площадка. Запланированные мероприятия: организация культурно-массовых мероприятий, спортивных мероприятий, проведение творческих мастер-классов, психологические тренинги, поход, посещение культурно-досуговых учреждений и музеев | AF133: не имеется | AG133: 1977 г. | AH133: СЭЗ № 29.01.04.000.М.000103.03.25 от 28.03.2025 г. | AI133: Профилактический визит Роспотребнадзора по АО от 09.12.2024 г. по 18.12.2024 г. по адресу: Смольный Буян, д.7, нарушений не выявлено | AJ133: Договор от 12.01.2015 г. ГБУЗ АО "Архангельская клиническая поликлиника " 2" Дополнительное соглашение № 3 к договору от 12.09.2022 г. | AK133: Выписка из реестра лицензий № ЛО35-01270-29/00281700 от 03.06.2016 г. | AL133: Дети с рарушением речи | AM133: Утверждено директором от 01.04.2025 г. | AN133: https://drive.google.com/file/d/1uGiNRhtGuOhcImM3cLcTe3suNlQ5KOTo/view
A134: 113 | B134: 80 | C134: Лагерь с дневным пребыванием детей муниципального бюджетного учреждения дополнительного образования городского округа "Город Архангельск" "Спортивная школа олимпийского резерва имени Соколова Льва Константиновича" на базе МБОУ СШ № 1 (МБУ ДО СШОР им. Соколова Л.К.) | D134: муниципальная | E134: Прокопьев Дмитрий Сергеевич | F134: 2928000021 | G134: Юридический адрес: 163020, Архангельская область, г. Архангельск, Соломбальский территориальный округ, ул. Советская, д. 2, корп. 1 Фактический адрес: 163045, Архангельская область, г. Архангельск, Октябрьский территориальный округ, ул. Комсомольская, д. 5 Тел.: 8(8182) 23-34-80, 8 (8182) 24-96-75 Е-mail: dyssh3-vodnik@yandex.ru | H134: https://school-sokolova.profiedu.ru/ | I134: лагерь, организованный образовательной организацией, с дневным пребыванием | J134: сезонный | M134: 02.06.2025-30.06.2025 | N134: 50 | AC134: 177.64 | AD134: 7-17 лет | AE134: Режим работы: с 09:00 до 15:00. Организовано 2-х разовое питание и медицинское сопровождение. Имеются кабинеты для проведения теоретических занятий, просмотра фильмов в тематические дни, спортивные площадки. Запланированные мероприятия: организация культурно-массовых и спортивных мероприятий, учебно-тренировочных занятий, творческие мастерские, тренинги и игры, походы в кино. | AF134: нет | AG134: 1973 г. | AH134: СЭЗ № 29.01.04.000.М.000425.05.25 от 21.05.2025 г. | AI134: Предписание Управления Роспотребнадзора от 07.03.2024 № 135/пр. со сроком исполнения 23.09.2025 г. Предписание Управления Роспотребнадзора от 10.12.2021 № 956/2-пр со сроком исполнения 06.12.2025 г. | AJ134: Договор № 10/25 от 05.03.2025 г. ГБУЗ АО «АГДКП» | AK134: Лицензия № 8888 от 15.02.2021 г. | AL134: Доступно для детей с речевыми нарушениями | AM134: Утверждено приказом директора № 59-р, 60-р от 05.05.2025 г. | AN134: https://school-sokolova.profiedu.ru/?section_id=32
A135: 114 | B135: 81 | C135: Лагерь с дневным пребыванием детей на базе студии свободного образования "Стрижи" ИП Вейцман Анна Борисовна | D135: коммерческая | E135: Вейцман Анна Борисовна | F135: 290113049627 | G135: Юридический адрес: г. Архангельск, просп. Советских Космонавтов, 118-14 Фактический адрес:163045, г. Архангельск, ул. Гагарина, д. 2 , пом. 1-Н, ул. Комсомольская, д.5, Шубина, д.9. Тел.: 8-911-597-07-34 (Анна Борисовна) Тел.:8911-551-80-65 Е-mail: enot-arkh@yandex.ru | H135: https://ip-veicmanan.tilda.ws/letniylager | I135: лагерь, организованный образовательной организацией, с дневным пребыванием | J135: сезонный | M135: 09.06.2025-30.06.2025 | N135: 20 | O135: 03.07.2025-31.07.2025 | P135: 20 | AC135: 1800.00 | AD135: 6,5-14 лет | AE135: Режим работы: с 8:00 до 18:00. Организовано 2-х разовое питание в Муниципальной средней школе №1, в Доме молодежи «Грядка». Организовано медицинское сопровождение. Имеются игровые комнаты, комната для работы с нейропсихологом. Запланированные мероприятия: организация культурно-массовых мероприятий, творческие мастерские, прогулки, эстафеты, посещение музеев и выставок. | AF135: нет | AG135: ул. Гагарина, д. 2, основное здание, 1964 г. Дом молодежи «Грядка», 1979 г. муниципальная средняя школа №1, здание столовой,1973г. | AH135: СЭЗ № 29.01.04.000.М.000520.05.25 от 30.05.2025 г. | AI135: 25.06.2025 г. проведен профилактический визит Управления Роспотребнадзора по АО Поздняковой И.А. | AJ135: Договор № 10 от 18.09.2025 г. с ООО «Очаг» | AK135: Лицензия № Л035-01270-29/01842862 от 07.02.2025 «Дополнительное образование детей и взрослых» | AL135: Возможен прием детей с легким нарушением речи | AM135: Приказ руководителя студии от 15.05.2025 г. | AN135: https://drive.google.com/file/d/1ap7dqksYOz90t-fDBNczgdpeEEogHwXc/view
B136: 78 | L136: =SUM(L55:L135) -> 0 | N136: =SUM(N55:N135) -> 5560 | P136: =SUM(P55:P135) -> 60 | R136: =SUM(R55:R135) -> 16 | T136: =SUM(T55:T135) -> 24 | V136: =SUM(V55:V135) -> 0 | X136: =SUM(X55:X135) -> 0 | Z136: =SUM(Z55:Z135) -> 0 | AB136: =SUM(AB55:AB135) -> 0
B137: Вельский муниципальный район Архангельской области
A138: 115 | B138: 1 | C138: Лагерь с дневным пребыванием детей муниципального бюджетного общеобразовательного учреждения "Средняя школа № 1 г. Вельска" (МБОУ "СШ № 1 г. Вельска") | D138: муниципальная | E138: Горбунова Ксения Валерьевна | F138: 2907006417 | G138: Юридический и фактический адрес: 165150, Архангельская область, г. Вельск, ул. Кирова, д. 6 Тел: 8 (81836) 6-63-35 Е-mail: vshkola1@yandex.ru | H138: https://vshkola1-velsk.edusite.ru/magicpage.html?page=585932 | I138: лагерь, организованный образовательной организацией, с дневным пребыванием | J138: сезонный | K138: 31.03.2025-06.04.2025 | L138: 40 | M138: 29.05.2025-18.06.2025 | N138: 100 | W138: 27.10.2025-02.11.2025 | X138: 40 | AC138: 177.64 | AD138: 6,5-17 лет | AE138: Режим работы: с 8:30 до 14:30. Количество пять рабочих дней в неделю лагеря с дневным пребыванием. Организовано 2-х разовое питание и медицинское сопровождение. Имеются игровые комнаты, спортивный зал, спортивные площадки. Запланированные мероприятия: организация культурно-массовых и спортивных мероприятий, творческие мастерские, психологические тренинги, походы, посещение музея. | AF138: не имеется | AG138: 1974 г. | AH138: СЭЗ № 29.01.04.000.М.000004.01.25 от 20.01.2025 г. | AI138: Предписание Роспотребнадзора г. Вельск от 14.06.2024 г. № 480/2024 пр/ замечания устранить до - 30.05.2025 г. | AJ138: Договор № б/н от 09.01.2024 г. ГБУЗ АО "Вельская ЦРБ" | AK138: Лицензия № 5672 от 30.01.2015 г. | AL138: Для пребывания детей с ограниченными возможностями здоровья и детей-инвалидов наличие пандуса. В столовой для хранения продуктов имеются: холодильники; холодильные витрины; шкафы морозильные; в складском помещении – подтоварники. Медицинский кабинет оснащён аптечным шкафом, а также холодильником для хранения лекарственных препаратов. | AM138: Рассмотрено Педагогическим Советом, Протокол № 14 от 28 апреля 2025года. Утверждено Приказом директора МБОУ «СШ № 1 г. Вельска» № 514 от 29 апреля 2025 года. | AN138: https://vshkola1-velsk.edusite.ru/sveden/files/cf5ef5335af7db2a0c304f347d400f09.pdf
A139: 116 | B139: 2 | C139: Лагерь с дневным пребыванием детей муниципального бюджетного общеобразовательного учреждения "Средняя школа № 3 г. Вельска" (МБОУ "СШ № 3 г. Вельска") | D139: муниципальная | E139: Сеньковская Ирина Владимировна | F139: 2907006544 | G139: Юридический адрес: 165150, Архангельская область, г. Вельск, ул. Дзержинского, д. 25 Фактический адрес: 165150, Архангельская область, г. Вельск, ул. Дзержинского, д. 21 пом. 1, д. 23 Тел: 8 (81836) 6-34-46 Е-mail: shkla3gvelska@rambler.ru velsk.school3@yandex.ru | H139: https://school3-velsk.ru/magicpage.html?page=679331 | I139: лагерь, организованный образовательной организацией, с дневным пребыванием | J139: сезонный | M139: 28.05.2025-18.06.2025 | N139: 100 | AC139: 177.64 | AD139: 6,5-17 лет | AE139: Режим работы: с 8:30 до 14:30. Организовано питание 2-х разовое и медицинское сопровождение. Имеются игровые комнаты спортивный зал, спортивные площадки. Запланированные мероприятия: организация культурно-массовых мероприятий, психологические тренинги, походы, посещение музея. | AF139: не имеется | AG139: здание столовой, 1966 г.; здание спортивного зала, 2023 г. | AH139: СЭЗ № 29.01.04.000.М.000894.11.24 от 22.11.2024 г. | AI139: Предписание Роспотребнадзора по Вельскому району от 27.06.2023 г. № 29-01/01/-1200-2023. Замечания устранить до 02.09.2024 г., замечания устранены | AJ139: Договор № б/н от 12.02.2019 г. ГБОУЗ АО "Вельская ЦРБ" | AK139: Лицензия № 5661 от 18.12.2014 г. | AL139: Условия созданы частично: вход оборудован стационарным пандусом;в санузле имеются необходимые приспособления;для хранения специализированных продуктов имеется оборудование; медицинский каинет осначен необходимым оборудованием для хранения лекарственных препаратов. | AM139: Утверждено Педагогический Совет № 11 от 7 апреля 2025 г. | AN139: https://school3-velsk.ru/magicpage.html?page=679331
A140: 117 | B140: 3 | C140: Лагерь с дневным пребыванием детей муниципального бюджетного общеобразовательного учреждения "Гимназия № 4 г. Вельска" (МБОУ "СШ № 4 г. Вельска") | D140: муниципальная | E140: Ферина Нина Леонидовна | F140: 2907006880 | G140: Юридический адрес: 165150, Архангельская область, г. Вельск, ул. Дзержинского, д. 82 Тел: 8 (81836) 6-31-41 Е-mail: school4velsk2@yandex.ru Фактический адрес: 165150, Архангельская область, г. Вельск, ул. Дзержинского, д. 82, ул. Дзержинского, д. 82, строение 3 и 4 (мед.кабинет) | H140: https://school4velsk.ru/11476/ | I140: лагерь, организованный образовательной организацией, с дневным пребыванием | J140: сезонный | M140: смена отменена кап. ремонт | N140: 0 | AC140: 177.64 | AD140: 7-17 лет | AE140: Режим работы: с 8:30 до 14:30. Организовано 2-х разовое питание и медицинское сопровождение. Имеются игровые комнаты, спортивный зал, плавательный бассейн. Запланированные мероприятия: организация культурно-массовых мероприятий, психологические тренинги, посещение музея, библиотеки | AF140: не имеется | AG140: школа, 1910 г.; бассейн, 1990 г. | AH140: СЭЗ № 29.01.04.000.М.000479.05.23 от 18.05.2023 г СМЕНА ОТМЕНЕНА. «В связи с окончанием срока действия санитарно-эпидемиологического заключения организация отдыха не имеет право предоставлять услугу по отдыху и оздоровлению детей» | AI140: Проверок не было | AJ140: Договор № б/н от 09.01.2024 г. ГБУЗ АО "Вельская ЦРБ" | AK140: Лицензия № 6599 от 27.02.2020 г. | AL140: В наличии пандус. | AM140: СМЕНА ОТМЕНЕНА КАПИТАЛЬНЫЙ РЕМОНТ | AN140: СМЕНА ОТМЕНЕНА КАПИТАЛЬНЫЙ РЕМОНТ
A141: 118 | B141: 4 | C141: Лагерь с дневным пребыванием детей муниципального бюджетного общеобразовательного учреждения "Средняя школа № 15 п. Кулой" (МБОУ "СШ № 15 п. Кулой") | D141: муниципальная | E141: Стрекаловская Ольга Валерьевна | F141: 2907006939 | G141: Юридический адрес: 165100, Архангельская область, Вельский район, пос. Кулой, ул. Ленина, д. 43 Тел: 8 (81836) 9-65-19 Е-mail: aleonus@mail.ru Фактический адрес: 165100, Архангельская область, Вельский район, пос. Кулой, улЛенина, д. 43, ул. Пионерская, д. 5 | H141: http://culoy15.edusite.ru/p134aa1.html | I141: лагерь, организованный образовательной организацией, с дневным пребыванием | J141: сезонный | M141: 29.05.2025-21.06.2025 | N141: 50 | W141: 27.10.2025-31.10.2025 | X141: 25 | AC141: 177.64 | AD141: 7-17 лет | AE141: Режим работы: с 8:30 до 14:30. Организовано 2-х разовое питание и медицинское сопровождение. Имеются игровые комнаты, спортивный зал,спортивные площадки. Запланированные мероприятия: организация культурно-массовых мероприятий, творческие мастер-классы, посещение музея, Дома культуры п. Кулой | AF141: не имеется | AG141: 1964 г., основное здание школы; 1958 г., здание начальной школы | AH141: СЭЗ № 29.01.04.000.М.000356.05.25 от 15.05.2025 г. | AI141: Внеплановая проверка Вельским территориальным отделом Управления Федеральной службы по надзору в сфере защиты прав потребителей и благополучия человека по АО Акт проверки № 193/02/-4/2021 от 26.03.2023 г., предписание исправить до 01.10.2023 г., продлено до декабря 2024 г., в связи с капитальным ремонтом основного здания школы | AJ141: Лицензия № ЛО-29-01-002936 от 14.08.2020 г. Договор № б/н от 01.02.2019 г. ГБУЗ АО "Вельская ЦРБ" | AK141: Выписка из ресстра лицензий № ЛО35-01270-29/00236831 от 06.02.2015 г. | AL141: Условия созданы частично. Для детей с ограниченными возможностями здоровья созданы условия для хранения лекарственных препаратов для медицинского применения и специализированных продуктов лечебного питания, передаваемых в указанную организацию родителями или иными законными представителями ребенка, нуждающегося в соблюдении предписанного лечащим врачом режима лечения | AM141: Утверждена приказом № 65 от 15.04.2025 г. | AN141: https://culoy15.edusite.ru/DswMedia/programmaplanlager-.pdf
A142: 119 | B142: 5 | C142: Лагерь с дневным пребыванием детей муниципального бюджетного общеобразовательного учреждения "Средняя школа № 90 п. Кулой" (МБОУ "СШ № 90 г. п. Кулой") | D142: муниципальная | E142: Якимова Галина Александровна | F142: 2907006470 | G142: Юридический адрес: 165100, Архангельская область, Вельский район, пос. Кулой, ул. Комсомольская, д. 50 Фактический адрес: 165100, Архангельская область, Вельский район, пос. Кулой, ул. Комсомольская, д. 50, ул. Комсомольская, д. 52 Тел: 8 (81836) 9-24-85 Е-mail: kuloi-shkola90@yandex.ru | H142: http://29kuloyschool90.tilda.ws/page14944077.html | I142: лагерь, организованный образовательной организацией, с дневным пребыванием | J142: сезонный | M142: 29.05.2025-25.06.2025 | N142: 80 | AC142: 177.64 | AD142: 6,5-17 лет | AE142: Режим работы: с 9:00 до 15:00. Организовано питание 2-х разовое, витаминизированное меню. Обеспеченность бутылированной водой. Наличие оборудованной спортивной площадка для игр. Запланированные мероприятия: организация культурно-массовых, спортивно-оздоровительные мероприятия в соответствии с программой работы лагеря | AF142: не имеется | AG142: 1954 г. | AH142: СЭЗ № 29.01.04.000.М.000198.04.25 от 21.05.2025 г. | AI142: Вельский территориальный отдел Управления Федеральной службы по надзору в сфере защиты прав потребителей и благополучия человека по Архангельской области, акт профилактического визита от 14 октября 2024 г. № 877/2024 (нарушения устранить до 16 сентября 2025г.) | AJ142: Договор № б/н от 01.02.2021 г. ГБУЗ АО "Вельская ЦРБ" | AK142: Лицензия № 5667 от 20.01.2015 г. | AL142: Обеспечены условия хранения лекарственных препаратов для медицинского применения и специализированных продуктов лечебного питания, передаваемых в указанную организацию родителями ребенка, нуждающегося в союлюдении предписанного лечащим врачом режима лечения | AM142: Утверждена приказом директора МБОУ «СШ № 90 п. Кулой» от 15.04.2025 № 315 | AN142: https://disk.yandex.ru/i/OzFYL2x_BTe0oQ
A143: 120 | B143: 6 | C143: Лагерь с дневным пребыванием детей муниципального бюджетного общеобразовательного учреждения "Солгинская средняя школа № 86" (МБОУ "Солгинская СШ № 86") | D143: муниципальная | E143: Кулакова Наталья Анатольевна | F143: 2907007918 | G143: Юридический и фактический адрес: 165129, Архангельская область, Вельский район, пос. Солгинский, ул. Советская, д. 29 Тел: 8 (81836) 5-25-66 Е-mail: solginskaysoh_8@rambler.ru | H143: https://solginskaysoh86.edusite.ru/p602aa1.html | I143: лагерь, организованный образовательной организацией, с дневным пребыванием | J143: сезонный | K143: 31.03.2025-04.04.2025 | L143: 18 | M143: 28.05.2025-19.06.2025 | N143: 49 | AC143: 177.64 | AD143: 6,5-17 лет | AE143: Режим работы: с 8:30 до 14:30. Организовано 2-х разовое питание и медицинское сопровождение. Имеются игровые комнаты, сенсорная комната, комната психологической рагрузки, спортивный зал, игровая площадка. Запланированные мероприятия: организация культурно-массовых мероприятий, психологические тренинги, походы, посещение музея, библиотеки, дома культуры | AF143: не имеется | AG143: 1963 г. | AH143: СЭЗ № 29.01.04.000.М.000220.04.25 от 24.04.2025 г. | AI143: Предписание Управления Роспотребнадзора Вельского территориального отдела от 02.06.2023 № 314/2023, срок устранения до 29.08.2025 г. | AJ143: Договор № б/н от 21.03.2019 г. ГБУЗ АО "Вельская ЦРБ" | AK143: Лицензия № 5874 от 15.06.2015 г. | AL143: Дети с умственной отсталостью (задержка психического развития) | AM143: Утверждено Директором МБОУ «Солгинская СШ № 86» Н.А. Кулаковой Пр.№ 186 от 4 апреля 2025 г. | AN143: https://solginskaysoh86.edusite.ru/DswMedia/3programmalager-.pdf
A144: 121 | B144: 7 | C144: Лагерь с дневным пребыванием детей муниципального бюджетного общеобразовательного учреждения "Усть-Шоношская средняя школа № 16" (МБОУ "Усть-Шоношская СШ № 16") | D144: муниципальная | E144: и.о.директора Калашникова Елена Борисовна | F144: 2907007668 | G144: Юридический и фактический адрес: 165180, Архангельская область, Вельский район, пос. Усть-Шоноша, пер. Школьный, д. 2 Тел: 8 (81836) 4-81-36 Е-mail: ushkola16@mail.ru | H144: https://уссш16.рф/documents/19.html | I144: лагерь, организованный образовательной организацией, с дневным пребыванием | J144: сезонный | M144: 29.05.2025-19.06.2025 | N144: 24 | AC144: 177.64 | AD144: 6,5-17 лет | AE144: Режим работы: с 8:30 до 14:30. Количество рабочих дней в неделю лагеря с дневным пребыванием: 6 дней. Организовано 2-х разовое питание и медицинское сопровождение. Имеются игровые комнаты, спортивный зал, актовый зал, спортивная площадка. Запланированные мероприятия: Открытие и закрытие лагеря; День Защиты детей; День Здоровья; День Спорта; День Экологии; Спортивные игры и эстафеты; Минутки безопасности; Игры на свежем воздухе; КВН, викторины, квесты, дискотеки, КТД; мастер-классы, конкурсы рисунков, бантиков; посещение музея памяти, экскурсии в г. Вельск | AF144: не имеется | AG144: школа, 1959 г.; спортзал, 2016 г. | AH144: СЭЗ № 29.01.04.000.М.000119.04.25 от 08.04.2025 г. | AI144: Предписание ФБУЗ «Центр гигиены и эпидемиологии в Архангельской области и Ненецком автономном округе» (Вельский филиал) от 11.12.2024 г. №Ф/585 -216 Замечания устранить в срок до 01.02.2025 г. Договор № от 09 января 2024 года с ГБУЗ «Вельская центральная районная больница» | AJ144: Договор № б/н от 09.01.2024 г. ГБУЗ АО "Вельская ЦРБ" | AK144: Лицензия № 5708 от 18.03.2015 г. | AL144: Дети с нарушением интеллекта (ЗПР). Назначены сотрудники, осуществляющие сопровождение детей – инвалидов и детей с ОВЗ (при необходимости) в процессе оказания им услуг по организации отдыха и оздоровления. | AM144: Утверждено Педагогическим советом Приказ №38 от 28.04.2025 г. | AN144: https://уссш16.рф/documents/97.html
A145: 122 | B145: 8 | C145: Лагерь с дневным пребыванием детей муниципального бюджетного общеобразовательного учреждения "Левковская средняя школа № 7" (МБОУ "Левковская СШ № 7") | D145: муниципальная | E145: Варавина Елена Евгеньевна | F145: 2907007509 | G145: Юридический и фактический адрес: 165141, Архангельская область, Вельский район, пос. Пасьва, ул. Свердлова, д. 16 Тел: 8 (81836) 7-12-60 Е-mail: agv63@bk.ru | H145: https://levkovo7.nubex.ru/14298/ | I145: лагерь, организованный образовательной организацией, с дневным пребыванием | J145: сезонный | K145: 31.03.2025-04.04.2025 | L145: 10 | M145: 28.05.2025-24.06.2025 | N145: 15 | W145: 27.10.2025-31.10.2025 | X145: 20 | AC145: 177.64 | AD145: 6,5-17 лет | AE145: Режим работы: с 9:00 до 14.30, 5 дней в неделю. Организовано 2-х разовое питание и медицинское сопровождение. Имеются игровые комнаты, сенсорная комната, комната психологической разгрузки, спортивный зал, спортивные площадки.Запланированные мероприятия: организация культурно-массовых и спортивных мероприятий, творческие мастерские, психологические тренинги, походы, посещение музея. | AF145: не имеется | AG145: основное здание, сторовая, 1970 г. | AH145: СЭЗ № 29.01.04.000.М.000082.03.25 от 12.03.2025 г. | AI145: Акт профилактического визита Управление Федеральной службы по надзору прав потребителей и благополучия человека по Архангельской области Вельский территориальный отдел от 09.01.2024г. № 29240041000109119254, замечания устранены частично | AJ145: Договор № б/н от 15.03.2019 г. ГБУЗ АО "Вельская ЦРБ" | AK145: Лицензия № 5707 от 18.03.2015 г. | AL145: Назначены сотрудники, осуществляющие сопровождение детей с ОВЗ (при необходимости) в процессе оказания им услуг по организации отдыха и оздоровления | AM145: Утверждено Педагогический Совет № 6 от 30.03.2025 г. | AN145: https://r1.nubex.ru/s2307-aff/f3457_46/Рабочая%20программа%20воспитания%20детского%20оздоровительного%20лагеря%20с%20дневным%20пребыванием.pdf
A146: 123 | B146: 9 | C146: Лагерь с дневным пребыванием детей муниципального бюджетного общеобразовательного учреждения "Благовещенская средняя школа № 5" (МБОУ "Благовещенская СШ № 5") | D146: муниципальная | E146: Булатова Изольда Сергеевна | F146: 2907006431 | G146: Юридический и фактический адрес: 165136, Архангельская область, Вельский район, с. Благовещенское, ул. Центральная, д. 10 Тел: 8 (81836) 7-51-19 Е-mail: bssh5@yandex.ru | H146: https://blago-school.edusite.ru/mmagic.html?page=/camp_maininfo.html | I146: лагерь, организованный образовательной организацией, с дневным пребыванием | J146: сезонный | K146: 31.03.2025-04.04.2025 | L146: 20 | M146: 29.05.2025-25.06.2025 | N146: 40 | AC146: 177.64 | AD146: 6,5-17 лет | AE146: Режим работы: с 9:00 до 15:00. Организовано 2-х разовое питание и медицинское сопровождение. Имеются игровые комнаты, спортивный зал, игровая площадка. Запланированные мероприятия: организация культурно-массовых и спортивных мероприятий, творческие мастерские, психологические тренинги, походы, посещение музея, экскурс на предпиятия и в организации. | AF146: не имеется | AG146: 1959 г. | AH146: СЭЗ № 29.01.04.000.М.000164.04.25 от 15.04.2025 г. | AI146: Предписание РПН от 26.06.2024 г. № 626/2024 пр, замечание устранено | AJ146: Договор № б/н от 09.01.2024 г. ГБУЗ АО "Вельская ЦРБ" | AK146: Лицензия № 5694 от 27.02.2015 г. | AL146: Назначены сотрудники, осуществляющие сопровождение детей-инвалидов и детей с ОВЗ (при необходимости) в процессе оказания им услуг по организации отдыха и оздоровления | AM146: Утверждено Педагогическим советом, протокол от 07.05.2025 № 14 Приказ МБОУ "Благовещенская СШ № 5" от 07.05.2025 № 63-4 | AN146: https://blago-school.edusite.ru/sveden/files/bf2ca52dd2be2aa8abd882fd27f5a2f1.pdf
A147: 124 | B147: 10 | C147: Лагерь с дневным пребыванием детей муниципального бюджетного общеобразовательного учреждения "Пежемская средняя школа № 14" (МБОУ "Пежемская СШ № 14") | D147: муниципальная | E147: Резанова Наталья Сергеевна | F147: 2907007019 | G147: Юридический и фактический адрес: 165103, Архангельская область, Вельский район, с. Пежма, ул. Центральная, д. 8 «а» Тел: 8 (81836) 5-83-33 Е-mail: shkola-pegma@yandex.ru | H147: http://school-pegma14.edusite.ru/p91aa1.html | I147: лагерь, организованный образовательной организацией, с дневным пребыванием | J147: сезонный | K147: 31.03.2025-04.04.2025 | L147: 20 | M147: 28.05.2025-21.06.2025 | N147: 50 | AC147: 177.64 | AD147: 6,5-17 лет | AE147: Режим работы: с 8:30 до 14:30. Организовано 2-х разовое питание и медицинское сопровождение. Имеются игровые комнаты, спортивный зал, игровая площадка. Запланированные мероприятия: организация культурно-массовых и спортивных мероприятий, творческие мастерские, психологические тренинги, посещение Дома культуры | AF147: не имеется | AG147: 1966 г. | AH147: СЭЗ № 29.01.04.000.М.000173.04.25 от 16.04.2025 г. | AI147: Предписаний об устранении выявленных нарушений обязательных требований Роспотребнадзор по Вельскому району - нет | AJ147: Договор № б/н от 06.06.2023 г. ГБУЗ АО "Вельская ЦРБ" | AK147: Лицензия № 5776 от 24.04.2015 г. | AL147: Назначены сотрудники, осуществляющие сопровождение детей-инвалидов и детей с ОВЗ (при необходимости) в процессе оказания им услуг по организации отдыха и оздоровления | AM147: Утверждено Приказом директора МБОУ «Пежемская СШ №14» №86 от 22.04.2025г. | AN147: https://school-pegma14.edusite.ru/p91aa1.html
A148: 125 | B148: 11 | C148: Лагерь с дневным пребыванием детей муниципального бюджетного общеобразовательного учреждения "Хозьминская основная школа № 18" (МБОУ "Хозьминская ОШ № 18") | D148: муниципальная | E148: Мигунова Анастасия Петровна | F148: 2907006745 | G148: Юридический и фактический адрес: 165121, Архангельская область, Вельский район, пос. Хозьмино, ул. Цветочная, д. 9 Тел: 8 (81836) 3-72-56 Е-mail: Shkola_xoz@mail.ru | H148: https://xozschool.nubex.ru/7370/ | I148: лагерь, организованный образовательной организацией, с дневным пребыванием | J148: сезонный | M148: 28.05.2025-24.06.2025 | N148: 25 | AC148: 177.64 | AD148: 6,5-17 лет | AE148: Режим работы: с 8:30 до 14:30. Организовано 2-х разовое питание и медицинское сопровождение. Имеются игровые комнаты, спортивный зал, спортивные площадки. Запланированные мероприятия: организация культурно-массовых и спортивных мероприятий, творческие мастерские, посещение музея | AF148: не имеется | AG148: 1979 г. | AH148: СЭЗ № 29.01.04.000.М.000161.04.25 от 15.04.2025 г. | AI148: Предписания Вельского территориального отдела Роспотребнадзора от 04.07.2024г. № 682/2024пр замечание устранить до 01.06.2025 г. | AJ148: Договор № б/н от 01.01.2021 г. ГБУЗ АО "Вельская ЦРБ" | AK148: Лицензия № 6441 от 02.05.2017г. | AL148: В период оздоровления, отдыха детей в лагере с дневным прибыванием условия для хранения лекарственных препаратов находятся в закрытом доступе (шкафу). | AM148: Утверждено Педагогическим Советом, Протокол № 109 от 05 мая 2025 г. Приказ № 41-у от 05.05.2025 г. | AN148: https://r1.nubex.ru/s2604-46c/f2590_cb/Программа%20воспитательной%20работы.pdf
A149: 126 | B149: 12 | C149: Лагерь с дневным пребыванием детей муниципального бюджетного общеобразовательного учреждения "Липовская основная школа № 15" (МБОУ "Липовская ОШ № 15") | D149: муниципальная | E149: и.о.директора Преснухина Наталья Геннадьевна | F149: 2907007040 | G149: Юридический и фактический адрес: 165135, Архангельская область, Вельский район, дер. Малая Липовка, ул. Школьная, д. 4 Тел: 8 (81836) 7-43-24 Е-mail: lipovka2007@rambler.ru | H149: https://lipovskaj15.ucoz.ru/index/letnij_ozdorovitelnyj_lager/0-95 | I149: лагерь, организованный образовательной организацией, с дневным пребыванием | J149: сезонный | M149: 29.05.2025-20.06.2025 | N149: 8 | AC149: 177.64 | AD149: 6,5-17 лет | AE149: Режим работы: с 8:30 до 14:30. Организовано 2-х разовое питание и медицинское сопровождение. Имеются игровые комнаты, спортивный зал, спортивные площадки. Запланированные мероприятия: организация культурно-массовых и спортивных мероприятий, творческие мастерские, посещение музея | AF149: не имеется | AG149: 1986 г. | AH149: СЭЗ № 29.01.04.000.М.000272.04.25 от 30.04.2025 г. | AI149: Проверок не было | AJ149: Договор № б/н от 15.02.2018 г. ГБУЗ АО "Вельская ЦРБ"" | AK149: Выписка из ресстра лицензий № ЛО35-01270-29/00236927 от 23.12.2014г. | AL149: Условия не созданы | AM149: Утверждено Педагогическим Советом, Протокол № 6 от 06 мая 2025 г. Приказ № 72 от 06.05.2025 г. | AN149: https://view.officeapps.live.com/op/view.aspx?src=https%3A%2F%2Flipovskaj15.ucoz.ru%2Flager%2Fprogramma_lagerja_2025.docx&wdOrigin=BROWSELINK
